Workbook

Sheet ProForma
A1: Fiscal year is January-December. All values USD Thousands. | B1: 2013 | C1: 2014 | D1: 2015 | E1: 2016 | F1: 2017 | G1: 2018 | H1: 2019 | I1: 2020 | J1: Formula | K1: Average
A2: Income Statement
A3: Sales/Revenue | B3: 287937 | C3: 290541 | D3: 373805 | E3: 377334 | F3: 380767 | G3: 374401 | H3: 395664 | I3: 137003
A4: Sales Growth | B4: - | C4: 0.009 | D4: 0.2866 | E4: 0.0094 | F4: 0.0091 | G4: -0.0167 | H4: 0.0568 | I4: -0.6537
A5: Cost of Goods Sold (COGS) incl. D&A | B5: 124952 | C5: 118577 | D5: 156377 | E5: 176735 | F5: 198540 | G5: 170617 | H5: 184247 | I5: 119057
A6: COGS excluding D&A | B6: 88267 | C6: 85647 | D6: 114590 | E6: 130782 | F6: 132295 | G6: 114286 | H6: 121269 | I6: 66353
A7: Depreciation & Amortization Expense | B7: 36685 | C7: 32930 | D7: 41787 | E7: 45953 | F7: 66245 | G7: 56331 | H7: 62978 | I7: 52704
A8: Depreciation | B8: 16239 | C8: 17764 | D8: 21361 | E8: 25532 | F8: 29915 | G8: 33903 | H8: 35630 | I8: 36155
A9: Amortization of Intangibles | B9: 2854 | C9: 2988 | D9: 3285 | E9: 3235 | F9: 4319 | G9: 5507 | H9: 6290 | I9: 6565
A10: Amortization of Deferred Charges | B10: 17592 | C10: 12178 | D10: 17141 | E10: 17186 | F10: 32011 | G10: 16921 | H10: 21058 | I10: 9984
A11: COGS Growth | B11: - | C11: =(C5-B5)/B5 -> -0.05101959152 | D11: =(D5-C5)/C5 -> 0.3187802019 | E11: 0.1301853853 | F11: =(F5-E5)/E5 -> 0.1233768071 | G11: =(G5-F5)/F5 -> -0.1406416843 | H11: =(H5-G5)/G5 -> 0.07988652948 | I11: =(I5-H5)/H5 -> -0.3538185154 | J11: =getformula(I11) -> <-- =(I5-H5)/H5
A12: Gross Income | B12: 162985 | C12: 171964 | D12: 217428 | E12: 200599 | F12: 182227 | G12: 203784 | H12: 211417 | I12: 17946
A13: Gross Income Growth | B13: - | C13: 0.0551 | D13: 0.2644 | E13: -0.0774 | F13: -0.0916 | G13: 0.1183 | H13: 0.0375 | I13: -0.9151
A14: Gross Profit Margin | B14: - | C14: - | D14: - | E14: - | F14: 0.4786 | G14: - | H14: - | I14: 0.131
A15: SG&A Expense | B15: 98131 | C15: 106898 | D15: 121564 | E15: 134342 | F15: 135656 | G15: 133038 | H15: 129034 | I15: 132933
A16: Research & Development | B16: 14771 | C16: 16096 | D16: 12730 | E16: 16315 | F16: 20855 | G16: 13728 | H16: 5203 | I16: 5618
A17: Other SG&A | B17: 83360 | C17: 90802 | D17: 108834 | E17: 118027 | F17: 114801 | G17: 119310 | H17: 123831 | I17: 127315
A18: SGA Growth | B18: - | C18: 0.0893 | D18: 0.1372 | E18: 0.1051 | F18: 0.0098 | G18: -0.0193 | H18: -0.0301 | I18: 0.0302
A19: EBIT | B19: 64854 | C19: 65066 | D19: 95864 | E19: 66257 | F19: 46571 | G19: 70746 | H19: 82383 | I19: -114987
A20: Unusual Expense | B20: -1258 | C20: 4510 | D20: 2476 | E20: 4111 | F20: 17399 | G20: 24273 | H20: 3567 | I20: 9137
A21: Non Operating Income/Expense | B21: -1012 | C21: -2486 | D21: -5517 | E21: -3978 | F21: 1754 | G21: -1796 | H21: -2792 | I21: -378
A22: Non-Operating Interest Income | B22: 55 | C22: 405 | D22: 968 | E22: 1490 | F22: 1027 | G22: 1844 | H22: 2105 | I22: 2388
A23: Interest Expense | B23: 1345 | C23: 1124 | D23: 1761 | E23: 1805 | F23: 1942 | G23: 2916 | H23: 2793 | I23: 7010
A24: Interest Expense Growth | B24: - | C24: -0.1643 | D24: 0.5667 | E24: 0.025 | F24: 0.0759 | G24: 0.5015 | H24: -0.0422 | I24: 1.5098
A25: Gross Interest Expense | B25: 1345 | C25: 1124 | D25: 1761 | E25: 1805 | F25: 1942 | G25: 2916 | H25: 2793 | I25: 7010
A26: Pretax Income | B26: 63810 | C26: 57351 | D26: 87078 | E26: 57853 | F26: 30011 | G26: 43605 | H26: 75336 | I26: -129124
A27: Pretax Income Growth | B27: - | C27: -0.1012 | D27: 0.5183 | E27: -0.3356 | F27: -0.4813 | G27: 0.453 | H27: 0.7277 | I27: -2.714
A28: Pretax Margin | B28: - | C28: - | D28: - | E28: - | F28: 0.0788 | G28: - | H28: - | I28: -0.9425
A29: Income Tax | B29: 16629 | C29: 14466 | D29: 20052 | E29: 16212 | F29: 16790 | G29: 9518 | H29: 16768 | I29: 26504
A30: Income Tax - Current Domestic | B30: 1068 | C30: 3495 | D30: 10862 | E30: 1396 | F30: 6898 | G30: 4893 | H30: -2369 | I30: -555
A31: Income Tax - Current Foreign | B31: 2662 | C31: 10344 | D31: 10526 | E31: 9873 | F31: 13909 | G31: 11548 | H31: 12375 | I31: 3441
A32: Income Tax - Deferred Domestic | B32: 13198 | C32: -433 | D32: 518 | E32: 3583 | F32: -8748 | G32: -5993 | H32: 3913 | I32: 10801
A33: Income Tax - Deferred Foreign | B33: -299 | C33: 1060 | D33: -1854 | E33: 1360 | F33: 4731 | G33: -930 | H33: 2849 | I33: 12817
A34: Equity in Affiliates | B34: -2757 | C34: -1071 | D34: -2402 | E34: -2321 | F34: -703 | G34: -492 | H34: 3 | I34: -1858
A35: Other After Tax Income (Expense) | B35: - | C35: -426 | D35: -769 | E35: - | F35: - | G35: - | H35: -
A36: Consolidated Net Income | B36: 44424 | C36: 41388 | D36: 63855 | E36: 39320 | F36: 12518 | G36: 33595 | H36: 58571 | I36: -157486
A37: Minority Interest Expense | B37: - | C37: 2433 | D37: 8780 | E37: 10532 | F37: 10174 | G37: 10751 | H37: 11705 | I37: -13711
A38: Net Income | B38: 44424 | C38: 38955 | D38: 55075 | E38: 28788 | F38: 2344 | G38: 22844 | H38: 46866 | I38: -143775
A39: Net Income Growth | B39: - | C39: =(C38-B38)/B38 -> -0.1231091302 | D39: =(D38-C38)/C38 -> 0.4138108073 | E39: -0.4772945983 | F39: =(F38-E38)/E38 -> -0.9185771849 | G39: =(G38-F38)/F38 -> 8.745733788 | H39: =(H38-G38)/G38 -> 1.051567151 | I39: =(I38-H38)/H38 -> -4.067789015 | J39: =getformula(I39) -> <-- =(I38-H38)/H38
A40: Net Margin | B40: - | C40: - | D40: - | E40: - | F40: 0.0062 | G40: - | H40: - | I40: -1.0494
A41: Extraordinaries & Discontinued Operations | B41: -309 | C41: 355 | D41: - | E41: - | F41: - | G41: - | H41: - | I41: -
A42: Discontinued Operations | B42: -309 | C42: 355 | D42: - | E42: - | F42: - | G42: - | H42: - | I42: -
A43: Net Income After Extraordinaries | B43: 44733 | C43: 38600 | D43: 55075 | E43: 28788 | F43: 2344 | G43: 22844 | H43: 46866 | I43: -143775
A44: Net Income Available to Common | B44: 44115 | C44: 39310 | D44: 55075 | E44: 28788 | F44: 2344 | G44: 22844 | H44: 46866 | I44: -143775
A45: EPS (Basic) | B45: 0.66 | C45: 0.58 | D45: 0.79 | E45: 0.43 | F45: 0.04 | G45: 0.36 | H45: 0.76 | I45: -2.43
A46: EPS (Basic) Growth | B46: - | C46: -0.1285 | D46: 0.3734 | E46: -0.4557 | F46: -0.907 | G46: 8.055 | H46: 1.1104 | I46: -4.1752
A47: Basic Shares Outstanding | B47: 67151 | C47: 68346 | D47: 69526 | E47: 67575 | F47: 65380 | G47: 63075 | H47: 61310 | I47: 59237
A48: EPS (Diluted) | B48: 0.64 | C48: 0.56 | D48: 0.78 | E48: 0.42 | F48: 0.04 | G48: 0.36 | H48: 0.76 | I48: -2.43
A49: EPS (Diluted) Growth | B49: - | C49: -0.1191 | D49: 0.3753 | E49: -0.4559 | F49: -0.9152 | G49: 9.1055 | H49: 1.1089 | I49: -4.1844
A50: Diluted Shares Outstanding | B50: 68961 | C50: 69754 | D50: 71058 | E50: 68263 | F50: 65540 | G50: 63207 | H50: 61489 | I50: 59237
A51: EBITDA | B51: 101539 | C51: 97996 | D51: 137651 | E51: 112210 | F51: 112816 | G51: 127077 | H51: 145361 | I51: -62283
A52: EBITDA Growth | B52: - | C52: -0.0349 | D52: 0.4047 | E52: -0.1848 | F52: 0.0054 | G52: 0.1264 | H52: 0.1439 | I52: -1.4285
A53: EBITDA Margin | B53: - | C53: - | D53: - | E53: - | F53: 0.2963 | G53: - | H53: - | I53: -0.4546
A54: EBIT | B54: 64854 | C54: 65066 | D54: 95864 | E54: 66257 | F54: 46571 | G54: 70746 | H54: 82383 | I54: -114987
A55: Balance Sheet
A56: Assets
A57: Fiscal year is January-December. All values USD Thousands. | B57: 2013 | C57: 2014 | D57: 2015 | E57: 2016 | F57: 2017 | G57: 2018 | H57: 2019 | I57: 2020
A58: Cash & Short Term Investments | B58: 29546 | C58: 106503 | D58: 317449 | E58: 204759 | F58: 158725 | G58: 141590 | H58: 109484 | I58: 317379
A59: Cash Only | B59: 29546 | C59: 106503 | D59: 317449 | E59: 204759 | F59: 158725 | G59: 141590 | H59: 109484 | I59: 317379
A60: Cash & Short Term Investments Growth | B60: - | C60: 2.6047 | D60: 1.9807 | E60: -0.355 | F60: -0.2248 | G60: -0.108 | H60: -0.2268 | I60: 1.8989
A61: Cash & ST Investments / Total Assets | B61: 0.0614 | C61: 0.1714 | D61: 0.341 | E61: 0.2388 | F61: 0.1832 | G61: 0.1621 | H61: 0.1231 | I61: 0.3181
A62: Total Accounts Receivable | B62: 90409 | C62: 91595 | D62: 117049 | E62: 118329 | F62: 156001 | G62: 120220 | H62: 127108 | I62: 91237
A63: Accounts Receivables, Net | B63: 73074 | C63: 76051 | D63: 97981 | E63: 96349 | F63: 130546 | G63: 120220 | H63: 127108 | I63: 91237
A64: Accounts Receivables, Gross | B64: 73961 | C64: 76998 | D64: 99695 | E64: 97599 | F64: 132513 | G64: 123250 | H64: 132246 | I64: 105532
A65: Bad Debt/Doubtful Accounts | B65: -887 | C65: -947 | D65: -1714 | E65: -1250 | F65: -1967 | G65: -3030 | H65: -5138 | I65: -14295
A66: Other Receivables | B66: 17335 | C66: 15544 | D66: 19068 | E66: 21980 | F66: 25455 | G66: - | H66: - | I66: -
A67: Accounts Receivable Growth | B67: - | C67: 0.0131 | D67: 0.2779 | E67: 0.0109 | F67: 0.3184 | G67: -0.2294 | H67: 0.0573 | I67: -0.2822
A68: Accounts Receivable Turnover | B68: 3.18 | C68: 3.17 | D68: 3.19 | E68: 3.19 | F68: 2.44 | G68: 3.11 | H68: 3.11 | I68: 1.5
A69: Inventories | B69: 9825 | C69: 17063 | D69: 38753 | E69: 42121 | F69: 30788 | G69: 44560 | H69: 42989 | I69: 39580
A70: Finished Goods | B70: 5004 | C70: 6705 | D70: 10375 | E70: 10303 | F70: 6981 | G70: 10122 | H70: 11843 | I70: 6470
A71: Work in Progress | B71: 500 | C71: 1211 | D71: 2628 | E71: 3818 | F71: 2601 | G71: 4733 | H71: 4608 | I71: 3014
A72: Raw Materials | B72: 4321 | C72: 9147 | D72: 25750 | E72: 28000 | F72: 21206 | G72: 29705 | H72: 26538 | I72: 30096
A73: Other Current Assets | B73: 3602 | C73: 4946 | D73: 6498 | E73: 6626 | F73: 7549 | G73: 10294 | H73: 10237 | I73: 10420
A74: Prepaid Expenses | B74: 3602 | C74: 4946 | D74: 6498 | E74: 6626 | F74: 7549 | G74: 10294 | H74: 10237 | I74: 10420
A75: Total Current Assets | B75: 133382 | C75: 220107 | D75: 479749 | E75: 371835 | F75: 353063 | G75: 316664 | H75: 289818 | I75: 458616
A76: Net Property, Plant & Equipment | B76: 132847 | C76: 183424 | D76: 218267 | E76: 245415 | F76: 276781 | G76: 280658 | H76: 306849 | I76: 277397
A77: Property, Plant & Equipment - Gross | B77: 225337 | C77: 290436 | D77: 328244 | E77: 378203 | F77: 427511 | G77: 451979 | H77: 497654 | I77: 501384
A78: Buildings | B78: 15832 | C78: 16584 | D78: 67150 | E78: 69861 | F78: 74478 | G78: 77468 | H78: 80850 | I78: 80875
A79: Land & Improvements | B79: 1593 | C79: 8180 | D79: 8203 | E79: 8203 | F79: 8203 | G79: 8203 | H79: 8203 | I79: 8203
A80: Construction in Progress | B80: 8055 | C80: 43250 | D80: 9616 | E80: 18315 | F80: 23398 | G80: 24327 | H80: 14483 | I80: 5660
A81: Leases | B81: - | C81: - | D81: - | E81: - | F81: - | G81: - | H81: 17147 | I81: 15553
A82: Leased Property | B82: 162783 | C82: 184489 | D82: 205367 | E82: 230629 | F82: 270016 | G82: 292146 | H82: 327684 | I82: 342670
A83: Other Property, Plant & Equipment | B83: 37074 | C83: 37933 | D83: 37908 | E83: 51195 | F83: 51416 | G83: 49835 | H83: 49287 | I83: 48423
A84: Accumulated Depreciation | B84: 92490 | C84: 107012 | D84: 109977 | E84: 132788 | F84: 150730 | G84: 171321 | H84: 190805 | I84: 223987
A85: Buildings | B85: 10410 | C85: 10998 | D85: 12679 | E85: 14877 | F85: 17364 | G85: 20012 | H85: 22931 | I85: 25921
A86: Leases | B86: 54273 | C86: 66736 | D86: 77936 | E86: 92950 | F86: 107861 | G86: 124112 | H86: 137978 | I86: 163300
A87: Leased Property | B87: 54273 | C87: 66736 | D87: 77936 | E87: 92950 | F87: 107861 | G87: 124112 | H87: 137978 | I87: 163300
A88: Other Property, Plant & Equipment | B88: 27807 | C88: 29278 | D88: 19362 | E88: 24961 | F88: 25505 | G88: 27197 | H88: 29011 | I88: 33124
A89: Total Investments and Advances | B89: 5784 | C89: 3384 | D89: 2198 | E89: 3869 | F89: 11358 | G89: 5244 | H89: 19742 | I89: 16612
A90: LT Investment - Affiliate Companies | B90: 5784 | C90: 3384 | D90: 2198 | E90: 1389 | F90: 3484 | G90: - | H90: 15685 | I90: 13633
A91: Other Long-Term Investments | B91: - | C91: - | D91: - | E91: 2480 | F91: 7874 | G91: 5244 | H91: 4057 | I91: 2979
A92: Long-Term Note Receivable | B92: 89775 | C92: 90292 | D92: 101005 | E92: 102853 | F92: 106747 | G92: 136506 | H92: 140483 | I92: 137399
A93: Intangible Assets | B93: 66772 | C93: 66578 | D93: 67977 | E93: 69443 | F93: 70238 | G93: 73122 | H93: 69374 | I93: 65272
A94: Net Goodwill | B94: 39027 | C94: 39027 | D94: 39027 | E94: 39027 | F94: 39027 | G94: 39027 | H94: 39027 | I94: 39027
A95: Net Other Intangibles | B95: 27745 | C95: 27551 | D95: 28950 | E95: 30416 | F95: 31211 | G95: 34095 | H95: 30347 | I95: 26245
A96: Other Assets | B96: 28326 | C96: 34690 | D96: 36058 | E96: 43140 | F96: 17717 | G96: 30142 | H96: 38898 | I96: 24471
A97: Deferred Charges | B97: 9294 | C97: 25457 | D97: 26273 | E97: 32963 | F97: 6208 | G97: 16367 | H97: 17921 | I97: 5777
A98: Tangible Other Assets | B98: 19032 | C98: 9233 | D98: 9785 | E98: 10177 | F98: 11509 | G98: 13775 | H98: 20977 | I98: 18694
A99: Total Assets | B99: 481145 | C99: 621533 | D99: 931020 | E99: 857334 | F99: 866612 | G99: 873600 | H99: 889069 | I99: 997750
A100: Assets - Total - Growth | B100: - | C100: 0.2918 | D100: 0.4979 | E100: -0.0791 | F100: 0.0108 | G100: 0.0081 | H100: 0.0177 | I100: 0.1222
A101: Asset Turnover | B101: - | C101: - | D101: - | E101: - | F101: 0.44 | G101: - | H101: - | I101: 0.15
A102: Return On Average Assets | B102: - | C102: - | D102: - | E102: - | F102: 0.0027 | G102: - | H102: - | I102: -0.1524
A103: All values USD Thousands. | B103: 2013 | C103: 2014 | D103: 2015 | E103: 2016 | F103: 2017 | G103: 2018 | H103: 2019 | I103: 2020
A104: ST Debt & Current Portion LT Debt | B104: - | C104: - | D104: 2000 | E104: - | F104: 2000 | G104: - | H104: 18677 | I104: 16634
A105: Short Term Debt | B105: - | C105: - | D105: - | E105: - | F105: - | G105: - | H105: 18677 | I105: 16634
A106: Current Portion of Long Term Debt | B106: - | C106: - | D106: 2000 | E106: - | F106: 2000 | G106: - | H106: - | I106: -
A107: Accounts Payable | B107: 19396 | C107: 26145 | D107: 23455 | E107: 19990 | F107: 24235 | G107: 32057 | H107: 20414 | I107: 20837
A108: Accounts Payable Growth | B108: - | C108: 0.348 | D108: -0.1029 | E108: -0.1477 | F108: 0.2124 | G108: 0.3228 | H108: -0.3632 | I108: 0.0207
A109: Other Current Liabilities | B109: 142164 | C109: 163991 | D109: 200741 | E109: 183474 | F109: 213410 | G109: 204433 | H109: 188654 | I109: 170702
A110: Accrued Payroll | B110: 1600 | C110: 101.5 | D110: 1800 | E110: - | F110: - | G110: - | H110: - | I110: -
A111: Miscellaneous Current Liabilities | B111: 140564 | C111: 163889.5 | D111: 198941 | E111: 183474 | F111: 213410 | G111: 204433 | H111: 188654 | I111: 170702
A112: Total Current Liabilities | B112: 161560 | C112: 190136 | D112: 226196 | E112: 203464 | F112: 239645 | G112: 236490 | H112: 227745 | I112: 208173
A113: Current Ratio | B113: 0.83 | C113: 1.16 | D113: 2.12 | E113: 1.83 | F113: 1.47 | G113: 1.34 | H113: 1.27 | I113: 2.2
A114: Quick Ratio | B114: 0.76 | C114: 1.07 | D114: 1.95 | E114: 1.62 | F114: 1.34 | G114: 1.15 | H114: 1.08 | I114: 2.01
A115: Cash Ratio | B115: 0.18 | C115: 0.56 | D115: 1.4 | E115: 1.01 | F115: 0.66 | G115: 0.6 | H115: 0.48 | I115: 1.52
A116: Long-Term Debt | B116: - | C116: 4710 | D116: 27667 | E116: 27316 | F116: 23357 | G116: 37753 | H116: 18229 | I116: 305676 | K116: =AVERAGE($G$116:$I$116) -> 120552.6667
A117: Long-Term Debt excl. Capitalized Leases | B117: - | C117: 4710 | D117: 27667 | E117: 27316 | F117: 23357 | G117: 37753 | H117: 18229 | I117: 305676
A118: Non-Convertible Debt | B118: - | C118: 4710 | D118: 27667 | E118: 27316 | F118: 23357 | G118: 37753 | H118: 18229 | I118: 305676
A119: Deferred Taxes | B119: -24259 | C119: -23058 | D119: -25766 | E119: -20779 | F119: -30708 | G119: -31264 | H119: -23905 | I119: 1151
A120: Deferred Taxes - Credit | B120: - | C120: - | D120: - | E120: - | F120: - | G120: - | H120: - | I120: 19134
A121: Deferred Taxes - Debit | B121: 24259 | C121: 23058 | D121: 25766 | E121: 20779 | F121: 30708 | G121: 31264 | H121: 23905 | I121: 17983
A122: Total Liabilities | B122: 161560 | C122: 194846 | D122: 253863 | E122: 230780 | F122: 263002 | G122: 274243 | H122: 245974 | I122: 532983
A123: Total Liabilities / Total Assets | B123: 0.3358 | C123: 0.3135 | D123: 0.2727 | E123: 0.2692 | F123: 0.3035 | G123: 0.3139 | H123: 0.2767 | I123: 0.5342
A124: Common Equity (Total) | B124: 319585 | C124: 382775 | D124: 623891 | E124: 562012 | F124: 527746 | G124: 512161 | H124: 547694 | I124: 385489
A125: Common Stock Par/Carry Value | B125: 327313 | C125: 344862 | D125: 448310 | E125: 439213 | F125: 445797 | G125: 422455 | H125: 423386 | I125: 407031
A126: Retained Earnings | B126: -43051 | C126: -6259 | D126: 19930 | E126: -47366 | F126: -87592 | G126: -85385 | H126: -40253 | I126: -202849
A127: Other Appropriated Reserves | B127: 35323 | C127: 44172 | D127: 155651 | E127: 172104 | F127: 174674 | G127: 176007 | H127: 168599 | I127: 181318
A128: Treasury Stock | B128: - | C128: - | D128: - | E128: -1939 | F128: -5133 | G128: -916 | H128: -4038 | I128: -11
A129: Common Equity / Total Assets | B129: 0.6642 | C129: 0.6159 | D129: 0.6701 | E129: 0.6555 | F129: 0.609 | G129: 0.5863 | H129: 0.616 | I129: 0.3864
A130: Total Shareholders' Equity | B130: 319585 | C130: 382775 | D130: 623891 | E130: 562012 | F130: 527746 | G130: 512161 | H130: 547694 | I130: 385489
A131: Total Shareholders' Equity / Total Assets | B131: 0.6642 | C131: 0.6159 | D131: 0.6701 | E131: 0.6555 | F131: 0.609 | G131: 0.5863 | H131: 0.616 | I131: 0.3864
A132: Accumulated Minority Interest | B132: - | C132: 43912 | D132: 53266 | E132: 64542 | F132: 75864 | G132: 87196 | H132: 95401 | I132: 79278
A133: Total Equity | B133: 319585 | C133: 426687 | D133: 677157 | E133: 626554 | F133: 603610 | G133: 599357 | H133: 643095 | I133: 464767
A134: Liabilities & Shareholders' Equity | B134: =B122+B133 -> 481145 | C134: =C122+C133 -> 621533 | D134: 931020 | E134: 857334 | F134: 866612 | G134: 873600 | H134: 889069 | I134: 997750 | J134: =getformula(I134) -> <-- =I122+I133
A135: Cash Flow
A136: Fiscal year is January-December. All values USD Thousands. | B136: 2013 | C136: 2014 | D136: 2015 | E136: 2016 | F136: 2017 | G136: 2018 | H136: 2019 | I136: 2020
A137: Net Income before Extraordinaries | B137: 44115 | C137: 42169 | D137: 64624 | E137: 39320 | F137: 12518 | G137: 33595 | H137: 58571 | I137: -157486
A138: Net Income Growth | B138: - | C138: -0.0441 | D138: 0.5325 | E138: -0.3916 | F138: -0.6816 | G138: 1.6837 | H138: 0.7434 | I138: -3.6888
A139: Depreciation, Depletion & Amortization | B139: 36685 | C139: 32930 | D139: 40887 | E139: 45953 | F139: 66245 | G139: 56331 | H139: 62978 | I139: 52704
A140: Depreciation and Depletion | B140: 16239 | C140: 17764 | D140: 21361 | E140: 25532 | F140: 29915 | G140: 33903 | H140: 35630 | I140: 36155
A141: Amortization of Intangible Assets | B141: 20446 | C141: 15166 | D141: 19526 | E141: 20421 | F141: 36330 | G141: 22428 | H141: 27348 | I141: 16549
A142: Deferred Taxes & Investment Tax Credit | B142: 12899 | C142: 627 | D142: -1336 | E142: 4940 | F142: -4017 | G142: -6923 | H142: 6762 | I142: 23618
A143: Deferred Taxes | B143: 12899 | C143: 627 | D143: -1336 | E143: 4940 | F143: -4017 | G143: -6923 | H143: 6762 | I143: 23618
A144: Other Funds | B144: -4911 | C144: 4822 | D144: 16088 | E144: 18533 | F144: 19761 | G144: 14522 | H144: 7994 | I144: 61861
A145: Funds from Operations | B145: 88788 | C145: 80548 | D145: 120263 | E145: 108746 | F145: 94507 | G145: 97525 | H145: 136305 | I145: -19303
A146: Changes in Working Capital | B146: -33755 | C146: 6057 | D146: -36578 | E146: -30874 | F146: -9141 | G146: 12447 | H146: -45929 | I146: -3708
A147: Receivables | B147: -31032 | C147: -4358 | D147: -36149 | E147: -5909 | F147: -45060 | G147: 35267 | H147: -12997 | I147: 20668
A148: Inventories | B148: 1884 | C148: -7603 | D148: -21070 | E148: -3825 | F148: 10832 | G148: -14022 | H148: 1942 | I148: 1637
A149: Accounts Payable | B149: 7238 | C149: -5186 | D149: 9183 | E149: -3360 | F149: 4204 | G149: 7749 | H149: -11774 | I149: 414
A150: Other Accruals | B150: -1289 | C150: 5702 | D150: -2577 | E150: 3914 | F150: -642 | G150: -3266 | H150: -8505 | I150: -6399
A151: Other Assets/Liabilities | B151: -10556 | C151: 17502 | D151: 14035 | E151: -21694 | F151: 21525 | G151: -13281 | H151: -14595 | I151: -20028
A152: Net Operating Cash Flow | B152: 55033 | C152: 86605 | D152: 83685 | E152: 77872 | F152: 85366 | G152: 109972 | H152: 90376 | I152: -23011
A153: Net Operating Cash Flow Growth | B153: - | C153: 0.5737 | D153: -0.0337 | E153: -0.0695 | F153: 0.0962 | G153: 0.2882 | H153: -0.1782 | I153: -1.2546
A154: Net Operating Cash Flow / Sales | B154: 0.1911 | C154: 0.2981 | D154: 0.2239 | E154: 0.2064 | F154: 0.2242 | G154: 0.2937 | H154: 0.2284 | I154: -0.168
A155: All values USD Thousands. | B155: 2013 | C155: 2014 | D155: 2015 | E155: 2016 | F155: 2017 | G155: 2018 | H155: 2019 | I155: 2020
A156: Capital Expenditures | B156: -15502 | C156: -43022 | D156: -48322 | E156: -20065 | F156: -29357 | G156: -22064 | H156: -10352 | I156: -2601
A157: Capital Expenditures (Fixed Assets) | B157: -13016 | C157: -40104 | D157: -43257 | E157: -15278 | F157: -24143 | G157: -13368 | H157: -7421 | I157: -697
A158: Capital Expenditures (Other Assets) | B158: -2486 | C158: -2918 | D158: -5065 | E158: -4787 | F158: -5214 | G158: -8696 | H158: -2931 | I158: -1904
A159: Capital Expenditures Growth | B159: - | C159: -1.7753 | D159: -0.1232 | E159: 0.5848 | F159: -0.4631 | G159: 0.2484 | H159: 0.5308 | I159: 0.7487
A160: Capital Expenditures / Sales | B160: -0.0538 | C160: -0.1481 | D160: -0.1293 | E160: -0.0532 | F160: -0.0771 | G160: -0.0589 | H160: -0.0262 | I160: -0.019
A161: Net Assets from Acquisitions | B161: -4000 | C161: -2500 | D161: -2000 | E161: -1911 | F161: -1606 | G161: - | H161: - | I161: -
A162: Sale of Fixed Assets & Businesses | B162: - | C162: 507 | D162: - | E162: - | F162: - | G162: -34810 | H162: -55642 | I162: -6654
A163: Purchase/Sale of Investments | B163: -22775 | C163: -16838 | D163: -28474 | E163: -42910 | F163: -42634 | G163: -34810 | H163: -55642 | I163: -6654
A164: Purchase of Investments | B164: -22775 | C164: -16838 | D164: -28474 | E164: -42910 | F164: -42634 | G164: -34810 | H164: -55642 | I164: -6654
A165: Net Investing Cash Flow | B165: -42277 | C165: -61853 | D165: -78796 | E165: -64886 | F165: -73597 | G165: -56874 | H165: -65994 | I165: -9255
A166: Net Investing Cash Flow Growth | B166: - | C166: -0.463 | D166: -0.2739 | E166: 0.1765 | F166: -0.1343 | G166: 0.2272 | H166: -0.1604 | I166: 0.8598
A167: Net Investing Cash Flow / Sales | B167: -0.1468 | C167: -0.2129 | D167: -0.2108 | E167: -0.172 | F167: -0.1933 | G167: -0.1519 | H167: -0.1668 | I167: -0.0676
A168: All values USD Thousands. | B168: 2013 | C168: 2014 | D168: 2015 | E168: 2016 | F168: 2017 | G168: 2018 | H168: 2019 | I168: 2020
A169: Change in Capital Stock | B169: 8768 | C169: 48766 | D169: 201302 | E169: -102922 | F169: -34605 | G169: -74915 | H169: -32144 | I169: -41244
A170: Repurchase of Common & Preferred Stk. | B170: - | C170: -3063 | D170: -34276 | E170: -118514 | F170: -51273 | G170: -83728 | H170: -35654 | I170: -41244
A171: Sale of Common & Preferred Stock | B171: 8768 | C171: 51829 | D171: 235578 | E171: 15592 | F171: 16668 | G171: 8813 | H171: 3510 | I171: -
A172: Proceeds from Stock Options | B172: -202 | C172: 40995 | D172: 199969 | E172: 2479 | F172: - | G172: 7796 | H172: 1106 | I172: -
A173: Other Proceeds from Sale of Stock | B173: 8970 | C173: 10834 | D173: 35609 | E173: 13113 | F173: 16668 | G173: 1017 | H173: 2404 | I173: -
A174: Issuance/Reduction of Debt, Net | B174: -13151 | C174: 4283 | D174: 23424 | E174: -2000 | F174: -2000 | G174: 12424 | H174: -20000 | I174: 286537
A175: Change in Current Debt | B175: -13151 | C175: - | D175: - | E175: - | F175: - | G175: - | H175: - | I175: -
A176: Change in Long-Term Debt | B176: - | C176: 4283 | D176: 23424 | E176: -2000 | F176: -2000 | G176: 12424 | H176: -20000 | I176: 286537
A177: Issuance of Long-Term Debt | B177: - | C177: 4283 | D177: 23757 | E177: - | F177: - | G177: 63091 | H177: 35000 | I177: 286537
A178: Reduction in Long-Term Debt | B178: - | C178: - | D178: -333 | E178: -2000 | F178: -2000 | G178: -50667 | H178: -55000 | I178: -
A179: Other Funds | B179: - | C179: -790 | D179: -19511 | E179: -20860 | F179: -20931 | G179: -8371 | H179: -4974 | I179: -4726
A180: Other Uses | B180: - | C180: -790 | D180: -19511 | E180: -20860 | F180: -20931 | G180: -8371 | H180: -4974 | I180: -4726
A181: Net Financing Cash Flow | B181: -4383 | C181: 52259 | D181: 205215 | E181: -125782 | F181: -57536 | G181: -70862 | H181: -57118 | I181: 240567
A182: Net Financing Cash Flow Growth | B182: - | C182: 12.9231 | D182: 2.9269 | E182: -1.6129 | F182: 0.5426 | G182: -0.2316 | H182: 0.194 | I182: 5.2118
A183: Net Financing Cash Flow / Sales | B183: -0.0152 | C183: 0.1799 | D183: 0.549 | E183: -0.3333 | F183: -0.1511 | G183: -0.1893 | H183: -0.1444 | I183: 1.7559
A184: Exchange Rate Effect | B184: -163 | C184: -54 | D184: 842 | E184: 106 | F184: -267 | G184: 629 | H184: 630 | I184: -406
A185: Net Change in Cash | B185: 8210 | C185: 76957 | D185: 210946 | E185: -112690 | F185: -46034 | G185: -17135 | H185: -32106 | I185: 207895
A186: Free Cash Flow | B186: 42017 | C186: 46501 | D186: 40428 | E186: 62594 | F186: 61223 | G186: 96604 | H186: 82955 | I186: -23708
A187: Free Cash Flow Growth | B187: - | C187: =(C186-B186)/B186 -> 0.1067187091 | D187: =(D186-C186)/C186 -> -0.1305993419 | E187: 0.548283368 | F187: -0.0219030578 | G187: 0.577903729 | H187: -0.1412881454 | I187: =(I186-H186)/H186 -> -1.285793503 | J187: =getformula(I187) -> <-- =(I186-H186)/H186
A188: Optimistc FCF Growth | F188: 0.2632 | I188: =AVERAGE(C187:I187) -> -0.04952546309 | J188: =getformula(I188) -> <-- =AVERAGE(C187:I187)
A189: Pessimistic FCF Growth | F189: 0.1256 | I189: =AVERAGE(H187:I187) -> -0.713540824 | J189: =getformula(I189) -> <-- =AVERAGE(H187:I187)
A190: Free Cash Flow Yield | B190: - | C190: - | D190: - | E190: - | F190: 0.0404 | G190: - | H190: - | I190: -0.0222

Sheet Income Statement
A1: Fiscal year is January-December. All values USD Thousands. | B1: 2013 | C1: 2014 | D1: 2015 | E1: 2016 | F1: 2017 | G1: 2018 | H1: 2019 | I1: 2020
A2: Sales/Revenue | B2: 287937 | C2: 290541 | D2: 373805 | E2: 377334 | F2: 380767 | G2: 374401 | H2: 395664 | I2: 137003
A3: Sales Growth | B3: - | C3: 0.009 | D3: 0.2866 | E3: 0.0094 | F3: 0.0091 | G3: -0.0167 | H3: 0.0568 | I3: -0.6537
A4: Cost of Goods Sold (COGS) incl. D&A | B4: 124952 | C4: 118577 | D4: 156377 | E4: 176735 | F4: 198540 | G4: 170617 | H4: 184247 | I4: 119057
A5: COGS excluding D&A | B5: 88267 | C5: 85647 | D5: 114590 | E5: 130782 | F5: 132295 | G5: 114286 | H5: 121269 | I5: 66353
A6: Depreciation & Amortization Expense | B6: 36685 | C6: 32930 | D6: 41787 | E6: 45953 | F6: 66245 | G6: 56331 | H6: 62978 | I6: 52704
A7: Depreciation | B7: 16239 | C7: 17764 | D7: 21361 | E7: 25532 | F7: 29915 | G7: 33903 | H7: 35630 | I7: 36155
A8: Amortization of Intangibles | B8: 2854 | C8: 2988 | D8: 3285 | E8: 3235 | F8: 4319 | G8: 5507 | H8: 6290 | I8: 6565
A9: Amortization of Deferred Charges | B9: 17592 | C9: 12178 | D9: 17141 | E9: 17186 | F9: 32011 | G9: 16921 | H9: 21058 | I9: 9984
A10: COGS Growth | B10: - | C10: -0.051 | D10: 0.3188 | E10: 0.1302 | F10: 0.1234 | G10: =(G4-F4)/F4 -> -0.1406416843 | H10: 0.07988652948 | I10: -0.3538185154
A11: Gross Income | B11: 162985 | C11: 171964 | D11: 217428 | E11: 200599 | F11: 182227 | G11: 203784 | H11: 211417 | I11: 17946
A12: Gross Income Growth | B12: - | C12: 0.0551 | D12: 0.2644 | E12: -0.0774 | F12: -0.0916 | G12: 0.1183 | H12: 0.0375 | I12: -0.9151
A13: Gross Profit Margin | B13: - | C13: - | D13: - | E13: - | F13: 0.4786 | G13: - | H13: - | I13: 0.131
A14: SG&A Expense | B14: 98131 | C14: 106898 | D14: 121564 | E14: 134342 | F14: 135656 | G14: 133038 | H14: 129034 | I14: 132933
A15: Research & Development | B15: 14771 | C15: 16096 | D15: 12730 | E15: 16315 | F15: 20855 | G15: 13728 | H15: 5203 | I15: 5618
A16: Other SG&A | B16: 83360 | C16: 90802 | D16: 108834 | E16: 118027 | F16: 114801 | G16: 119310 | H16: 123831 | I16: 127315
A17: SGA Growth | B17: - | C17: 0.0893 | D17: 0.1372 | E17: 0.1051 | F17: 0.0098 | G17: -0.0193 | H17: -0.0301 | I17: 0.0302
A18: EBIT | B18: 64854 | C18: 65066 | D18: 95864 | E18: 66257 | F18: 46571 | G18: 70746 | H18: 82383 | I18: -114987
A19: Unusual Expense | B19: -1258 | C19: 4510 | D19: 2476 | E19: 4111 | F19: 17399 | G19: 24273 | H19: 3567 | I19: 9137
A20: Non Operating Income/Expense | B20: -1012 | C20: -2486 | D20: -5517 | E20: -3978 | F20: 1754 | G20: -1796 | H20: -2792 | I20: -378
A21: Non-Operating Interest Income | B21: 55 | C21: 405 | D21: 968 | E21: 1490 | F21: 1027 | G21: 1844 | H21: 2105 | I21: 2388
A22: Interest Expense | B22: 1345 | C22: 1124 | D22: 1761 | E22: 1805 | F22: 1942 | G22: 2916 | H22: 2793 | I22: 7010
A23: Interest Expense Growth | B23: - | C23: -0.1643 | D23: 0.5667 | E23: 0.025 | F23: 0.0759 | G23: 0.5015 | H23: -0.0422 | I23: 1.5098
A24: Gross Interest Expense | B24: 1345 | C24: 1124 | D24: 1761 | E24: 1805 | F24: 1942 | G24: 2916 | H24: 2793 | I24: 7010
A25: Pretax Income | B25: 63810 | C25: 57351 | D25: 87078 | E25: 57853 | F25: 30011 | G25: 43605 | H25: 75336 | I25: -129124
A26: Pretax Income Growth | B26: - | C26: -0.1012 | D26: 0.5183 | E26: -0.3356 | F26: -0.4813 | G26: 0.453 | H26: 0.7277 | I26: -2.714
A27: Pretax Margin | B27: - | C27: - | D27: - | E27: - | F27: 0.0788 | G27: - | H27: - | I27: -0.9425
A28: Income Tax | B28: 16629 | C28: 14466 | D28: 20052 | E28: 16212 | F28: 16790 | G28: 9518 | H28: 16768 | I28: 26504
A29: Income Tax - Current Domestic | B29: 1068 | C29: 3495 | D29: 10862 | E29: 1396 | F29: 6898 | G29: 4893 | H29: -2369 | I29: -555
A30: Income Tax - Current Foreign | B30: 2662 | C30: 10344 | D30: 10526 | E30: 9873 | F30: 13909 | G30: 11548 | H30: 12375 | I30: 3441
A31: Income Tax - Deferred Domestic | B31: 13198 | C31: -433 | D31: 518 | E31: 3583 | F31: -8748 | G31: -5993 | H31: 3913 | I31: 10801
A32: Income Tax - Deferred Foreign | B32: -299 | C32: 1060 | D32: -1854 | E32: 1360 | F32: 4731 | G32: -930 | H32: 2849 | I32: 12817
A33: Equity in Affiliates | B33: -2757 | C33: -1071 | D33: -2402 | E33: -2321 | F33: -703 | G33: -492 | H33: 3 | I33: -1858
A34: Other After Tax Income (Expense) | B34: - | C34: -426 | D34: -769 | E34: - | F34: - | G34: - | H34: -
A35: Consolidated Net Income | B35: 44424 | C35: 41388 | D35: 63855 | E35: 39320 | F35: 12518 | G35: 33595 | H35: 58571 | I35: -157486
A36: Minority Interest Expense | B36: - | C36: 2433 | D36: 8780 | E36: 10532 | F36: 10174 | G36: 10751 | H36: 11705 | I36: -13711
A37: Net Income | B37: 44424 | C37: 38955 | D37: 55075 | E37: 28788 | F37: 2344 | G37: 22844 | H37: 46866 | I37: -143775
A38: Net Income Growth | B38: - | C38: -0.1231 | D38: 0.4138 | E38: -0.4773 | F38: -0.9186 | G38: =(G37-F37)/F37 -> 8.745733788 | H38: 1.051567151 | I38: -4.067789015
A39: Net Margin | B39: - | C39: - | D39: - | E39: - | F39: 0.0062 | G39: - | H39: - | I39: -1.0494
A40: Extraordinaries & Discontinued Operations | B40: -309 | C40: 355 | D40: - | E40: - | F40: - | G40: - | H40: - | I40: -
A41: Discontinued Operations | B41: -309 | C41: 355 | D41: - | E41: - | F41: - | G41: - | H41: - | I41: -
A42: Net Income After Extraordinaries | B42: 44733 | C42: 38600 | D42: 55075 | E42: 28788 | F42: 2344 | G42: 22844 | H42: 46866 | I42: -143775
A43: Net Income Available to Common | B43: 44115 | C43: 39310 | D43: 55075 | E43: 28788 | F43: 2344 | G43: 22844 | H43: 46866 | I43: -143775
A44: EPS (Basic) | B44: 0.66 | C44: 0.58 | D44: 0.79 | E44: 0.43 | F44: 0.04 | G44: 0.36 | H44: 0.76 | I44: -2.43
A45: EPS (Basic) Growth | B45: - | C45: -0.1285 | D45: 0.3734 | E45: -0.4557 | F45: -0.907 | G45: 8.055 | H45: 1.1104 | I45: -4.1752
A46: Basic Shares Outstanding | B46: 67151 | C46: 68346 | D46: 69526 | E46: 67575 | F46: 65380 | G46: 63075 | H46: 61310 | I46: 59237
A47: EPS (Diluted) | B47: 0.64 | C47: 0.56 | D47: 0.78 | E47: 0.42 | F47: 0.04 | G47: 0.36 | H47: 0.76 | I47: -2.43
A48: EPS (Diluted) Growth | B48: - | C48: -0.1191 | D48: 0.3753 | E48: -0.4559 | F48: -0.9152 | G48: 9.1055 | H48: 1.1089 | I48: -4.1844
A49: Diluted Shares Outstanding | B49: 68961 | C49: 69754 | D49: 71058 | E49: 68263 | F49: 65540 | G49: 63207 | H49: 61489 | I49: 59237
A50: EBITDA | B50: 101539 | C50: 97996 | D50: 137651 | E50: 112210 | F50: 112816 | G50: 127077 | H50: 145361 | I50: -62283
A51: EBITDA Growth | B51: - | C51: -0.0349 | D51: 0.4047 | E51: -0.1848 | F51: 0.0054 | G51: 0.1264 | H51: 0.1439 | I51: -1.4285
A52: EBITDA Margin | B52: - | C52: - | D52: - | E52: - | F52: 0.2963 | G52: - | H52: - | I52: -0.4546
A53: EBIT | B53: 64854 | C53: 65066 | D53: 95864 | E53: 66257 | F53: 46571 | G53: 70746 | H53: 82383 | I53: -114987

Sheet Balance Sheet
A1: Assets
A2: Fiscal year is January-December. All values USD Thousands. | B2: 2013 | C2: 2014 | D2: 2015 | E2: 2016 | F2: 2017 | G2: 2018 | H2: 2019 | I2: 2020
A3: Cash & Short Term Investments | B3: 29546 | C3: 106503 | D3: 317449 | E3: 204759 | F3: 158725 | G3: 141590 | H3: 109484 | I3: 317379
A4: Cash Only | B4: 29546 | C4: 106503 | D4: 317449 | E4: 204759 | F4: 158725 | G4: 141590 | H4: 109484 | I4: 317379
A5: Cash & Short Term Investments Growth | B5: - | C5: 2.6047 | D5: 1.9807 | E5: -0.355 | F5: -0.2248 | G5: -0.108 | H5: -0.2268 | I5: 1.8989
A6: Cash & ST Investments / Total Assets | B6: 0.0614 | C6: 0.1714 | D6: 0.341 | E6: 0.2388 | F6: 0.1832 | G6: 0.1621 | H6: 0.1231 | I6: 0.3181
A7: Total Accounts Receivable | B7: 90409 | C7: 91595 | D7: 117049 | E7: 118329 | F7: 156001 | G7: 120220 | H7: 127108 | I7: 91237
A8: Accounts Receivables, Net | B8: 73074 | C8: 76051 | D8: 97981 | E8: 96349 | F8: 130546 | G8: 120220 | H8: 127108 | I8: 91237
A9: Accounts Receivables, Gross | B9: 73961 | C9: 76998 | D9: 99695 | E9: 97599 | F9: 132513 | G9: 123250 | H9: 132246 | I9: 105532
A10: Bad Debt/Doubtful Accounts | B10: -887 | C10: -947 | D10: -1714 | E10: -1250 | F10: -1967 | G10: -3030 | H10: -5138 | I10: -14295
A11: Other Receivables | B11: 17335 | C11: 15544 | D11: 19068 | E11: 21980 | F11: 25455 | G11: - | H11: - | I11: -
A12: Accounts Receivable Growth | B12: - | C12: 0.0131 | D12: 0.2779 | E12: 0.0109 | F12: 0.3184 | G12: -0.2294 | H12: 0.0573 | I12: -0.2822
A13: Accounts Receivable Turnover | B13: 3.18 | C13: 3.17 | D13: 3.19 | E13: 3.19 | F13: 2.44 | G13: 3.11 | H13: 3.11 | I13: 1.5
A14: Inventories | B14: 9825 | C14: 17063 | D14: 38753 | E14: 42121 | F14: 30788 | G14: 44560 | H14: 42989 | I14: 39580
A15: Finished Goods | B15: 5004 | C15: 6705 | D15: 10375 | E15: 10303 | F15: 6981 | G15: 10122 | H15: 11843 | I15: 6470
A16: Work in Progress | B16: 500 | C16: 1211 | D16: 2628 | E16: 3818 | F16: 2601 | G16: 4733 | H16: 4608 | I16: 3014
A17: Raw Materials | B17: 4321 | C17: 9147 | D17: 25750 | E17: 28000 | F17: 21206 | G17: 29705 | H17: 26538 | I17: 30096
A18: Other Current Assets | B18: 3602 | C18: 4946 | D18: 6498 | E18: 6626 | F18: 7549 | G18: 10294 | H18: 10237 | I18: 10420
A19: Prepaid Expenses | B19: 3602 | C19: 4946 | D19: 6498 | E19: 6626 | F19: 7549 | G19: 10294 | H19: 10237 | I19: 10420
A20: Total Current Assets | B20: 133382 | C20: 220107 | D20: 479749 | E20: 371835 | F20: 353063 | G20: 316664 | H20: 289818 | I20: 458616
A21: Net Property, Plant & Equipment | B21: 132847 | C21: 183424 | D21: 218267 | E21: 245415 | F21: 276781 | G21: 280658 | H21: 306849 | I21: 277397
A22: Property, Plant & Equipment - Gross | B22: 225337 | C22: 290436 | D22: 328244 | E22: 378203 | F22: 427511 | G22: 451979 | H22: 497654 | I22: 501384
A23: Buildings | B23: 15832 | C23: 16584 | D23: 67150 | E23: 69861 | F23: 74478 | G23: 77468 | H23: 80850 | I23: 80875
A24: Land & Improvements | B24: 1593 | C24: 8180 | D24: 8203 | E24: 8203 | F24: 8203 | G24: 8203 | H24: 8203 | I24: 8203
A25: Construction in Progress | B25: 8055 | C25: 43250 | D25: 9616 | E25: 18315 | F25: 23398 | G25: 24327 | H25: 14483 | I25: 5660
A26: Leases | B26: - | C26: - | D26: - | E26: - | F26: - | G26: - | H26: 17147 | I26: 15553
A27: Leased Property | B27: 162783 | C27: 184489 | D27: 205367 | E27: 230629 | F27: 270016 | G27: 292146 | H27: 327684 | I27: 342670
A28: Other Property, Plant & Equipment | B28: 37074 | C28: 37933 | D28: 37908 | E28: 51195 | F28: 51416 | G28: 49835 | H28: 49287 | I28: 48423
A29: Accumulated Depreciation | B29: 92490 | C29: 107012 | D29: 109977 | E29: 132788 | F29: 150730 | G29: 171321 | H29: 190805 | I29: 223987
A30: Buildings | B30: 10410 | C30: 10998 | D30: 12679 | E30: 14877 | F30: 17364 | G30: 20012 | H30: 22931 | I30: 25921
A31: Leases | B31: 54273 | C31: 66736 | D31: 77936 | E31: 92950 | F31: 107861 | G31: 124112 | H31: 137978 | I31: 163300
A32: Leased Property | B32: 54273 | C32: 66736 | D32: 77936 | E32: 92950 | F32: 107861 | G32: 124112 | H32: 137978 | I32: 163300
A33: Other Property, Plant & Equipment | B33: 27807 | C33: 29278 | D33: 19362 | E33: 24961 | F33: 25505 | G33: 27197 | H33: 29011 | I33: 33124
A34: Total Investments and Advances | B34: 5784 | C34: 3384 | D34: 2198 | E34: 3869 | F34: 11358 | G34: 5244 | H34: 19742 | I34: 16612
A35: LT Investment - Affiliate Companies | B35: 5784 | C35: 3384 | D35: 2198 | E35: 1389 | F35: 3484 | G35: - | H35: 15685 | I35: 13633
A36: Other Long-Term Investments | B36: - | C36: - | D36: - | E36: 2480 | F36: 7874 | G36: 5244 | H36: 4057 | I36: 2979
A37: Long-Term Note Receivable | B37: 89775 | C37: 90292 | D37: 101005 | E37: 102853 | F37: 106747 | G37: 136506 | H37: 140483 | I37: 137399
A38: Intangible Assets | B38: 66772 | C38: 66578 | D38: 67977 | E38: 69443 | F38: 70238 | G38: 73122 | H38: 69374 | I38: 65272
A39: Net Goodwill | B39: 39027 | C39: 39027 | D39: 39027 | E39: 39027 | F39: 39027 | G39: 39027 | H39: 39027 | I39: 39027
A40: Net Other Intangibles | B40: 27745 | C40: 27551 | D40: 28950 | E40: 30416 | F40: 31211 | G40: 34095 | H40: 30347 | I40: 26245
A41: Other Assets | B41: 28326 | C41: 34690 | D41: 36058 | E41: 43140 | F41: 17717 | G41: 30142 | H41: 38898 | I41: 24471
A42: Deferred Charges | B42: 9294 | C42: 25457 | D42: 26273 | E42: 32963 | F42: 6208 | G42: 16367 | H42: 17921 | I42: 5777
A43: Tangible Other Assets | B43: 19032 | C43: 9233 | D43: 9785 | E43: 10177 | F43: 11509 | G43: 13775 | H43: 20977 | I43: 18694
A44: Total Assets | B44: 481145 | C44: 621533 | D44: 931020 | E44: 857334 | F44: 866612 | G44: 873600 | H44: 889069 | I44: 997750
A45: Assets - Total - Growth | B45: - | C45: 0.2918 | D45: 0.4979 | E45: -0.0791 | F45: 0.0108 | G45: 0.0081 | H45: 0.0177 | I45: 0.1222
A46: Asset Turnover | B46: - | C46: - | D46: - | E46: - | F46: 0.44 | G46: - | H46: - | I46: 0.15
A47: Return On Average Assets | B47: - | C47: - | D47: - | E47: - | F47: 0.0027 | G47: - | H47: - | I47: -0.1524
A48: All values USD Thousands. | B48: 2013 | C48: 2014 | D48: 2015 | E48: 2016 | F48: 2017 | G48: 2018 | H48: 2019 | I48: 2020
A49: ST Debt & Current Portion LT Debt | B49: - | C49: - | D49: 2000 | E49: - | F49: 2000 | G49: - | H49: 18677 | I49: 16634
A50: Short Term Debt | B50: - | C50: - | D50: - | E50: - | F50: - | G50: - | H50: 18677 | I50: 16634
A51: Current Portion of Long Term Debt | B51: - | C51: - | D51: 2000 | E51: - | F51: 2000 | G51: - | H51: - | I51: -
A52: Accounts Payable | B52: 19396 | C52: 26145 | D52: 23455 | E52: 19990 | F52: 24235 | G52: 32057 | H52: 20414 | I52: 20837
A53: Accounts Payable Growth | B53: - | C53: 0.348 | D53: -0.1029 | E53: -0.1477 | F53: 0.2124 | G53: 0.3228 | H53: -0.3632 | I53: 0.0207
A54: Other Current Liabilities | B54: 142164 | C54: 163991 | D54: 200741 | E54: 183474 | F54: 213410 | G54: 204433 | H54: 188654 | I54: 170702
A55: Accrued Payroll | B55: 1600 | C55: 101.5 | D55: 1800 | E55: - | F55: - | G55: - | H55: - | I55: -
A56: Miscellaneous Current Liabilities | B56: 140564 | C56: 163889.5 | D56: 198941 | E56: 183474 | F56: 213410 | G56: 204433 | H56: 188654 | I56: 170702
A57: Total Current Liabilities | B57: 161560 | C57: 190136 | D57: 226196 | E57: 203464 | F57: 239645 | G57: 236490 | H57: 227745 | I57: 208173
A58: Current Ratio | B58: 0.83 | C58: 1.16 | D58: 2.12 | E58: 1.83 | F58: 1.47 | G58: 1.34 | H58: 1.27 | I58: 2.2
A59: Quick Ratio | B59: 0.76 | C59: 1.07 | D59: 1.95 | E59: 1.62 | F59: 1.34 | G59: 1.15 | H59: 1.08 | I59: 2.01
A60: Cash Ratio | B60: 0.18 | C60: 0.56 | D60: 1.4 | E60: 1.01 | F60: 0.66 | G60: 0.6 | H60: 0.48 | I60: 1.52
A61: Long-Term Debt | B61: - | C61: 4710 | D61: 27667 | E61: 27316 | F61: 23357 | G61: 37753 | H61: 18229 | I61: 305676
A62: Long-Term Debt excl. Capitalized Leases | B62: - | C62: 4710 | D62: 27667 | E62: 27316 | F62: 23357 | G62: 37753 | H62: 18229 | I62: 305676
A63: Non-Convertible Debt | B63: - | C63: 4710 | D63: 27667 | E63: 27316 | F63: 23357 | G63: 37753 | H63: 18229 | I63: 305676
A64: Deferred Taxes | B64: -24259 | C64: -23058 | D64: -25766 | E64: -20779 | F64: -30708 | G64: -31264 | H64: -23905 | I64: 1151
A65: Deferred Taxes - Credit | B65: - | C65: - | D65: - | E65: - | F65: - | G65: - | H65: - | I65: 19134
A66: Deferred Taxes - Debit | B66: 24259 | C66: 23058 | D66: 25766 | E66: 20779 | F66: 30708 | G66: 31264 | H66: 23905 | I66: 17983
A67: Total Liabilities | B67: 161560 | C67: 194846 | D67: 253863 | E67: 230780 | F67: 263002 | G67: 274243 | H67: 245974 | I67: 532983
A68: Total Liabilities / Total Assets | B68: 0.3358 | C68: 0.3135 | D68: 0.2727 | E68: 0.2692 | F68: 0.3035 | G68: 0.3139 | H68: 0.2767 | I68: 0.5342
A69: Common Equity (Total) | B69: 319585 | C69: 382775 | D69: 623891 | E69: 562012 | F69: 527746 | G69: 512161 | H69: 547694 | I69: 385489
A70: Common Stock Par/Carry Value | B70: 327313 | C70: 344862 | D70: 448310 | E70: 439213 | F70: 445797 | G70: 422455 | H70: 423386 | I70: 407031
A71: Retained Earnings | B71: -43051 | C71: -6259 | D71: 19930 | E71: -47366 | F71: -87592 | G71: -85385 | H71: -40253 | I71: -202849
A72: Other Appropriated Reserves | B72: 35323 | C72: 44172 | D72: 155651 | E72: 172104 | F72: 174674 | G72: 176007 | H72: 168599 | I72: 181318
A73: Treasury Stock | B73: - | C73: - | D73: - | E73: -1939 | F73: -5133 | G73: -916 | H73: -4038 | I73: -11
A74: Common Equity / Total Assets | B74: 0.6642 | C74: 0.6159 | D74: 0.6701 | E74: 0.6555 | F74: 0.609 | G74: 0.5863 | H74: 0.616 | I74: 0.3864
A75: Total Shareholders' Equity | B75: 319585 | C75: 382775 | D75: 623891 | E75: 562012 | F75: 527746 | G75: 512161 | H75: 547694 | I75: 385489
A76: Total Shareholders' Equity / Total Assets | B76: 0.6642 | C76: 0.6159 | D76: 0.6701 | E76: 0.6555 | F76: 0.609 | G76: 0.5863 | H76: 0.616 | I76: 0.3864
A77: Accumulated Minority Interest | B77: - | C77: 43912 | D77: 53266 | E77: 64542 | F77: 75864 | G77: 87196 | H77: 95401 | I77: 79278
A78: Total Equity | B78: 319585 | C78: 426687 | D78: 677157 | E78: 626554 | F78: 603610 | G78: 599357 | H78: 643095 | I78: 464767
A79: Liabilities & Shareholders' Equity | B79: 481145 | C79: 621533 | D79: 931020 | E79: 857334 | F79: 866612 | G79: 873600 | H79: 889069 | I79: 997750

Sheet Cash Flow
A1: Fiscal year is January-December. All values USD Thousands. | B1: 2013 | C1: 2014 | D1: 2015 | E1: 2016 | F1: 2017 | G1: 2018 | H1: 2019 | I1: 2020
A2: Net Income before Extraordinaries | B2: 44115 | C2: 42169 | D2: 64624 | E2: 39320 | F2: 12518 | G2: 33595 | H2: 58571 | I2: -157486
A3: Net Income Growth | B3: - | C3: -0.0441 | D3: 0.5325 | E3: -0.3916 | F3: -0.6816 | G3: 1.6837 | H3: 0.7434 | I3: -3.6888
A4: Depreciation, Depletion & Amortization | B4: 36685 | C4: 32930 | D4: 40887 | E4: 45953 | F4: 66245 | G4: 56331 | H4: 62978 | I4: 52704
A5: Depreciation and Depletion | B5: 16239 | C5: 17764 | D5: 21361 | E5: 25532 | F5: 29915 | G5: 33903 | H5: 35630 | I5: 36155
A6: Amortization of Intangible Assets | B6: 20446 | C6: 15166 | D6: 19526 | E6: 20421 | F6: 36330 | G6: 22428 | H6: 27348 | I6: 16549
A7: Deferred Taxes & Investment Tax Credit | B7: 12899 | C7: 627 | D7: -1336 | E7: 4940 | F7: -4017 | G7: -6923 | H7: 6762 | I7: 23618
A8: Deferred Taxes | B8: 12899 | C8: 627 | D8: -1336 | E8: 4940 | F8: -4017 | G8: -6923 | H8: 6762 | I8: 23618
A9: Other Funds | B9: -4911 | C9: 4822 | D9: 16088 | E9: 18533 | F9: 19761 | G9: 14522 | H9: 7994 | I9: 61861
A10: Funds from Operations | B10: 88788 | C10: 80548 | D10: 120263 | E10: 108746 | F10: 94507 | G10: 97525 | H10: 136305 | I10: -19303
A11: Changes in Working Capital | B11: -33755 | C11: 6057 | D11: -36578 | E11: -30874 | F11: -9141 | G11: 12447 | H11: -45929 | I11: -3708
A12: Receivables | B12: -31032 | C12: -4358 | D12: -36149 | E12: -5909 | F12: -45060 | G12: 35267 | H12: -12997 | I12: 20668
A13: Inventories | B13: 1884 | C13: -7603 | D13: -21070 | E13: -3825 | F13: 10832 | G13: -14022 | H13: 1942 | I13: 1637
A14: Accounts Payable | B14: 7238 | C14: -5186 | D14: 9183 | E14: -3360 | F14: 4204 | G14: 7749 | H14: -11774 | I14: 414
A15: Other Accruals | B15: -1289 | C15: 5702 | D15: -2577 | E15: 3914 | F15: -642 | G15: -3266 | H15: -8505 | I15: -6399
A16: Other Assets/Liabilities | B16: -10556 | C16: 17502 | D16: 14035 | E16: -21694 | F16: 21525 | G16: -13281 | H16: -14595 | I16: -20028
A17: Net Operating Cash Flow | B17: 55033 | C17: 86605 | D17: 83685 | E17: 77872 | F17: 85366 | G17: 109972 | H17: 90376 | I17: -23011
A18: Net Operating Cash Flow Growth | B18: - | C18: 0.5737 | D18: -0.0337 | E18: -0.0695 | F18: 0.0962 | G18: 0.2882 | H18: -0.1782 | I18: -1.2546
A19: Net Operating Cash Flow / Sales | B19: 0.1911 | C19: 0.2981 | D19: 0.2239 | E19: 0.2064 | F19: 0.2242 | G19: 0.2937 | H19: 0.2284 | I19: -0.168
A20: All values USD Thousands. | B20: 2013 | C20: 2014 | D20: 2015 | E20: 2016 | F20: 2017 | G20: 2018 | H20: 2019 | I20: 2020
A21: Capital Expenditures | B21: -15502 | C21: -43022 | D21: -48322 | E21: -20065 | F21: -29357 | G21: -22064 | H21: -10352 | I21: -2601
A22: Capital Expenditures (Fixed Assets) | B22: -13016 | C22: -40104 | D22: -43257 | E22: -15278 | F22: -24143 | G22: -13368 | H22: -7421 | I22: -697
A23: Capital Expenditures (Other Assets) | B23: -2486 | C23: -2918 | D23: -5065 | E23: -4787 | F23: -5214 | G23: -8696 | H23: -2931 | I23: -1904
A24: Capital Expenditures Growth | B24: - | C24: -1.7753 | D24: -0.1232 | E24: 0.5848 | F24: -0.4631 | G24: 0.2484 | H24: 0.5308 | I24: 0.7487
A25: Capital Expenditures / Sales | B25: -0.0538 | C25: -0.1481 | D25: -0.1293 | E25: -0.0532 | F25: -0.0771 | G25: -0.0589 | H25: -0.0262 | I25: -0.019
A26: Net Assets from Acquisitions | B26: -4000 | C26: -2500 | D26: -2000 | E26: -1911 | F26: -1606 | G26: - | H26: - | I26: -
A27: Sale of Fixed Assets & Businesses | B27: - | C27: 507 | D27: - | E27: - | F27: - | G27: -34810 | H27: -55642 | I27: -6654
A28: Purchase/Sale of Investments | B28: -22775 | C28: -16838 | D28: -28474 | E28: -42910 | F28: -42634 | G28: -34810 | H28: -55642 | I28: -6654
A29: Purchase of Investments | B29: -22775 | C29: -16838 | D29: -28474 | E29: -42910 | F29: -42634 | G29: -34810 | H29: -55642 | I29: -6654
A30: Net Investing Cash Flow | B30: -42277 | C30: -61853 | D30: -78796 | E30: -64886 | F30: -73597 | G30: -56874 | H30: -65994 | I30: -9255
A31: Net Investing Cash Flow Growth | B31: - | C31: -0.463 | D31: -0.2739 | E31: 0.1765 | F31: -0.1343 | G31: 0.2272 | H31: -0.1604 | I31: 0.8598
A32: Net Investing Cash Flow / Sales | B32: -0.1468 | C32: -0.2129 | D32: -0.2108 | E32: -0.172 | F32: -0.1933 | G32: -0.1519 | H32: -0.1668 | I32: -0.0676
A33: All values USD Thousands. | B33: 2013 | C33: 2014 | D33: 2015 | E33: 2016 | F33: 2017 | G33: 2018 | H33: 2019 | I33: 2020
A34: Change in Capital Stock | B34: 8768 | C34: 48766 | D34: 201302 | E34: -102922 | F34: -34605 | G34: -74915 | H34: -32144 | I34: -41244
A35: Repurchase of Common & Preferred Stk. | B35: - | C35: -3063 | D35: -34276 | E35: -118514 | F35: -51273 | G35: -83728 | H35: -35654 | I35: -41244
A36: Sale of Common & Preferred Stock | B36: 8768 | C36: 51829 | D36: 235578 | E36: 15592 | F36: 16668 | G36: 8813 | H36: 3510 | I36: -
A37: Proceeds from Stock Options | B37: -202 | C37: 40995 | D37: 199969 | E37: 2479 | F37: - | G37: 7796 | H37: 1106 | I37: -
A38: Other Proceeds from Sale of Stock | B38: 8970 | C38: 10834 | D38: 35609 | E38: 13113 | F38: 16668 | G38: 1017 | H38: 2404 | I38: -
A39: Issuance/Reduction of Debt, Net | B39: -13151 | C39: 4283 | D39: 23424 | E39: -2000 | F39: -2000 | G39: 12424 | H39: -20000 | I39: 286537
A40: Change in Current Debt | B40: -13151 | C40: - | D40: - | E40: - | F40: - | G40: - | H40: - | I40: -
A41: Change in Long-Term Debt | B41: - | C41: 4283 | D41: 23424 | E41: -2000 | F41: -2000 | G41: 12424 | H41: -20000 | I41: 286537
A42: Issuance of Long-Term Debt | B42: - | C42: 4283 | D42: 23757 | E42: - | F42: - | G42: 63091 | H42: 35000 | I42: 286537
A43: Reduction in Long-Term Debt | B43: - | C43: - | D43: -333 | E43: -2000 | F43: -2000 | G43: -50667 | H43: -55000 | I43: -
A44: Other Funds | B44: - | C44: -790 | D44: -19511 | E44: -20860 | F44: -20931 | G44: -8371 | H44: -4974 | I44: -4726
A45: Other Uses | B45: - | C45: -790 | D45: -19511 | E45: -20860 | F45: -20931 | G45: -8371 | H45: -4974 | I45: -4726
A46: Net Financing Cash Flow | B46: -4383 | C46: 52259 | D46: 205215 | E46: -125782 | F46: -57536 | G46: -70862 | H46: -57118 | I46: 240567
A47: Net Financing Cash Flow Growth | B47: - | C47: 12.9231 | D47: 2.9269 | E47: -1.6129 | F47: 0.5426 | G47: -0.2316 | H47: 0.194 | I47: 5.2118
A48: Net Financing Cash Flow / Sales | B48: -0.0152 | C48: 0.1799 | D48: 0.549 | E48: -0.3333 | F48: -0.1511 | G48: -0.1893 | H48: -0.1444 | I48: 1.7559
A49: Exchange Rate Effect | B49: -163 | C49: -54 | D49: 842 | E49: 106 | F49: -267 | G49: 629 | H49: 630 | I49: -406
A50: Net Change in Cash | B50: 8210 | C50: 76957 | D50: 210946 | E50: -112690 | F50: -46034 | G50: -17135 | H50: -32106 | I50: 207895
A51: Free Cash Flow | B51: 42017 | C51: 46501 | D51: 40428 | E51: 62594 | F51: 61223 | G51: 96604 | H51: 82955 | I51: -23708
A52: Free Cash Flow Growth | B52: - | C52: =(C51-B51)/B51 -> 0.1067187091 | D52: =(D51-C51)/C51 -> -0.1305993419 | E52: 0.548283368 | F52: -0.0219030578 | G52: 0.5779 | H52: -0.1413 | I52: -1.2858
A53: Pessimistic FCF Growth | F53: =AVERAGE(B52:F52) -> 0.1256249193
A54: Optimistic FCF Growth | F54: =AVERAGE(E52:F52) -> 0.2631901551
A55: Free Cash Flow Yield | B55: - | C55: - | D55: - | E55: - | F55: 0.0404 | G55: - | H55: - | I55: -0.0222

Sheet Valuation
A1: IMAX Corporation - Valuation | C1: Formula
A2: Free cash flow (FCF) year ending 31 Dec. 2020 | B2: =ProForma!I186 -> -23708 | C2: =getformula(B2) -> <-- =ProForma!I186
A3: Growth rate of FCF, years 1-5 (optimistic) | B3: =ProForma!I188 -> -0.04952546309 | C3: =getformula(B3) -> <-- =ProForma!I188
A4: Long-term FCF growth rate (pessimistic) | B4: =ProForma!I189 -> -0.713540824 | C4: <-- =ProForma!I189
A5: WACC | B5: =WACC!B33*0.01 -> 0.1517805421 | C5: <-- =WACC!B33*0.01
B7: 2020 | D7: 2021 | E7: 2022 | F7: 2023 | G7: 2024 | H7: 2025 | I7: Formula
C8: FCF (Forecast) | D8: =$B$2*(1+$B$3) -> -22533.85032 | E8: =D$8*(1+$B$3) -> -21417.85095 | F8: =E$8*(1+$B$3) -> -20357.12196 | G8: =F$8*(1+$B$3) -> -19348.92607 | H8: =G$8*(1+$B$3) -> -18390.66155 | I8: =getformula(H8) -> <-- =G$8*(1+$B$3)
C9: Terminal value | H9: =H8*(1+B4)/(B5-B4) -> -6088.112417 | I9: =getformula(H9) -> <-- =H8*(1+B4)/(B5-B4)
C10: Total | D10: =SUM(D8:D9) -> -22533.85032 | E10: =SUM(E8:E9) -> -21417.85095 | F10: -20357.12196 | G10: -19348.92607 | H10: -24478.77396 | I10: =getformula(H10) -> <-- =SUM(H8:H9)
A12: Enterprise value | B12: =NPV(B5,D10:H10)*(1+B5)^0.5 -> -77382.24305 | C12: =getformula(B12) -> <-- =NPV(B5,D10:H10)*(1+B5)^0.5
A13: Add back initial cash and marketable securities | B13: =ProForma!I58 -> 317379 | C13: =getformula(B13) -> <-- =ProForma!I58
A14: Subtract out 2020 financial liabilities | B14: =ProForma!I122 -> 532983 | C14: =getformula(B14) -> <-- =ProForma!I122
A15: Equity Value | B15: =B12+B13-B14 -> -292986.243 | C15: <-- =B12+B13-B14
A16: Per Share (1 million shares outstanding) | B16: =B15/1000000 -> -0.292986243 | C16: <-- =B15/1000000

Sheet WACC
A1: EQUITY | B1: in thousands | C1: Formula
A2: Shares Outstanding | B2: =ProForma!I47 -> 59237 | C2: =getformula(B2) -> <-- =ProForma!I47
A3: Share price | B3: 21.39 | C3: =getformula(B3) -> <-- 21.39
A4: Equity value ("market cap") | B4: =B3*B2 -> 1267079.43 | C4: <-- =B3*B2
A6: DEBT | B6: =ProForma!K116 -> 120552.6667 | C6: =getformula(B6) -> <-- =ProForma!K116
A8: Cost of Equity (based on CAPM) | B8: =B11+(B10*B22) -> 16.61664247 | C8: =getformula(B8) -> <-- =B11+(B10*B22)
A9: Risk-Free Rate of Return + Beta of Asset * (Expected Return of the Market - Risk-Free Rate of Return)
A10: Beta | B10: 0.99 | C10: =getformula(B10) -> <-- 0.99
A11: 10 year Treasury Rate | B11: ='10 year Treasury Rate'!B2622*0.01 -> 0.01996172414 | C11: <-- ='10 year Treasury Rate'!B2622*0.01
A12: Expected Market Return (as of 11/10/2021))
A13: S&P500 Rate of Return | B13: SPY | C13: <-- SPY
A14: YTD | B14: 15.25 | C14: <-- 15.25
A15: 1-Month | B15: 2.25 | C15: <-- 2.25
A16: 3-Month | B16: 8.36 | C16: <-- 8.36
A17: 1-Year | B17: 40.9 | C17: <-- 40.9
A18: 3-Year | B18: 18.51 | C18: <-- 18.51
A19: 5-Year | B19: 17.51 | C19: <-- 17.51
A20: 10-Year | B20: 14.71 | C20: <-- 14.71
A21: Average | B21: =AVERAGE(B14:B20) -> 16.78428571 | C21: <-- =AVERAGE(B14:B20)
A22: Market Premium | B22: =B21-B11 -> 16.76432399 | C22: <-- =B21-B11
A24: Cost of Debt | B24: =B25/B26 -> 0.05814885887 | C24: =getformula(B24) -> <-- =B25/B26
A25: Interest Expense | B25: =ProForma!I23 -> 7010 | C25: <-- =ProForma!I23
A26: Latest 3 Year Average Debt | B26: =B6 -> 120552.6667 | C26: <-- =B6
A28: Weight of Equity (E/(E+D)) | B28: =B4/(B4+B6) -> 0.9131234663 | C28: =getformula(B28) -> <-- =B4/(B4+B6)
A29: Weight of Debt (D/(E+D)) | B29: =B6/(B4+B6) -> 0.08687653374 | C29: =getformula(B29) -> <-- =B6/(B4+B6)
A31: Tax Rate | B31: ='Tax Rate'!K5 -> 0.008658065948 | C31: =getformula(B31) -> <-- ='Tax Rate'!K5
A33: WACC | B33: =(B28*B8)+(B29*B24)*(1-B31) -> 15.17805421 | C33: =getformula(B33) -> <-- =(B28*B8)+(B29*B24)*(1-B31)

Sheet Tax Rate
B1: Formula | C1: 2013 | D1: 2014 | E1: 2015 | F1: 2016 | G1: 2017 | H1: 2018 | I1: 2019 | J1: 2020 | K1: Average Tax Rate | L1: Formula
A2: Income Before Tax | C2: 63810 | D2: 57351 | E2: 87078 | F2: 57853 | G2: 30011 | H2: 43605 | I2: 75336 | J2: -129124 | K2: =AVERAGE(C2:J2) -> 35740 | L2: =getformula(K2) -> <-- =AVERAGE(C2:J2)
A3: Income Tax Expense | C3: 16629 | D3: 14466 | E3: 20052 | F3: 16212 | G3: 16790 | H3: 9518 | I3: 16768 | J3: 26504 | K3: =AVERAGE(C3:J3) -> 17117.375 | L3: =getformula(K3) -> <-- =AVERAGE(C3:J3)
A4: 5 Year Tax Rate | B4: =getformula2(C4) -> --> =C3/C2 | C4: =C3/C2 -> 0.2606017866 | D4: 0.2522362295 | E4: 0.230276304 | F4: 0.2802274731 | G4: 0.5594615308 | H4: 0.2182777204 | I4: 0.222576192 | J4: -0.2052600601 | K4: =AVERAGE(C4:G4) -> 0.3165606648 | L4: =getformula(K4) -> <-- =AVERAGE(C4:G4)
A5: Latest 2 Year Tax Rate | K5: =AVERAGE(I4:J4) -> 0.008658065948 | L5: =getformula(K5) -> <-- =AVERAGE(I4:J4)

Sheet 10 year Treasury Rate
A1: FRED Graph Observations
A2: Federal Reserve Economic Data
A3: Link: https://fred.stlouisfed.org
A4: Help: https://fredhelp.stlouisfed.org
A5: Economic Research Division
A6: Federal Reserve Bank of St. Louis
A8: DGS10 | B8: Market Yield on U.S. Treasury Securities at 10-Year Constant Maturity, Percent, Daily, Not Seasonally Adjusted
A10: Frequency: Daily
A11: observation_date | B11: DGS10
A12: 2011-06-22 | B12: 3.01
A13: 2011-06-23 | B13: 2.93
A14: 2011-06-24 | B14: 2.88
A15: 2011-06-27 | B15: 2.95
A16: 2011-06-28 | B16: 3.05
A17: 2011-06-29 | B17: 3.14
A18: 2011-06-30 | B18: 3.18
A19: 2011-07-01 | B19: 3.22
A20: 2011-07-04 | B20: 0
A21: 2011-07-05 | B21: 3.16
A22: 2011-07-06 | B22: 3.12
A23: 2011-07-07 | B23: 3.17
A24: 2011-07-08 | B24: 3.03
A25: 2011-07-11 | B25: 2.94
A26: 2011-07-12 | B26: 2.92
A27: 2011-07-13 | B27: 2.92
A28: 2011-07-14 | B28: 2.98
A29: 2011-07-15 | B29: 2.94
A30: 2011-07-18 | B30: 2.94
A31: 2011-07-19 | B31: 2.91
A32: 2011-07-20 | B32: 2.96
A33: 2011-07-21 | B33: 3.03
A34: 2011-07-22 | B34: 2.99
A35: 2011-07-25 | B35: 3.03
A36: 2011-07-26 | B36: 2.99
A37: 2011-07-27 | B37: 3.01
A38: 2011-07-28 | B38: 2.98
A39: 2011-07-29 | B39: 2.82
A40: 2011-08-01 | B40: 2.77
A41: 2011-08-02 | B41: 2.66
A42: 2011-08-03 | B42: 2.64
A43: 2011-08-04 | B43: 2.47
A44: 2011-08-05 | B44: 2.58
A45: 2011-08-08 | B45: 2.4
A46: 2011-08-09 | B46: 2.2
A47: 2011-08-10 | B47: 2.17
A48: 2011-08-11 | B48: 2.34
A49: 2011-08-12 | B49: 2.24
A50: 2011-08-15 | B50: 2.29
A51: 2011-08-16 | B51: 2.23
A52: 2011-08-17 | B52: 2.17
A53: 2011-08-18 | B53: 2.08
A54: 2011-08-19 | B54: 2.07
A55: 2011-08-22 | B55: 2.1
A56: 2011-08-23 | B56: 2.15
A57: 2011-08-24 | B57: 2.29
A58: 2011-08-25 | B58: 2.23
A59: 2011-08-26 | B59: 2.19
A60: 2011-08-29 | B60: 2.28
A61: 2011-08-30 | B61: 2.19
A62: 2011-08-31 | B62: 2.23
A63: 2011-09-01 | B63: 2.15
A64: 2011-09-02 | B64: 2.02
A65: 2011-09-05 | B65: 0
A66: 2011-09-06 | B66: 1.98
A67: 2011-09-07 | B67: 2.05
A68: 2011-09-08 | B68: 2
A69: 2011-09-09 | B69: 1.93
A70: 2011-09-12 | B70: 1.94
A71: 2011-09-13 | B71: 2
A72: 2011-09-14 | B72: 2.03
A73: 2011-09-15 | B73: 2.09
A74: 2011-09-16 | B74: 2.08
A75: 2011-09-19 | B75: 1.97
A76: 2011-09-20 | B76: 1.95
A77: 2011-09-21 | B77: 1.88
A78: 2011-09-22 | B78: 1.72
A79: 2011-09-23 | B79: 1.84
A80: 2011-09-26 | B80: 1.91
A81: 2011-09-27 | B81: 2
A82: 2011-09-28 | B82: 2.03
A83: 2011-09-29 | B83: 1.99
A84: 2011-09-30 | B84: 1.92
A85: 2011-10-03 | B85: 1.8
A86: 2011-10-04 | B86: 1.81
A87: 2011-10-05 | B87: 1.92
A88: 2011-10-06 | B88: 2.01
A89: 2011-10-07 | B89: 2.1
A90: 2011-10-10 | B90: 0
A91: 2011-10-11 | B91: 2.18
A92: 2011-10-12 | B92: 2.24
A93: 2011-10-13 | B93: 2.19
A94: 2011-10-14 | B94: 2.26
A95: 2011-10-17 | B95: 2.18
A96: 2011-10-18 | B96: 2.19
A97: 2011-10-19 | B97: 2.18
A98: 2011-10-20 | B98: 2.2
A99: 2011-10-21 | B99: 2.23
A100: 2011-10-24 | B100: 2.25
A101: 2011-10-25 | B101: 2.14
A102: 2011-10-26 | B102: 2.23
A103: 2011-10-27 | B103: 2.42
A104: 2011-10-28 | B104: 2.34
A105: 2011-10-31 | B105: 2.17
A106: 2011-11-01 | B106: 2.01
A107: 2011-11-02 | B107: 2.03
A108: 2011-11-03 | B108: 2.09
A109: 2011-11-04 | B109: 2.06
A110: 2011-11-07 | B110: 2.04
A111: 2011-11-08 | B111: 2.1
A112: 2011-11-09 | B112: 2
A113: 2011-11-10 | B113: 2.04
A114: 2011-11-11 | B114: 0
A115: 2011-11-14 | B115: 2.04
A116: 2011-11-15 | B116: 2.06
A117: 2011-11-16 | B117: 2.01
A118: 2011-11-17 | B118: 1.96
A119: 2011-11-18 | B119: 2.01
A120: 2011-11-21 | B120: 1.97
A121: 2011-11-22 | B121: 1.94
A122: 2011-11-23 | B122: 1.89
A123: 2011-11-24 | B123: 0
A124: 2011-11-25 | B124: 1.97
A125: 2011-11-28 | B125: 1.97
A126: 2011-11-29 | B126: 2
A127: 2011-11-30 | B127: 2.08
A128: 2011-12-01 | B128: 2.11
A129: 2011-12-02 | B129: 2.05
A130: 2011-12-05 | B130: 2.04
A131: 2011-12-06 | B131: 2.08
A132: 2011-12-07 | B132: 2.02
A133: 2011-12-08 | B133: 1.99
A134: 2011-12-09 | B134: 2.07
A135: 2011-12-12 | B135: 2.03
A136: 2011-12-13 | B136: 1.96
A137: 2011-12-14 | B137: 1.92
A138: 2011-12-15 | B138: 1.92
A139: 2011-12-16 | B139: 1.86
A140: 2011-12-19 | B140: 1.82
A141: 2011-12-20 | B141: 1.94
A142: 2011-12-21 | B142: 1.98
A143: 2011-12-22 | B143: 1.97
A144: 2011-12-23 | B144: 2.03
A145: 2011-12-26 | B145: 0
A146: 2011-12-27 | B146: 2.02
A147: 2011-12-28 | B147: 1.93
A148: 2011-12-29 | B148: 1.91
A149: 2011-12-30 | B149: 1.89
A150: 2012-01-02 | B150: 0
A151: 2012-01-03 | B151: 1.97
A152: 2012-01-04 | B152: 2
A153: 2012-01-05 | B153: 2.02
A154: 2012-01-06 | B154: 1.98
A155: 2012-01-09 | B155: 1.98
A156: 2012-01-10 | B156: 2
A157: 2012-01-11 | B157: 1.93
A158: 2012-01-12 | B158: 1.94
A159: 2012-01-13 | B159: 1.89
A160: 2012-01-16 | B160: 0
A161: 2012-01-17 | B161: 1.87
A162: 2012-01-18 | B162: 1.92
A163: 2012-01-19 | B163: 2.01
A164: 2012-01-20 | B164: 2.05
A165: 2012-01-23 | B165: 2.09
A166: 2012-01-24 | B166: 2.08
A167: 2012-01-25 | B167: 2.01
A168: 2012-01-26 | B168: 1.96
A169: 2012-01-27 | B169: 1.93
A170: 2012-01-30 | B170: 1.87
A171: 2012-01-31 | B171: 1.83
A172: 2012-02-01 | B172: 1.87
A173: 2012-02-02 | B173: 1.86
A174: 2012-02-03 | B174: 1.97
A175: 2012-02-06 | B175: 1.93
A176: 2012-02-07 | B176: 2
A177: 2012-02-08 | B177: 2.01
A178: 2012-02-09 | B178: 2.04
A179: 2012-02-10 | B179: 1.96
A180: 2012-02-13 | B180: 1.99
A181: 2012-02-14 | B181: 1.92
A182: 2012-02-15 | B182: 1.93
A183: 2012-02-16 | B183: 1.99
A184: 2012-02-17 | B184: 2.01
A185: 2012-02-20 | B185: 0
A186: 2012-02-21 | B186: 2.05
A187: 2012-02-22 | B187: 2.01
A188: 2012-02-23 | B188: 1.99
A189: 2012-02-24 | B189: 1.98
A190: 2012-02-27 | B190: 1.92
A191: 2012-02-28 | B191: 1.94
A192: 2012-02-29 | B192: 1.98
A193: 2012-03-01 | B193: 2.03
A194: 2012-03-02 | B194: 1.99
A195: 2012-03-05 | B195: 2
A196: 2012-03-06 | B196: 1.96
A197: 2012-03-07 | B197: 1.98
A198: 2012-03-08 | B198: 2.03
A199: 2012-03-09 | B199: 2.04
A200: 2012-03-12 | B200: 2.04
A201: 2012-03-13 | B201: 2.14
A202: 2012-03-14 | B202: 2.29
... 2420 more rows

Sheet Revenue vs. Cash Flow
B1: 2013 | C1: 2014 | D1: 2015 | E1: 2016 | F1: 2017 | G1: 2018 | H1: 2019 | I1: 2020
A2: Revenue | B2: 287937 | C2: 290541 | D2: 373805 | E2: 377334 | F2: 380767 | G2: 374401 | H2: 395664 | I2: 137003
A3: Free Cash Flow | B3: 42017 | C3: 46501 | D3: 40428 | E3: 62594 | F3: 61223 | G3: 96604 | H3: 82955 | I3: -23708

Sheet HPI
A1: Date | B1: Open | C1: High | D1: Low | E1: Close | F1: Volume | G1: Open (HPI Partial | H1: High (HPI Partial | I1: Low (HPI Partial | J1: Close (HPI Partial | K1: Volume(HPI Partial
A2: 2021-06-22 | B2: 21.31 | C2: 21.44 | D2: 20.98 | E2: 21.39 | F2: 299881 | G2: =IFERROR(VLOOKUP($A2,'HPI Partial'!$A$1:$F$347,2,FALSE),"-") -> 21.31 | H2: =IFERROR(VLOOKUP($A2,'HPI Partial'!$A$1:$F$347,3,FALSE),"-") -> 21.44 | I2: =IFERROR(VLOOKUP($A2,'HPI Partial'!$A$1:$F$347,4,FALSE),"-") -> 20.98 | J2: =IFERROR(VLOOKUP($A2,'HPI Partial'!$A$1:$F$347,5,FALSE),"-") -> 21.39 | K2: =IFERROR(VLOOKUP($A2,'HPI Partial'!$A$1:$F$347,6,FALSE),"-") -> 299881
A3: 2021-06-21 | B3: 21.72 | C3: 21.72 | D3: 21.04 | E3: 21.53 | F3: 398548 | G3: =IFERROR(VLOOKUP($A3,'HPI Partial'!$A$1:$F$347,2,FALSE),"-") -> 21.72 | H3: =IFERROR(VLOOKUP($A3,'HPI Partial'!$A$1:$F$347,3,FALSE),"-") -> 21.72 | I3: =IFERROR(VLOOKUP($A3,'HPI Partial'!$A$1:$F$347,4,FALSE),"-") -> 21.04 | J3: =IFERROR(VLOOKUP($A3,'HPI Partial'!$A$1:$F$347,5,FALSE),"-") -> 21.53 | K3: =IFERROR(VLOOKUP($A3,'HPI Partial'!$A$1:$F$347,6,FALSE),"-") -> 398548
A4: 2021-06-18 | B4: 21.6 | C4: 21.87 | D4: 21.37 | E4: 21.59 | F4: 612501 | G4: =IFERROR(VLOOKUP($A4,'HPI Partial'!$A$1:$F$347,2,FALSE),"-") -> 21.6 | H4: =IFERROR(VLOOKUP($A4,'HPI Partial'!$A$1:$F$347,3,FALSE),"-") -> 21.87 | I4: =IFERROR(VLOOKUP($A4,'HPI Partial'!$A$1:$F$347,4,FALSE),"-") -> 21.37 | J4: =IFERROR(VLOOKUP($A4,'HPI Partial'!$A$1:$F$347,5,FALSE),"-") -> 21.59 | K4: =IFERROR(VLOOKUP($A4,'HPI Partial'!$A$1:$F$347,6,FALSE),"-") -> 612501
A5: 2021-06-17 | B5: 21.88 | C5: 21.98 | D5: 21.65 | E5: 21.85 | F5: 375341 | G5: =IFERROR(VLOOKUP($A5,'HPI Partial'!$A$1:$F$347,2,FALSE),"-") -> 21.88 | H5: =IFERROR(VLOOKUP($A5,'HPI Partial'!$A$1:$F$347,3,FALSE),"-") -> 21.98 | I5: =IFERROR(VLOOKUP($A5,'HPI Partial'!$A$1:$F$347,4,FALSE),"-") -> 21.65 | J5: =IFERROR(VLOOKUP($A5,'HPI Partial'!$A$1:$F$347,5,FALSE),"-") -> 21.85 | K5: =IFERROR(VLOOKUP($A5,'HPI Partial'!$A$1:$F$347,6,FALSE),"-") -> 375341
A6: 2021-06-16 | B6: 21.71 | C6: 21.96 | D6: 21.33 | E6: 21.94 | F6: 572213 | G6: =IFERROR(VLOOKUP($A6,'HPI Partial'!$A$1:$F$347,2,FALSE),"-") -> 21.71 | H6: =IFERROR(VLOOKUP($A6,'HPI Partial'!$A$1:$F$347,3,FALSE),"-") -> 21.96 | I6: =IFERROR(VLOOKUP($A6,'HPI Partial'!$A$1:$F$347,4,FALSE),"-") -> 21.33 | J6: =IFERROR(VLOOKUP($A6,'HPI Partial'!$A$1:$F$347,5,FALSE),"-") -> 21.94 | K6: =IFERROR(VLOOKUP($A6,'HPI Partial'!$A$1:$F$347,6,FALSE),"-") -> 572213
A7: 2021-06-15 | B7: 22.38 | C7: 22.469 | D7: 21.82 | E7: 21.83 | F7: 316919 | G7: =IFERROR(VLOOKUP($A7,'HPI Partial'!$A$1:$F$347,2,FALSE),"-") -> 22.38 | H7: =IFERROR(VLOOKUP($A7,'HPI Partial'!$A$1:$F$347,3,FALSE),"-") -> 22.469 | I7: =IFERROR(VLOOKUP($A7,'HPI Partial'!$A$1:$F$347,4,FALSE),"-") -> 21.82 | J7: =IFERROR(VLOOKUP($A7,'HPI Partial'!$A$1:$F$347,5,FALSE),"-") -> 21.83 | K7: =IFERROR(VLOOKUP($A7,'HPI Partial'!$A$1:$F$347,6,FALSE),"-") -> 316919
A8: 2021-06-14 | B8: 22.79 | C8: 23.09 | D8: 22.2 | E8: 22.33 | F8: 472910 | G8: =IFERROR(VLOOKUP($A8,'HPI Partial'!$A$1:$F$347,2,FALSE),"-") -> 22.79 | H8: =IFERROR(VLOOKUP($A8,'HPI Partial'!$A$1:$F$347,3,FALSE),"-") -> 23.09 | I8: =IFERROR(VLOOKUP($A8,'HPI Partial'!$A$1:$F$347,4,FALSE),"-") -> 22.2 | J8: =IFERROR(VLOOKUP($A8,'HPI Partial'!$A$1:$F$347,5,FALSE),"-") -> 22.33 | K8: =IFERROR(VLOOKUP($A8,'HPI Partial'!$A$1:$F$347,6,FALSE),"-") -> 472910
A9: 2021-06-11 | B9: 22.59 | C9: 22.79 | D9: 22.42 | E9: 22.74 | F9: 370353 | G9: =IFERROR(VLOOKUP($A9,'HPI Partial'!$A$1:$F$347,2,FALSE),"-") -> 22.59 | H9: =IFERROR(VLOOKUP($A9,'HPI Partial'!$A$1:$F$347,3,FALSE),"-") -> 22.79 | I9: =IFERROR(VLOOKUP($A9,'HPI Partial'!$A$1:$F$347,4,FALSE),"-") -> 22.42 | J9: =IFERROR(VLOOKUP($A9,'HPI Partial'!$A$1:$F$347,5,FALSE),"-") -> 22.74 | K9: =IFERROR(VLOOKUP($A9,'HPI Partial'!$A$1:$F$347,6,FALSE),"-") -> 370353
A10: 2021-06-10 | B10: 23.28 | C10: 23.35 | D10: 22.49 | E10: 22.55 | F10: 874514 | G10: =IFERROR(VLOOKUP($A10,'HPI Partial'!$A$1:$F$347,2,FALSE),"-") -> 23.28 | H10: =IFERROR(VLOOKUP($A10,'HPI Partial'!$A$1:$F$347,3,FALSE),"-") -> 23.35 | I10: =IFERROR(VLOOKUP($A10,'HPI Partial'!$A$1:$F$347,4,FALSE),"-") -> 22.49 | J10: =IFERROR(VLOOKUP($A10,'HPI Partial'!$A$1:$F$347,5,FALSE),"-") -> 22.55 | K10: =IFERROR(VLOOKUP($A10,'HPI Partial'!$A$1:$F$347,6,FALSE),"-") -> 874514
A11: 2021-06-09 | B11: 23.51 | C11: 23.54 | D11: 23.03 | E11: 23.23 | F11: 659936 | G11: =IFERROR(VLOOKUP($A11,'HPI Partial'!$A$1:$F$347,2,FALSE),"-") -> 23.51 | H11: =IFERROR(VLOOKUP($A11,'HPI Partial'!$A$1:$F$347,3,FALSE),"-") -> 23.54 | I11: =IFERROR(VLOOKUP($A11,'HPI Partial'!$A$1:$F$347,4,FALSE),"-") -> 23.03 | J11: =IFERROR(VLOOKUP($A11,'HPI Partial'!$A$1:$F$347,5,FALSE),"-") -> 23.23 | K11: =IFERROR(VLOOKUP($A11,'HPI Partial'!$A$1:$F$347,6,FALSE),"-") -> 659936
A12: 2021-06-08 | B12: 22.15 | C12: 23.375 | D12: 21.81 | E12: 23.23 | F12: 1592533 | G12: =IFERROR(VLOOKUP($A12,'HPI Partial'!$A$1:$F$347,2,FALSE),"-") -> 22.15 | H12: =IFERROR(VLOOKUP($A12,'HPI Partial'!$A$1:$F$347,3,FALSE),"-") -> 23.375 | I12: =IFERROR(VLOOKUP($A12,'HPI Partial'!$A$1:$F$347,4,FALSE),"-") -> 21.81 | J12: =IFERROR(VLOOKUP($A12,'HPI Partial'!$A$1:$F$347,5,FALSE),"-") -> 23.23 | K12: =IFERROR(VLOOKUP($A12,'HPI Partial'!$A$1:$F$347,6,FALSE),"-") -> 1592533
A13: 2021-06-07 | B13: 21.63 | C13: 22.11 | D13: 21.48 | E13: 22.04 | F13: 985675 | G13: =IFERROR(VLOOKUP($A13,'HPI Partial'!$A$1:$F$347,2,FALSE),"-") -> 21.63 | H13: =IFERROR(VLOOKUP($A13,'HPI Partial'!$A$1:$F$347,3,FALSE),"-") -> 22.11 | I13: =IFERROR(VLOOKUP($A13,'HPI Partial'!$A$1:$F$347,4,FALSE),"-") -> 21.48 | J13: =IFERROR(VLOOKUP($A13,'HPI Partial'!$A$1:$F$347,5,FALSE),"-") -> 22.04 | K13: =IFERROR(VLOOKUP($A13,'HPI Partial'!$A$1:$F$347,6,FALSE),"-") -> 985675
A14: 2021-06-04 | B14: 22.03 | C14: 22.39 | D14: 21.42 | E14: 21.43 | F14: 660975 | G14: =IFERROR(VLOOKUP($A14,'HPI Partial'!$A$1:$F$347,2,FALSE),"-") -> 22.03 | H14: =IFERROR(VLOOKUP($A14,'HPI Partial'!$A$1:$F$347,3,FALSE),"-") -> 22.39 | I14: =IFERROR(VLOOKUP($A14,'HPI Partial'!$A$1:$F$347,4,FALSE),"-") -> 21.42 | J14: =IFERROR(VLOOKUP($A14,'HPI Partial'!$A$1:$F$347,5,FALSE),"-") -> 21.43 | K14: =IFERROR(VLOOKUP($A14,'HPI Partial'!$A$1:$F$347,6,FALSE),"-") -> 660975
A15: 2021-06-03 | B15: 21.85 | C15: 22.31 | D15: 21.14 | E15: 21.93 | F15: 1631897 | G15: =IFERROR(VLOOKUP($A15,'HPI Partial'!$A$1:$F$347,2,FALSE),"-") -> 21.85 | H15: =IFERROR(VLOOKUP($A15,'HPI Partial'!$A$1:$F$347,3,FALSE),"-") -> 22.31 | I15: =IFERROR(VLOOKUP($A15,'HPI Partial'!$A$1:$F$347,4,FALSE),"-") -> 21.14 | J15: =IFERROR(VLOOKUP($A15,'HPI Partial'!$A$1:$F$347,5,FALSE),"-") -> 21.93 | K15: =IFERROR(VLOOKUP($A15,'HPI Partial'!$A$1:$F$347,6,FALSE),"-") -> 1631897
A16: 2021-06-02 | B16: 21 | C16: 22.32 | D16: 20.64 | E16: 21.99 | F16: 1630813 | G16: =IFERROR(VLOOKUP($A16,'HPI Partial'!$A$1:$F$347,2,FALSE),"-") -> 21 | H16: =IFERROR(VLOOKUP($A16,'HPI Partial'!$A$1:$F$347,3,FALSE),"-") -> 22.32 | I16: =IFERROR(VLOOKUP($A16,'HPI Partial'!$A$1:$F$347,4,FALSE),"-") -> 20.64 | J16: =IFERROR(VLOOKUP($A16,'HPI Partial'!$A$1:$F$347,5,FALSE),"-") -> 21.99 | K16: =IFERROR(VLOOKUP($A16,'HPI Partial'!$A$1:$F$347,6,FALSE),"-") -> 1630813
A17: 2021-06-01 | B17: 21.63 | C17: 22.405 | D17: 21.54 | E17: 22.27 | F17: 809740 | G17: =IFERROR(VLOOKUP($A17,'HPI Partial'!$A$1:$F$347,2,FALSE),"-") -> 21.63 | H17: =IFERROR(VLOOKUP($A17,'HPI Partial'!$A$1:$F$347,3,FALSE),"-") -> 22.405 | I17: =IFERROR(VLOOKUP($A17,'HPI Partial'!$A$1:$F$347,4,FALSE),"-") -> 21.54 | J17: =IFERROR(VLOOKUP($A17,'HPI Partial'!$A$1:$F$347,5,FALSE),"-") -> 22.27 | K17: =IFERROR(VLOOKUP($A17,'HPI Partial'!$A$1:$F$347,6,FALSE),"-") -> 809740
A18: 2021-05-28 | B18: 22.82 | C18: 23.57 | D18: 21.525 | E18: 21.61 | F18: 1180971 | G18: =IFERROR(VLOOKUP($A18,'HPI Partial'!$A$1:$F$347,2,FALSE),"-") -> 22.82 | H18: =IFERROR(VLOOKUP($A18,'HPI Partial'!$A$1:$F$347,3,FALSE),"-") -> 23.57 | I18: =IFERROR(VLOOKUP($A18,'HPI Partial'!$A$1:$F$347,4,FALSE),"-") -> 21.525 | J18: =IFERROR(VLOOKUP($A18,'HPI Partial'!$A$1:$F$347,5,FALSE),"-") -> 21.61 | K18: =IFERROR(VLOOKUP($A18,'HPI Partial'!$A$1:$F$347,6,FALSE),"-") -> 1180971
A19: 2021-05-27 | B19: 21.62 | C19: 22.705 | D19: 21.51 | E19: 22.59 | F19: 1615618 | G19: =IFERROR(VLOOKUP($A19,'HPI Partial'!$A$1:$F$347,2,FALSE),"-") -> 21.62 | H19: =IFERROR(VLOOKUP($A19,'HPI Partial'!$A$1:$F$347,3,FALSE),"-") -> 22.705 | I19: =IFERROR(VLOOKUP($A19,'HPI Partial'!$A$1:$F$347,4,FALSE),"-") -> 21.51 | J19: =IFERROR(VLOOKUP($A19,'HPI Partial'!$A$1:$F$347,5,FALSE),"-") -> 22.59 | K19: =IFERROR(VLOOKUP($A19,'HPI Partial'!$A$1:$F$347,6,FALSE),"-") -> 1615618
A20: 2021-05-26 | B20: 21.75 | C20: 22.12 | D20: 21.545 | E20: 21.6 | F20: 734397 | G20: =IFERROR(VLOOKUP($A20,'HPI Partial'!$A$1:$F$347,2,FALSE),"-") -> 21.75 | H20: =IFERROR(VLOOKUP($A20,'HPI Partial'!$A$1:$F$347,3,FALSE),"-") -> 22.12 | I20: =IFERROR(VLOOKUP($A20,'HPI Partial'!$A$1:$F$347,4,FALSE),"-") -> 21.545 | J20: =IFERROR(VLOOKUP($A20,'HPI Partial'!$A$1:$F$347,5,FALSE),"-") -> 21.6 | K20: =IFERROR(VLOOKUP($A20,'HPI Partial'!$A$1:$F$347,6,FALSE),"-") -> 734397
A21: 2021-05-25 | B21: 21.95 | C21: 22.23 | D21: 21.55 | E21: 21.61 | F21: 601958 | G21: =IFERROR(VLOOKUP($A21,'HPI Partial'!$A$1:$F$347,2,FALSE),"-") -> 21.95 | H21: =IFERROR(VLOOKUP($A21,'HPI Partial'!$A$1:$F$347,3,FALSE),"-") -> 22.23 | I21: =IFERROR(VLOOKUP($A21,'HPI Partial'!$A$1:$F$347,4,FALSE),"-") -> 21.55 | J21: =IFERROR(VLOOKUP($A21,'HPI Partial'!$A$1:$F$347,5,FALSE),"-") -> 21.61 | K21: =IFERROR(VLOOKUP($A21,'HPI Partial'!$A$1:$F$347,6,FALSE),"-") -> 601958
A22: 2021-05-24 | B22: 21.75 | C22: 22.04 | D22: 21.4 | E22: 21.79 | F22: 479138 | G22: =IFERROR(VLOOKUP($A22,'HPI Partial'!$A$1:$F$347,2,FALSE),"-") -> 21.75 | H22: =IFERROR(VLOOKUP($A22,'HPI Partial'!$A$1:$F$347,3,FALSE),"-") -> 22.04 | I22: =IFERROR(VLOOKUP($A22,'HPI Partial'!$A$1:$F$347,4,FALSE),"-") -> 21.4 | J22: =IFERROR(VLOOKUP($A22,'HPI Partial'!$A$1:$F$347,5,FALSE),"-") -> 21.79 | K22: =IFERROR(VLOOKUP($A22,'HPI Partial'!$A$1:$F$347,6,FALSE),"-") -> 479138
A23: 2021-05-21 | B23: 21.4 | C23: 21.5701 | D23: 21.16 | E23: 21.38 | F23: 534789 | G23: =IFERROR(VLOOKUP($A23,'HPI Partial'!$A$1:$F$347,2,FALSE),"-") -> 21.4 | H23: =IFERROR(VLOOKUP($A23,'HPI Partial'!$A$1:$F$347,3,FALSE),"-") -> 21.5701 | I23: =IFERROR(VLOOKUP($A23,'HPI Partial'!$A$1:$F$347,4,FALSE),"-") -> 21.16 | J23: =IFERROR(VLOOKUP($A23,'HPI Partial'!$A$1:$F$347,5,FALSE),"-") -> 21.38 | K23: =IFERROR(VLOOKUP($A23,'HPI Partial'!$A$1:$F$347,6,FALSE),"-") -> 534789
A24: 2021-05-20 | B24: 20.82 | C24: 21.26 | D24: 20.57 | E24: 21.21 | F24: 703371 | G24: =IFERROR(VLOOKUP($A24,'HPI Partial'!$A$1:$F$347,2,FALSE),"-") -> 20.82 | H24: =IFERROR(VLOOKUP($A24,'HPI Partial'!$A$1:$F$347,3,FALSE),"-") -> 21.26 | I24: =IFERROR(VLOOKUP($A24,'HPI Partial'!$A$1:$F$347,4,FALSE),"-") -> 20.57 | J24: =IFERROR(VLOOKUP($A24,'HPI Partial'!$A$1:$F$347,5,FALSE),"-") -> 21.21 | K24: =IFERROR(VLOOKUP($A24,'HPI Partial'!$A$1:$F$347,6,FALSE),"-") -> 703371
A25: 2021-05-19 | B25: 20.17 | C25: 20.82 | D25: 19.96 | E25: 20.8 | F25: 843101 | G25: =IFERROR(VLOOKUP($A25,'HPI Partial'!$A$1:$F$347,2,FALSE),"-") -> 20.17 | H25: =IFERROR(VLOOKUP($A25,'HPI Partial'!$A$1:$F$347,3,FALSE),"-") -> 20.82 | I25: =IFERROR(VLOOKUP($A25,'HPI Partial'!$A$1:$F$347,4,FALSE),"-") -> 19.96 | J25: =IFERROR(VLOOKUP($A25,'HPI Partial'!$A$1:$F$347,5,FALSE),"-") -> 20.8 | K25: =IFERROR(VLOOKUP($A25,'HPI Partial'!$A$1:$F$347,6,FALSE),"-") -> 843101
A26: 2021-05-18 | B26: 20.84 | C26: 21.05 | D26: 20.57 | E26: 20.57 | F26: 709025 | G26: =IFERROR(VLOOKUP($A26,'HPI Partial'!$A$1:$F$347,2,FALSE),"-") -> 20.84 | H26: =IFERROR(VLOOKUP($A26,'HPI Partial'!$A$1:$F$347,3,FALSE),"-") -> 21.05 | I26: =IFERROR(VLOOKUP($A26,'HPI Partial'!$A$1:$F$347,4,FALSE),"-") -> 20.57 | J26: =IFERROR(VLOOKUP($A26,'HPI Partial'!$A$1:$F$347,5,FALSE),"-") -> 20.57 | K26: =IFERROR(VLOOKUP($A26,'HPI Partial'!$A$1:$F$347,6,FALSE),"-") -> 709025
A27: 2021-05-17 | B27: 20.81 | C27: 20.955 | D27: 20.52 | E27: 20.87 | F27: 413453 | G27: =IFERROR(VLOOKUP($A27,'HPI Partial'!$A$1:$F$347,2,FALSE),"-") -> 20.81 | H27: =IFERROR(VLOOKUP($A27,'HPI Partial'!$A$1:$F$347,3,FALSE),"-") -> 20.955 | I27: =IFERROR(VLOOKUP($A27,'HPI Partial'!$A$1:$F$347,4,FALSE),"-") -> 20.52 | J27: =IFERROR(VLOOKUP($A27,'HPI Partial'!$A$1:$F$347,5,FALSE),"-") -> 20.87 | K27: =IFERROR(VLOOKUP($A27,'HPI Partial'!$A$1:$F$347,6,FALSE),"-") -> 413453
A28: 2021-05-14 | B28: 20.61 | C28: 20.74 | D28: 20.235 | E28: 20.61 | F28: 1073757 | G28: =IFERROR(VLOOKUP($A28,'HPI Partial'!$A$1:$F$347,2,FALSE),"-") -> 20.61 | H28: =IFERROR(VLOOKUP($A28,'HPI Partial'!$A$1:$F$347,3,FALSE),"-") -> 20.74 | I28: =IFERROR(VLOOKUP($A28,'HPI Partial'!$A$1:$F$347,4,FALSE),"-") -> 20.235 | J28: =IFERROR(VLOOKUP($A28,'HPI Partial'!$A$1:$F$347,5,FALSE),"-") -> 20.61 | K28: =IFERROR(VLOOKUP($A28,'HPI Partial'!$A$1:$F$347,6,FALSE),"-") -> 1073757
A29: 2021-05-13 | B29: 19.72 | C29: 20.74 | D29: 19.65 | E29: 20.46 | F29: 796605 | G29: =IFERROR(VLOOKUP($A29,'HPI Partial'!$A$1:$F$347,2,FALSE),"-") -> 19.72 | H29: =IFERROR(VLOOKUP($A29,'HPI Partial'!$A$1:$F$347,3,FALSE),"-") -> 20.74 | I29: =IFERROR(VLOOKUP($A29,'HPI Partial'!$A$1:$F$347,4,FALSE),"-") -> 19.65 | J29: =IFERROR(VLOOKUP($A29,'HPI Partial'!$A$1:$F$347,5,FALSE),"-") -> 20.46 | K29: =IFERROR(VLOOKUP($A29,'HPI Partial'!$A$1:$F$347,6,FALSE),"-") -> 796605
A30: 2021-05-12 | B30: 20.37 | C30: 20.61 | D30: 19.58 | E30: 19.65 | F30: 850060 | G30: =IFERROR(VLOOKUP($A30,'HPI Partial'!$A$1:$F$347,2,FALSE),"-") -> 20.37 | H30: =IFERROR(VLOOKUP($A30,'HPI Partial'!$A$1:$F$347,3,FALSE),"-") -> 20.61 | I30: =IFERROR(VLOOKUP($A30,'HPI Partial'!$A$1:$F$347,4,FALSE),"-") -> 19.58 | J30: =IFERROR(VLOOKUP($A30,'HPI Partial'!$A$1:$F$347,5,FALSE),"-") -> 19.65 | K30: =IFERROR(VLOOKUP($A30,'HPI Partial'!$A$1:$F$347,6,FALSE),"-") -> 850060
A31: 2021-05-11 | B31: 20.39 | C31: 21.03 | D31: 20.35 | E31: 20.57 | F31: 413008 | G31: =IFERROR(VLOOKUP($A31,'HPI Partial'!$A$1:$F$347,2,FALSE),"-") -> 20.39 | H31: =IFERROR(VLOOKUP($A31,'HPI Partial'!$A$1:$F$347,3,FALSE),"-") -> 21.03 | I31: =IFERROR(VLOOKUP($A31,'HPI Partial'!$A$1:$F$347,4,FALSE),"-") -> 20.35 | J31: =IFERROR(VLOOKUP($A31,'HPI Partial'!$A$1:$F$347,5,FALSE),"-") -> 20.57 | K31: =IFERROR(VLOOKUP($A31,'HPI Partial'!$A$1:$F$347,6,FALSE),"-") -> 413008
A32: 2021-05-10 | B32: 21.05 | C32: 21.33 | D32: 20.89 | E32: 20.92 | F32: 408440 | G32: =IFERROR(VLOOKUP($A32,'HPI Partial'!$A$1:$F$347,2,FALSE),"-") -> 21.05 | H32: =IFERROR(VLOOKUP($A32,'HPI Partial'!$A$1:$F$347,3,FALSE),"-") -> 21.33 | I32: =IFERROR(VLOOKUP($A32,'HPI Partial'!$A$1:$F$347,4,FALSE),"-") -> 20.89 | J32: =IFERROR(VLOOKUP($A32,'HPI Partial'!$A$1:$F$347,5,FALSE),"-") -> 20.92 | K32: =IFERROR(VLOOKUP($A32,'HPI Partial'!$A$1:$F$347,6,FALSE),"-") -> 408440
A33: 2021-05-07 | B33: 20.25 | C33: 21.13 | D33: 20.15 | E33: 20.92 | F33: 630308 | G33: =IFERROR(VLOOKUP($A33,'HPI Partial'!$A$1:$F$347,2,FALSE),"-") -> 20.25 | H33: =IFERROR(VLOOKUP($A33,'HPI Partial'!$A$1:$F$347,3,FALSE),"-") -> 21.13 | I33: =IFERROR(VLOOKUP($A33,'HPI Partial'!$A$1:$F$347,4,FALSE),"-") -> 20.15 | J33: =IFERROR(VLOOKUP($A33,'HPI Partial'!$A$1:$F$347,5,FALSE),"-") -> 20.92 | K33: =IFERROR(VLOOKUP($A33,'HPI Partial'!$A$1:$F$347,6,FALSE),"-") -> 630308
A34: 2021-05-06 | B34: 20.76 | C34: 20.76 | D34: 20.08 | E34: 20.21 | F34: 560763 | G34: =IFERROR(VLOOKUP($A34,'HPI Partial'!$A$1:$F$347,2,FALSE),"-") -> 20.76 | H34: =IFERROR(VLOOKUP($A34,'HPI Partial'!$A$1:$F$347,3,FALSE),"-") -> 20.76 | I34: =IFERROR(VLOOKUP($A34,'HPI Partial'!$A$1:$F$347,4,FALSE),"-") -> 20.08 | J34: =IFERROR(VLOOKUP($A34,'HPI Partial'!$A$1:$F$347,5,FALSE),"-") -> 20.21 | K34: =IFERROR(VLOOKUP($A34,'HPI Partial'!$A$1:$F$347,6,FALSE),"-") -> 560763
A35: 2021-05-05 | B35: 21.33 | C35: 21.33 | D35: 20.62 | E35: 20.68 | F35: 507176 | G35: =IFERROR(VLOOKUP($A35,'HPI Partial'!$A$1:$F$347,2,FALSE),"-") -> 21.33 | H35: =IFERROR(VLOOKUP($A35,'HPI Partial'!$A$1:$F$347,3,FALSE),"-") -> 21.33 | I35: =IFERROR(VLOOKUP($A35,'HPI Partial'!$A$1:$F$347,4,FALSE),"-") -> 20.62 | J35: =IFERROR(VLOOKUP($A35,'HPI Partial'!$A$1:$F$347,5,FALSE),"-") -> 20.68 | K35: =IFERROR(VLOOKUP($A35,'HPI Partial'!$A$1:$F$347,6,FALSE),"-") -> 507176
A36: 2021-05-04 | B36: 21.08 | C36: 21.2 | D36: 20.56 | E36: 21.18 | F36: 606152 | G36: =IFERROR(VLOOKUP($A36,'HPI Partial'!$A$1:$F$347,2,FALSE),"-") -> 21.08 | H36: =IFERROR(VLOOKUP($A36,'HPI Partial'!$A$1:$F$347,3,FALSE),"-") -> 21.2 | I36: =IFERROR(VLOOKUP($A36,'HPI Partial'!$A$1:$F$347,4,FALSE),"-") -> 20.56 | J36: =IFERROR(VLOOKUP($A36,'HPI Partial'!$A$1:$F$347,5,FALSE),"-") -> 21.18 | K36: =IFERROR(VLOOKUP($A36,'HPI Partial'!$A$1:$F$347,6,FALSE),"-") -> 606152
A37: 2021-05-03 | B37: 20.97 | C37: 21.53 | D37: 20.89 | E37: 21.33 | F37: 734072 | G37: =IFERROR(VLOOKUP($A37,'HPI Partial'!$A$1:$F$347,2,FALSE),"-") -> 20.97 | H37: =IFERROR(VLOOKUP($A37,'HPI Partial'!$A$1:$F$347,3,FALSE),"-") -> 21.53 | I37: =IFERROR(VLOOKUP($A37,'HPI Partial'!$A$1:$F$347,4,FALSE),"-") -> 20.89 | J37: =IFERROR(VLOOKUP($A37,'HPI Partial'!$A$1:$F$347,5,FALSE),"-") -> 21.33 | K37: =IFERROR(VLOOKUP($A37,'HPI Partial'!$A$1:$F$347,6,FALSE),"-") -> 734072
A38: 2021-04-30 | B38: 21.14 | C38: 21.175 | D38: 20.5534 | E38: 20.62 | F38: 927372 | G38: =IFERROR(VLOOKUP($A38,'HPI Partial'!$A$1:$F$347,2,FALSE),"-") -> 21.14 | H38: =IFERROR(VLOOKUP($A38,'HPI Partial'!$A$1:$F$347,3,FALSE),"-") -> 21.175 | I38: =IFERROR(VLOOKUP($A38,'HPI Partial'!$A$1:$F$347,4,FALSE),"-") -> 20.5534 | J38: =IFERROR(VLOOKUP($A38,'HPI Partial'!$A$1:$F$347,5,FALSE),"-") -> 20.62 | K38: =IFERROR(VLOOKUP($A38,'HPI Partial'!$A$1:$F$347,6,FALSE),"-") -> 927372
A39: 2021-04-29 | B39: 21.63 | C39: 22.27 | D39: 20.53 | E39: 21.28 | F39: 1081809 | G39: =IFERROR(VLOOKUP($A39,'HPI Partial'!$A$1:$F$347,2,FALSE),"-") -> 21.63 | H39: =IFERROR(VLOOKUP($A39,'HPI Partial'!$A$1:$F$347,3,FALSE),"-") -> 22.27 | I39: =IFERROR(VLOOKUP($A39,'HPI Partial'!$A$1:$F$347,4,FALSE),"-") -> 20.53 | J39: =IFERROR(VLOOKUP($A39,'HPI Partial'!$A$1:$F$347,5,FALSE),"-") -> 21.28 | K39: =IFERROR(VLOOKUP($A39,'HPI Partial'!$A$1:$F$347,6,FALSE),"-") -> 1081809
A40: 2021-04-28 | B40: 21.74 | C40: 22.41 | D40: 21.7 | E40: 22.18 | F40: 683381 | G40: =IFERROR(VLOOKUP($A40,'HPI Partial'!$A$1:$F$347,2,FALSE),"-") -> 21.74 | H40: =IFERROR(VLOOKUP($A40,'HPI Partial'!$A$1:$F$347,3,FALSE),"-") -> 22.41 | I40: =IFERROR(VLOOKUP($A40,'HPI Partial'!$A$1:$F$347,4,FALSE),"-") -> 21.7 | J40: =IFERROR(VLOOKUP($A40,'HPI Partial'!$A$1:$F$347,5,FALSE),"-") -> 22.18 | K40: =IFERROR(VLOOKUP($A40,'HPI Partial'!$A$1:$F$347,6,FALSE),"-") -> 683381
A41: 2021-04-27 | B41: 22.6 | C41: 22.6 | D41: 21.92 | E41: 21.97 | F41: 453373 | G41: =IFERROR(VLOOKUP($A41,'HPI Partial'!$A$1:$F$347,2,FALSE),"-") -> 22.6 | H41: =IFERROR(VLOOKUP($A41,'HPI Partial'!$A$1:$F$347,3,FALSE),"-") -> 22.6 | I41: =IFERROR(VLOOKUP($A41,'HPI Partial'!$A$1:$F$347,4,FALSE),"-") -> 21.92 | J41: =IFERROR(VLOOKUP($A41,'HPI Partial'!$A$1:$F$347,5,FALSE),"-") -> 21.97 | K41: =IFERROR(VLOOKUP($A41,'HPI Partial'!$A$1:$F$347,6,FALSE),"-") -> 453373
A42: 2021-04-26 | B42: 21.94 | C42: 22.58 | D42: 21.94 | E42: 22.43 | F42: 654659 | G42: =IFERROR(VLOOKUP($A42,'HPI Partial'!$A$1:$F$347,2,FALSE),"-") -> 21.94 | H42: =IFERROR(VLOOKUP($A42,'HPI Partial'!$A$1:$F$347,3,FALSE),"-") -> 22.58 | I42: =IFERROR(VLOOKUP($A42,'HPI Partial'!$A$1:$F$347,4,FALSE),"-") -> 21.94 | J42: =IFERROR(VLOOKUP($A42,'HPI Partial'!$A$1:$F$347,5,FALSE),"-") -> 22.43 | K42: =IFERROR(VLOOKUP($A42,'HPI Partial'!$A$1:$F$347,6,FALSE),"-") -> 654659
A43: 2021-04-23 | B43: 21.88 | C43: 22.19 | D43: 21.72 | E43: 21.95 | F43: 863131 | G43: =IFERROR(VLOOKUP($A43,'HPI Partial'!$A$1:$F$347,2,FALSE),"-") -> 21.88 | H43: =IFERROR(VLOOKUP($A43,'HPI Partial'!$A$1:$F$347,3,FALSE),"-") -> 22.19 | I43: =IFERROR(VLOOKUP($A43,'HPI Partial'!$A$1:$F$347,4,FALSE),"-") -> 21.72 | J43: =IFERROR(VLOOKUP($A43,'HPI Partial'!$A$1:$F$347,5,FALSE),"-") -> 21.95 | K43: =IFERROR(VLOOKUP($A43,'HPI Partial'!$A$1:$F$347,6,FALSE),"-") -> 863131
A44: 2021-04-22 | B44: 21.26 | C44: 21.77 | D44: 20.98 | E44: 21.36 | F44: 392671 | G44: =IFERROR(VLOOKUP($A44,'HPI Partial'!$A$1:$F$347,2,FALSE),"-") -> 21.26 | H44: =IFERROR(VLOOKUP($A44,'HPI Partial'!$A$1:$F$347,3,FALSE),"-") -> 21.77 | I44: =IFERROR(VLOOKUP($A44,'HPI Partial'!$A$1:$F$347,4,FALSE),"-") -> 20.98 | J44: =IFERROR(VLOOKUP($A44,'HPI Partial'!$A$1:$F$347,5,FALSE),"-") -> 21.36 | K44: =IFERROR(VLOOKUP($A44,'HPI Partial'!$A$1:$F$347,6,FALSE),"-") -> 392671
A45: 2021-04-21 | B45: 20.49 | C45: 21.17 | D45: 20.39 | E45: 21.15 | F45: 791696 | G45: =IFERROR(VLOOKUP($A45,'HPI Partial'!$A$1:$F$347,2,FALSE),"-") -> 20.49 | H45: =IFERROR(VLOOKUP($A45,'HPI Partial'!$A$1:$F$347,3,FALSE),"-") -> 21.17 | I45: =IFERROR(VLOOKUP($A45,'HPI Partial'!$A$1:$F$347,4,FALSE),"-") -> 20.39 | J45: =IFERROR(VLOOKUP($A45,'HPI Partial'!$A$1:$F$347,5,FALSE),"-") -> 21.15 | K45: =IFERROR(VLOOKUP($A45,'HPI Partial'!$A$1:$F$347,6,FALSE),"-") -> 791696
A46: 2021-04-20 | B46: 21.72 | C46: 21.72 | D46: 20.37 | E46: 20.74 | F46: 643515 | G46: =IFERROR(VLOOKUP($A46,'HPI Partial'!$A$1:$F$347,2,FALSE),"-") -> 21.72 | H46: =IFERROR(VLOOKUP($A46,'HPI Partial'!$A$1:$F$347,3,FALSE),"-") -> 21.72 | I46: =IFERROR(VLOOKUP($A46,'HPI Partial'!$A$1:$F$347,4,FALSE),"-") -> 20.37 | J46: =IFERROR(VLOOKUP($A46,'HPI Partial'!$A$1:$F$347,5,FALSE),"-") -> 20.74 | K46: =IFERROR(VLOOKUP($A46,'HPI Partial'!$A$1:$F$347,6,FALSE),"-") -> 643515
A47: 2021-04-19 | B47: 21.09 | C47: 21.79 | D47: 20.89 | E47: 21.75 | F47: 1520924 | G47: =IFERROR(VLOOKUP($A47,'HPI Partial'!$A$1:$F$347,2,FALSE),"-") -> 21.09 | H47: =IFERROR(VLOOKUP($A47,'HPI Partial'!$A$1:$F$347,3,FALSE),"-") -> 21.79 | I47: =IFERROR(VLOOKUP($A47,'HPI Partial'!$A$1:$F$347,4,FALSE),"-") -> 20.89 | J47: =IFERROR(VLOOKUP($A47,'HPI Partial'!$A$1:$F$347,5,FALSE),"-") -> 21.75 | K47: =IFERROR(VLOOKUP($A47,'HPI Partial'!$A$1:$F$347,6,FALSE),"-") -> 1520924
A48: 2021-04-16 | B48: 21.21 | C48: 21.47 | D48: 20.84 | E48: 21.16 | F48: 1401645 | G48: =IFERROR(VLOOKUP($A48,'HPI Partial'!$A$1:$F$347,2,FALSE),"-") -> 21.21 | H48: =IFERROR(VLOOKUP($A48,'HPI Partial'!$A$1:$F$347,3,FALSE),"-") -> 21.47 | I48: =IFERROR(VLOOKUP($A48,'HPI Partial'!$A$1:$F$347,4,FALSE),"-") -> 20.84 | J48: =IFERROR(VLOOKUP($A48,'HPI Partial'!$A$1:$F$347,5,FALSE),"-") -> 21.16 | K48: =IFERROR(VLOOKUP($A48,'HPI Partial'!$A$1:$F$347,6,FALSE),"-") -> 1401645
A49: 2021-04-15 | B49: 21.36 | C49: 21.63 | D49: 21.06 | E49: 21.09 | F49: 554682 | G49: =IFERROR(VLOOKUP($A49,'HPI Partial'!$A$1:$F$347,2,FALSE),"-") -> 21.36 | H49: =IFERROR(VLOOKUP($A49,'HPI Partial'!$A$1:$F$347,3,FALSE),"-") -> 21.63 | I49: =IFERROR(VLOOKUP($A49,'HPI Partial'!$A$1:$F$347,4,FALSE),"-") -> 21.06 | J49: =IFERROR(VLOOKUP($A49,'HPI Partial'!$A$1:$F$347,5,FALSE),"-") -> 21.09 | K49: =IFERROR(VLOOKUP($A49,'HPI Partial'!$A$1:$F$347,6,FALSE),"-") -> 554682
A50: 2021-04-14 | B50: 20.96 | C50: 21.6 | D50: 20.8124 | E50: 21.04 | F50: 571696 | G50: =IFERROR(VLOOKUP($A50,'HPI Partial'!$A$1:$F$347,2,FALSE),"-") -> 20.96 | H50: =IFERROR(VLOOKUP($A50,'HPI Partial'!$A$1:$F$347,3,FALSE),"-") -> 21.6 | I50: =IFERROR(VLOOKUP($A50,'HPI Partial'!$A$1:$F$347,4,FALSE),"-") -> 20.8124 | J50: =IFERROR(VLOOKUP($A50,'HPI Partial'!$A$1:$F$347,5,FALSE),"-") -> 21.04 | K50: =IFERROR(VLOOKUP($A50,'HPI Partial'!$A$1:$F$347,6,FALSE),"-") -> 571696
A51: 2021-04-13 | B51: 21.03 | C51: 21.245 | D51: 20.65 | E51: 20.93 | F51: 569426 | G51: =IFERROR(VLOOKUP($A51,'HPI Partial'!$A$1:$F$347,2,FALSE),"-") -> 21.03 | H51: =IFERROR(VLOOKUP($A51,'HPI Partial'!$A$1:$F$347,3,FALSE),"-") -> 21.245 | I51: =IFERROR(VLOOKUP($A51,'HPI Partial'!$A$1:$F$347,4,FALSE),"-") -> 20.65 | J51: =IFERROR(VLOOKUP($A51,'HPI Partial'!$A$1:$F$347,5,FALSE),"-") -> 20.93 | K51: =IFERROR(VLOOKUP($A51,'HPI Partial'!$A$1:$F$347,6,FALSE),"-") -> 569426
A52: 2021-04-12 | B52: 21.56 | C52: 21.75 | D52: 21.08 | E52: 21.28 | F52: 556134 | G52: =IFERROR(VLOOKUP($A52,'HPI Partial'!$A$1:$F$347,2,FALSE),"-") -> 21.56 | H52: =IFERROR(VLOOKUP($A52,'HPI Partial'!$A$1:$F$347,3,FALSE),"-") -> 21.75 | I52: =IFERROR(VLOOKUP($A52,'HPI Partial'!$A$1:$F$347,4,FALSE),"-") -> 21.08 | J52: =IFERROR(VLOOKUP($A52,'HPI Partial'!$A$1:$F$347,5,FALSE),"-") -> 21.28 | K52: =IFERROR(VLOOKUP($A52,'HPI Partial'!$A$1:$F$347,6,FALSE),"-") -> 556134
A53: 2021-04-09 | B53: 21.74 | C53: 22.02 | D53: 21.53 | E53: 21.61 | F53: 373650 | G53: =IFERROR(VLOOKUP($A53,'HPI Partial'!$A$1:$F$347,2,FALSE),"-") -> 21.74 | H53: =IFERROR(VLOOKUP($A53,'HPI Partial'!$A$1:$F$347,3,FALSE),"-") -> 22.02 | I53: =IFERROR(VLOOKUP($A53,'HPI Partial'!$A$1:$F$347,4,FALSE),"-") -> 21.53 | J53: =IFERROR(VLOOKUP($A53,'HPI Partial'!$A$1:$F$347,5,FALSE),"-") -> 21.61 | K53: =IFERROR(VLOOKUP($A53,'HPI Partial'!$A$1:$F$347,6,FALSE),"-") -> 373650
A54: 2021-04-08 | B54: 21.92 | C54: 22.005 | D54: 21.37 | E54: 22 | F54: 605630 | G54: =IFERROR(VLOOKUP($A54,'HPI Partial'!$A$1:$F$347,2,FALSE),"-") -> 21.92 | H54: =IFERROR(VLOOKUP($A54,'HPI Partial'!$A$1:$F$347,3,FALSE),"-") -> 22.005 | I54: =IFERROR(VLOOKUP($A54,'HPI Partial'!$A$1:$F$347,4,FALSE),"-") -> 21.37 | J54: =IFERROR(VLOOKUP($A54,'HPI Partial'!$A$1:$F$347,5,FALSE),"-") -> 22 | K54: =IFERROR(VLOOKUP($A54,'HPI Partial'!$A$1:$F$347,6,FALSE),"-") -> 605630
A55: 2021-04-07 | B55: 21.99 | C55: 22.19 | D55: 21.56 | E55: 21.88 | F55: 407553 | G55: =IFERROR(VLOOKUP($A55,'HPI Partial'!$A$1:$F$347,2,FALSE),"-") -> 21.99 | H55: =IFERROR(VLOOKUP($A55,'HPI Partial'!$A$1:$F$347,3,FALSE),"-") -> 22.19 | I55: =IFERROR(VLOOKUP($A55,'HPI Partial'!$A$1:$F$347,4,FALSE),"-") -> 21.56 | J55: =IFERROR(VLOOKUP($A55,'HPI Partial'!$A$1:$F$347,5,FALSE),"-") -> 21.88 | K55: =IFERROR(VLOOKUP($A55,'HPI Partial'!$A$1:$F$347,6,FALSE),"-") -> 407553
A56: 2021-04-06 | B56: 21.86 | C56: 22.34 | D56: 21.67 | E56: 22.03 | F56: 1065273 | G56: =IFERROR(VLOOKUP($A56,'HPI Partial'!$A$1:$F$347,2,FALSE),"-") -> 21.86 | H56: =IFERROR(VLOOKUP($A56,'HPI Partial'!$A$1:$F$347,3,FALSE),"-") -> 22.34 | I56: =IFERROR(VLOOKUP($A56,'HPI Partial'!$A$1:$F$347,4,FALSE),"-") -> 21.67 | J56: =IFERROR(VLOOKUP($A56,'HPI Partial'!$A$1:$F$347,5,FALSE),"-") -> 22.03 | K56: =IFERROR(VLOOKUP($A56,'HPI Partial'!$A$1:$F$347,6,FALSE),"-") -> 1065273
A57: 2021-04-05 | B57: 21.5 | C57: 22.13 | D57: 21.15 | E57: 21.91 | F57: 1843433 | G57: =IFERROR(VLOOKUP($A57,'HPI Partial'!$A$1:$F$347,2,FALSE),"-") -> 21.5 | H57: =IFERROR(VLOOKUP($A57,'HPI Partial'!$A$1:$F$347,3,FALSE),"-") -> 22.13 | I57: =IFERROR(VLOOKUP($A57,'HPI Partial'!$A$1:$F$347,4,FALSE),"-") -> 21.15 | J57: =IFERROR(VLOOKUP($A57,'HPI Partial'!$A$1:$F$347,5,FALSE),"-") -> 21.91 | K57: =IFERROR(VLOOKUP($A57,'HPI Partial'!$A$1:$F$347,6,FALSE),"-") -> 1843433
A58: 2021-04-01 | B58: 20.44 | C58: 21.1 | D58: 20.31 | E58: 20.97 | F58: 854055 | G58: =IFERROR(VLOOKUP($A58,'HPI Partial'!$A$1:$F$347,2,FALSE),"-") -> 20.44 | H58: =IFERROR(VLOOKUP($A58,'HPI Partial'!$A$1:$F$347,3,FALSE),"-") -> 21.1 | I58: =IFERROR(VLOOKUP($A58,'HPI Partial'!$A$1:$F$347,4,FALSE),"-") -> 20.31 | J58: =IFERROR(VLOOKUP($A58,'HPI Partial'!$A$1:$F$347,5,FALSE),"-") -> 20.97 | K58: =IFERROR(VLOOKUP($A58,'HPI Partial'!$A$1:$F$347,6,FALSE),"-") -> 854055
A59: 2021-03-31 | B59: 20.17 | C59: 20.7 | D59: 20.05 | E59: 20.1 | F59: 831715 | G59: =IFERROR(VLOOKUP($A59,'HPI Partial'!$A$1:$F$347,2,FALSE),"-") -> 20.17 | H59: =IFERROR(VLOOKUP($A59,'HPI Partial'!$A$1:$F$347,3,FALSE),"-") -> 20.7 | I59: =IFERROR(VLOOKUP($A59,'HPI Partial'!$A$1:$F$347,4,FALSE),"-") -> 20.05 | J59: =IFERROR(VLOOKUP($A59,'HPI Partial'!$A$1:$F$347,5,FALSE),"-") -> 20.1 | K59: =IFERROR(VLOOKUP($A59,'HPI Partial'!$A$1:$F$347,6,FALSE),"-") -> 831715
A60: 2021-03-30 | B60: 20 | C60: 20.24 | D60: 19.76 | E60: 20.18 | F60: 552821 | G60: =IFERROR(VLOOKUP($A60,'HPI Partial'!$A$1:$F$347,2,FALSE),"-") -> 20 | H60: =IFERROR(VLOOKUP($A60,'HPI Partial'!$A$1:$F$347,3,FALSE),"-") -> 20.24 | I60: =IFERROR(VLOOKUP($A60,'HPI Partial'!$A$1:$F$347,4,FALSE),"-") -> 19.76 | J60: =IFERROR(VLOOKUP($A60,'HPI Partial'!$A$1:$F$347,5,FALSE),"-") -> 20.18 | K60: =IFERROR(VLOOKUP($A60,'HPI Partial'!$A$1:$F$347,6,FALSE),"-") -> 552821
A61: 2021-03-29 | B61: 19.78 | C61: 20.19 | D61: 19.4 | E61: 19.86 | F61: 713194 | G61: =IFERROR(VLOOKUP($A61,'HPI Partial'!$A$1:$F$347,2,FALSE),"-") -> 19.78 | H61: =IFERROR(VLOOKUP($A61,'HPI Partial'!$A$1:$F$347,3,FALSE),"-") -> 20.19 | I61: =IFERROR(VLOOKUP($A61,'HPI Partial'!$A$1:$F$347,4,FALSE),"-") -> 19.4 | J61: =IFERROR(VLOOKUP($A61,'HPI Partial'!$A$1:$F$347,5,FALSE),"-") -> 19.86 | K61: =IFERROR(VLOOKUP($A61,'HPI Partial'!$A$1:$F$347,6,FALSE),"-") -> 713194
A62: 2021-03-26 | B62: 20.53 | C62: 20.62 | D62: 19.18 | E62: 19.77 | F62: 1161614 | G62: =IFERROR(VLOOKUP($A62,'HPI Partial'!$A$1:$F$347,2,FALSE),"-") -> 20.53 | H62: =IFERROR(VLOOKUP($A62,'HPI Partial'!$A$1:$F$347,3,FALSE),"-") -> 20.62 | I62: =IFERROR(VLOOKUP($A62,'HPI Partial'!$A$1:$F$347,4,FALSE),"-") -> 19.18 | J62: =IFERROR(VLOOKUP($A62,'HPI Partial'!$A$1:$F$347,5,FALSE),"-") -> 19.77 | K62: =IFERROR(VLOOKUP($A62,'HPI Partial'!$A$1:$F$347,6,FALSE),"-") -> 1161614
A63: 2021-03-25 | B63: 19.53 | C63: 20.43 | D63: 19.51 | E63: 20.39 | F63: 864517 | G63: =IFERROR(VLOOKUP($A63,'HPI Partial'!$A$1:$F$347,2,FALSE),"-") -> 19.53 | H63: =IFERROR(VLOOKUP($A63,'HPI Partial'!$A$1:$F$347,3,FALSE),"-") -> 20.43 | I63: =IFERROR(VLOOKUP($A63,'HPI Partial'!$A$1:$F$347,4,FALSE),"-") -> 19.51 | J63: =IFERROR(VLOOKUP($A63,'HPI Partial'!$A$1:$F$347,5,FALSE),"-") -> 20.39 | K63: =IFERROR(VLOOKUP($A63,'HPI Partial'!$A$1:$F$347,6,FALSE),"-") -> 864517
A64: 2021-03-24 | B64: 20.46 | C64: 20.92 | D64: 19.87 | E64: 19.89 | F64: 1693899 | G64: =IFERROR(VLOOKUP($A64,'HPI Partial'!$A$1:$F$347,2,FALSE),"-") -> 20.46 | H64: =IFERROR(VLOOKUP($A64,'HPI Partial'!$A$1:$F$347,3,FALSE),"-") -> 20.92 | I64: =IFERROR(VLOOKUP($A64,'HPI Partial'!$A$1:$F$347,4,FALSE),"-") -> 19.87 | J64: =IFERROR(VLOOKUP($A64,'HPI Partial'!$A$1:$F$347,5,FALSE),"-") -> 19.89 | K64: =IFERROR(VLOOKUP($A64,'HPI Partial'!$A$1:$F$347,6,FALSE),"-") -> 1693899
A65: 2021-03-23 | B65: 20.63 | C65: 20.94 | D65: 20 | E65: 20.18 | F65: 988180 | G65: =IFERROR(VLOOKUP($A65,'HPI Partial'!$A$1:$F$347,2,FALSE),"-") -> 20.63 | H65: =IFERROR(VLOOKUP($A65,'HPI Partial'!$A$1:$F$347,3,FALSE),"-") -> 20.94 | I65: =IFERROR(VLOOKUP($A65,'HPI Partial'!$A$1:$F$347,4,FALSE),"-") -> 20 | J65: =IFERROR(VLOOKUP($A65,'HPI Partial'!$A$1:$F$347,5,FALSE),"-") -> 20.18 | K65: =IFERROR(VLOOKUP($A65,'HPI Partial'!$A$1:$F$347,6,FALSE),"-") -> 988180
A66: 2021-03-22 | B66: 21.15 | C66: 21.35 | D66: 20.72 | E66: 21.04 | F66: 837724 | G66: =IFERROR(VLOOKUP($A66,'HPI Partial'!$A$1:$F$347,2,FALSE),"-") -> 21.15 | H66: =IFERROR(VLOOKUP($A66,'HPI Partial'!$A$1:$F$347,3,FALSE),"-") -> 21.35 | I66: =IFERROR(VLOOKUP($A66,'HPI Partial'!$A$1:$F$347,4,FALSE),"-") -> 20.72 | J66: =IFERROR(VLOOKUP($A66,'HPI Partial'!$A$1:$F$347,5,FALSE),"-") -> 21.04 | K66: =IFERROR(VLOOKUP($A66,'HPI Partial'!$A$1:$F$347,6,FALSE),"-") -> 837724
A67: 2021-03-19 | B67: 21.31 | C67: 21.5 | D67: 20.7 | E67: 21.33 | F67: 1469251 | G67: =IFERROR(VLOOKUP($A67,'HPI Partial'!$A$1:$F$347,2,FALSE),"-") -> 21.31 | H67: =IFERROR(VLOOKUP($A67,'HPI Partial'!$A$1:$F$347,3,FALSE),"-") -> 21.5 | I67: =IFERROR(VLOOKUP($A67,'HPI Partial'!$A$1:$F$347,4,FALSE),"-") -> 20.7 | J67: =IFERROR(VLOOKUP($A67,'HPI Partial'!$A$1:$F$347,5,FALSE),"-") -> 21.33 | K67: =IFERROR(VLOOKUP($A67,'HPI Partial'!$A$1:$F$347,6,FALSE),"-") -> 1469251
A68: 2021-03-18 | B68: 21.03 | C68: 21.93 | D68: 20.84 | E68: 21.22 | F68: 1637545 | G68: =IFERROR(VLOOKUP($A68,'HPI Partial'!$A$1:$F$347,2,FALSE),"-") -> 21.03 | H68: =IFERROR(VLOOKUP($A68,'HPI Partial'!$A$1:$F$347,3,FALSE),"-") -> 21.93 | I68: =IFERROR(VLOOKUP($A68,'HPI Partial'!$A$1:$F$347,4,FALSE),"-") -> 20.84 | J68: =IFERROR(VLOOKUP($A68,'HPI Partial'!$A$1:$F$347,5,FALSE),"-") -> 21.22 | K68: =IFERROR(VLOOKUP($A68,'HPI Partial'!$A$1:$F$347,6,FALSE),"-") -> 1637545
A69: 2021-03-17 | B69: 21.42 | C69: 22.21 | D69: 21.14 | E69: 21.24 | F69: 3850034 | G69: =IFERROR(VLOOKUP($A69,'HPI Partial'!$A$1:$F$347,2,FALSE),"-") -> 21.42 | H69: =IFERROR(VLOOKUP($A69,'HPI Partial'!$A$1:$F$347,3,FALSE),"-") -> 22.21 | I69: =IFERROR(VLOOKUP($A69,'HPI Partial'!$A$1:$F$347,4,FALSE),"-") -> 21.14 | J69: =IFERROR(VLOOKUP($A69,'HPI Partial'!$A$1:$F$347,5,FALSE),"-") -> 21.24 | K69: =IFERROR(VLOOKUP($A69,'HPI Partial'!$A$1:$F$347,6,FALSE),"-") -> 3850034
A70: 2021-03-16 | B70: 21.2 | C70: 21.971 | D70: 20.24 | E70: 21.3 | F70: 5077435 | G70: =IFERROR(VLOOKUP($A70,'HPI Partial'!$A$1:$F$347,2,FALSE),"-") -> 21.2 | H70: =IFERROR(VLOOKUP($A70,'HPI Partial'!$A$1:$F$347,3,FALSE),"-") -> 21.971 | I70: =IFERROR(VLOOKUP($A70,'HPI Partial'!$A$1:$F$347,4,FALSE),"-") -> 20.24 | J70: =IFERROR(VLOOKUP($A70,'HPI Partial'!$A$1:$F$347,5,FALSE),"-") -> 21.3 | K70: =IFERROR(VLOOKUP($A70,'HPI Partial'!$A$1:$F$347,6,FALSE),"-") -> 5077435
A71: 2021-03-15 | B71: 23.45 | C71: 23.72 | D71: 22.97 | E71: 23.46 | F71: 1097457 | G71: =IFERROR(VLOOKUP($A71,'HPI Partial'!$A$1:$F$347,2,FALSE),"-") -> 23.45 | H71: =IFERROR(VLOOKUP($A71,'HPI Partial'!$A$1:$F$347,3,FALSE),"-") -> 23.72 | I71: =IFERROR(VLOOKUP($A71,'HPI Partial'!$A$1:$F$347,4,FALSE),"-") -> 22.97 | J71: =IFERROR(VLOOKUP($A71,'HPI Partial'!$A$1:$F$347,5,FALSE),"-") -> 23.46 | K71: =IFERROR(VLOOKUP($A71,'HPI Partial'!$A$1:$F$347,6,FALSE),"-") -> 1097457
A72: 2021-03-12 | B72: 23.21 | C72: 23.62 | D72: 22.91 | E72: 23.45 | F72: 928045 | G72: =IFERROR(VLOOKUP($A72,'HPI Partial'!$A$1:$F$347,2,FALSE),"-") -> 23.21 | H72: =IFERROR(VLOOKUP($A72,'HPI Partial'!$A$1:$F$347,3,FALSE),"-") -> 23.62 | I72: =IFERROR(VLOOKUP($A72,'HPI Partial'!$A$1:$F$347,4,FALSE),"-") -> 22.91 | J72: =IFERROR(VLOOKUP($A72,'HPI Partial'!$A$1:$F$347,5,FALSE),"-") -> 23.45 | K72: =IFERROR(VLOOKUP($A72,'HPI Partial'!$A$1:$F$347,6,FALSE),"-") -> 928045
A73: 2021-03-11 | B73: 23 | C73: 23.43 | D73: 22.48 | E73: 23.38 | F73: 1187558 | G73: =IFERROR(VLOOKUP($A73,'HPI Partial'!$A$1:$F$347,2,FALSE),"-") -> 23 | H73: =IFERROR(VLOOKUP($A73,'HPI Partial'!$A$1:$F$347,3,FALSE),"-") -> 23.43 | I73: =IFERROR(VLOOKUP($A73,'HPI Partial'!$A$1:$F$347,4,FALSE),"-") -> 22.48 | J73: =IFERROR(VLOOKUP($A73,'HPI Partial'!$A$1:$F$347,5,FALSE),"-") -> 23.38 | K73: =IFERROR(VLOOKUP($A73,'HPI Partial'!$A$1:$F$347,6,FALSE),"-") -> 1187558
A74: 2021-03-10 | B74: 23.35 | C74: 23.79 | D74: 22.44 | E74: 22.81 | F74: 1367334 | G74: =IFERROR(VLOOKUP($A74,'HPI Partial'!$A$1:$F$347,2,FALSE),"-") -> 23.35 | H74: =IFERROR(VLOOKUP($A74,'HPI Partial'!$A$1:$F$347,3,FALSE),"-") -> 23.79 | I74: =IFERROR(VLOOKUP($A74,'HPI Partial'!$A$1:$F$347,4,FALSE),"-") -> 22.44 | J74: =IFERROR(VLOOKUP($A74,'HPI Partial'!$A$1:$F$347,5,FALSE),"-") -> 22.81 | K74: =IFERROR(VLOOKUP($A74,'HPI Partial'!$A$1:$F$347,6,FALSE),"-") -> 1367334
A75: 2021-03-09 | B75: 23.81 | C75: 24.07 | D75: 22.94 | E75: 23.16 | F75: 1380342 | G75: =IFERROR(VLOOKUP($A75,'HPI Partial'!$A$1:$F$347,2,FALSE),"-") -> 23.81 | H75: =IFERROR(VLOOKUP($A75,'HPI Partial'!$A$1:$F$347,3,FALSE),"-") -> 24.07 | I75: =IFERROR(VLOOKUP($A75,'HPI Partial'!$A$1:$F$347,4,FALSE),"-") -> 22.94 | J75: =IFERROR(VLOOKUP($A75,'HPI Partial'!$A$1:$F$347,5,FALSE),"-") -> 23.16 | K75: =IFERROR(VLOOKUP($A75,'HPI Partial'!$A$1:$F$347,6,FALSE),"-") -> 1380342
A76: 2021-03-08 | B76: 24.52 | C76: 24.6 | D76: 22.67 | E76: 23.39 | F76: 1724647 | G76: =IFERROR(VLOOKUP($A76,'HPI Partial'!$A$1:$F$347,2,FALSE),"-") -> 24.52 | H76: =IFERROR(VLOOKUP($A76,'HPI Partial'!$A$1:$F$347,3,FALSE),"-") -> 24.6 | I76: =IFERROR(VLOOKUP($A76,'HPI Partial'!$A$1:$F$347,4,FALSE),"-") -> 22.67 | J76: =IFERROR(VLOOKUP($A76,'HPI Partial'!$A$1:$F$347,5,FALSE),"-") -> 23.39 | K76: =IFERROR(VLOOKUP($A76,'HPI Partial'!$A$1:$F$347,6,FALSE),"-") -> 1724647
A77: 2021-03-05 | B77: 22.5 | C77: 25.05 | D77: 21.75 | E77: 24.59 | F77: 4085476 | G77: =IFERROR(VLOOKUP($A77,'HPI Partial'!$A$1:$F$347,2,FALSE),"-") -> 22.5 | H77: =IFERROR(VLOOKUP($A77,'HPI Partial'!$A$1:$F$347,3,FALSE),"-") -> 25.05 | I77: =IFERROR(VLOOKUP($A77,'HPI Partial'!$A$1:$F$347,4,FALSE),"-") -> 21.75 | J77: =IFERROR(VLOOKUP($A77,'HPI Partial'!$A$1:$F$347,5,FALSE),"-") -> 24.59 | K77: =IFERROR(VLOOKUP($A77,'HPI Partial'!$A$1:$F$347,6,FALSE),"-") -> 4085476
A78: 2021-03-04 | B78: 21.52 | C78: 21.7272 | D78: 20.27 | E78: 20.71 | F78: 666274 | G78: =IFERROR(VLOOKUP($A78,'HPI Partial'!$A$1:$F$347,2,FALSE),"-") -> 21.52 | H78: =IFERROR(VLOOKUP($A78,'HPI Partial'!$A$1:$F$347,3,FALSE),"-") -> 21.7272 | I78: =IFERROR(VLOOKUP($A78,'HPI Partial'!$A$1:$F$347,4,FALSE),"-") -> 20.27 | J78: =IFERROR(VLOOKUP($A78,'HPI Partial'!$A$1:$F$347,5,FALSE),"-") -> 20.71 | K78: =IFERROR(VLOOKUP($A78,'HPI Partial'!$A$1:$F$347,6,FALSE),"-") -> 666274
A79: 2021-03-03 | B79: 21.51 | C79: 22.05 | D79: 21.51 | E79: 21.67 | F79: 704396 | G79: =IFERROR(VLOOKUP($A79,'HPI Partial'!$A$1:$F$347,2,FALSE),"-") -> 21.51 | H79: =IFERROR(VLOOKUP($A79,'HPI Partial'!$A$1:$F$347,3,FALSE),"-") -> 22.05 | I79: =IFERROR(VLOOKUP($A79,'HPI Partial'!$A$1:$F$347,4,FALSE),"-") -> 21.51 | J79: =IFERROR(VLOOKUP($A79,'HPI Partial'!$A$1:$F$347,5,FALSE),"-") -> 21.67 | K79: =IFERROR(VLOOKUP($A79,'HPI Partial'!$A$1:$F$347,6,FALSE),"-") -> 704396
A80: 2021-03-02 | B80: 21.47 | C80: 22.015 | D80: 21.09 | E80: 21.46 | F80: 468023 | G80: =IFERROR(VLOOKUP($A80,'HPI Partial'!$A$1:$F$347,2,FALSE),"-") -> 21.47 | H80: =IFERROR(VLOOKUP($A80,'HPI Partial'!$A$1:$F$347,3,FALSE),"-") -> 22.015 | I80: =IFERROR(VLOOKUP($A80,'HPI Partial'!$A$1:$F$347,4,FALSE),"-") -> 21.09 | J80: =IFERROR(VLOOKUP($A80,'HPI Partial'!$A$1:$F$347,5,FALSE),"-") -> 21.46 | K80: =IFERROR(VLOOKUP($A80,'HPI Partial'!$A$1:$F$347,6,FALSE),"-") -> 468023
A81: 2021-03-01 | B81: 21.09 | C81: 21.46 | D81: 20.87 | E81: 21.44 | F81: 478143 | G81: =IFERROR(VLOOKUP($A81,'HPI Partial'!$A$1:$F$347,2,FALSE),"-") -> 21.09 | H81: =IFERROR(VLOOKUP($A81,'HPI Partial'!$A$1:$F$347,3,FALSE),"-") -> 21.46 | I81: =IFERROR(VLOOKUP($A81,'HPI Partial'!$A$1:$F$347,4,FALSE),"-") -> 20.87 | J81: =IFERROR(VLOOKUP($A81,'HPI Partial'!$A$1:$F$347,5,FALSE),"-") -> 21.44 | K81: =IFERROR(VLOOKUP($A81,'HPI Partial'!$A$1:$F$347,6,FALSE),"-") -> 478143
A82: 2021-02-26 | B82: 20.65 | C82: 21.18 | D82: 20.31 | E82: 20.67 | F82: 590307 | G82: =IFERROR(VLOOKUP($A82,'HPI Partial'!$A$1:$F$347,2,FALSE),"-") -> 20.65 | H82: =IFERROR(VLOOKUP($A82,'HPI Partial'!$A$1:$F$347,3,FALSE),"-") -> 21.18 | I82: =IFERROR(VLOOKUP($A82,'HPI Partial'!$A$1:$F$347,4,FALSE),"-") -> 20.31 | J82: =IFERROR(VLOOKUP($A82,'HPI Partial'!$A$1:$F$347,5,FALSE),"-") -> 20.67 | K82: =IFERROR(VLOOKUP($A82,'HPI Partial'!$A$1:$F$347,6,FALSE),"-") -> 590307
A83: 2021-02-25 | B83: 20.89 | C83: 21.28 | D83: 20.4 | E83: 20.53 | F83: 864155 | G83: =IFERROR(VLOOKUP($A83,'HPI Partial'!$A$1:$F$347,2,FALSE),"-") -> 20.89 | H83: =IFERROR(VLOOKUP($A83,'HPI Partial'!$A$1:$F$347,3,FALSE),"-") -> 21.28 | I83: =IFERROR(VLOOKUP($A83,'HPI Partial'!$A$1:$F$347,4,FALSE),"-") -> 20.4 | J83: =IFERROR(VLOOKUP($A83,'HPI Partial'!$A$1:$F$347,5,FALSE),"-") -> 20.53 | K83: =IFERROR(VLOOKUP($A83,'HPI Partial'!$A$1:$F$347,6,FALSE),"-") -> 864155
A84: 2021-02-24 | B84: 20.55 | C84: 20.9416 | D84: 20.06 | E84: 20.84 | F84: 744177 | G84: =IFERROR(VLOOKUP($A84,'HPI Partial'!$A$1:$F$347,2,FALSE),"-") -> 20.55 | H84: =IFERROR(VLOOKUP($A84,'HPI Partial'!$A$1:$F$347,3,FALSE),"-") -> 20.9416 | I84: =IFERROR(VLOOKUP($A84,'HPI Partial'!$A$1:$F$347,4,FALSE),"-") -> 20.06 | J84: =IFERROR(VLOOKUP($A84,'HPI Partial'!$A$1:$F$347,5,FALSE),"-") -> 20.84 | K84: =IFERROR(VLOOKUP($A84,'HPI Partial'!$A$1:$F$347,6,FALSE),"-") -> 744177
A85: 2021-02-23 | B85: 20.64 | C85: 20.99 | D85: 20.0355 | E85: 20.51 | F85: 707707 | G85: =IFERROR(VLOOKUP($A85,'HPI Partial'!$A$1:$F$347,2,FALSE),"-") -> 20.64 | H85: =IFERROR(VLOOKUP($A85,'HPI Partial'!$A$1:$F$347,3,FALSE),"-") -> 20.99 | I85: =IFERROR(VLOOKUP($A85,'HPI Partial'!$A$1:$F$347,4,FALSE),"-") -> 20.0355 | J85: =IFERROR(VLOOKUP($A85,'HPI Partial'!$A$1:$F$347,5,FALSE),"-") -> 20.51 | K85: =IFERROR(VLOOKUP($A85,'HPI Partial'!$A$1:$F$347,6,FALSE),"-") -> 707707
A86: 2021-02-22 | B86: 19.5 | C86: 20.62 | D86: 19.425 | E86: 20.6 | F86: 1485803 | G86: =IFERROR(VLOOKUP($A86,'HPI Partial'!$A$1:$F$347,2,FALSE),"-") -> 19.5 | H86: =IFERROR(VLOOKUP($A86,'HPI Partial'!$A$1:$F$347,3,FALSE),"-") -> 20.62 | I86: =IFERROR(VLOOKUP($A86,'HPI Partial'!$A$1:$F$347,4,FALSE),"-") -> 19.425 | J86: =IFERROR(VLOOKUP($A86,'HPI Partial'!$A$1:$F$347,5,FALSE),"-") -> 20.6 | K86: =IFERROR(VLOOKUP($A86,'HPI Partial'!$A$1:$F$347,6,FALSE),"-") -> 1485803
A87: 2021-02-19 | B87: 20.17 | C87: 20.17 | D87: 19.47 | E87: 19.51 | F87: 365018 | G87: =IFERROR(VLOOKUP($A87,'HPI Partial'!$A$1:$F$347,2,FALSE),"-") -> 20.17 | H87: =IFERROR(VLOOKUP($A87,'HPI Partial'!$A$1:$F$347,3,FALSE),"-") -> 20.17 | I87: =IFERROR(VLOOKUP($A87,'HPI Partial'!$A$1:$F$347,4,FALSE),"-") -> 19.47 | J87: =IFERROR(VLOOKUP($A87,'HPI Partial'!$A$1:$F$347,5,FALSE),"-") -> 19.51 | K87: =IFERROR(VLOOKUP($A87,'HPI Partial'!$A$1:$F$347,6,FALSE),"-") -> 365018
A88: 2021-02-18 | B88: 19.96 | C88: 20.52 | D88: 19.89 | E88: 19.98 | F88: 531925 | G88: =IFERROR(VLOOKUP($A88,'HPI Partial'!$A$1:$F$347,2,FALSE),"-") -> 19.96 | H88: =IFERROR(VLOOKUP($A88,'HPI Partial'!$A$1:$F$347,3,FALSE),"-") -> 20.52 | I88: =IFERROR(VLOOKUP($A88,'HPI Partial'!$A$1:$F$347,4,FALSE),"-") -> 19.89 | J88: =IFERROR(VLOOKUP($A88,'HPI Partial'!$A$1:$F$347,5,FALSE),"-") -> 19.98 | K88: =IFERROR(VLOOKUP($A88,'HPI Partial'!$A$1:$F$347,6,FALSE),"-") -> 531925
A89: 2021-02-17 | B89: 20.01 | C89: 20.4 | D89: 19.99 | E89: 20.25 | F89: 918656 | G89: =IFERROR(VLOOKUP($A89,'HPI Partial'!$A$1:$F$347,2,FALSE),"-") -> 20.01 | H89: =IFERROR(VLOOKUP($A89,'HPI Partial'!$A$1:$F$347,3,FALSE),"-") -> 20.4 | I89: =IFERROR(VLOOKUP($A89,'HPI Partial'!$A$1:$F$347,4,FALSE),"-") -> 19.99 | J89: =IFERROR(VLOOKUP($A89,'HPI Partial'!$A$1:$F$347,5,FALSE),"-") -> 20.25 | K89: =IFERROR(VLOOKUP($A89,'HPI Partial'!$A$1:$F$347,6,FALSE),"-") -> 918656
A90: 2021-02-16 | B90: 20 | C90: 20.47 | D90: 19.44 | E90: 19.85 | F90: 1446611 | G90: =IFERROR(VLOOKUP($A90,'HPI Partial'!$A$1:$F$347,2,FALSE),"-") -> 20 | H90: =IFERROR(VLOOKUP($A90,'HPI Partial'!$A$1:$F$347,3,FALSE),"-") -> 20.47 | I90: =IFERROR(VLOOKUP($A90,'HPI Partial'!$A$1:$F$347,4,FALSE),"-") -> 19.44 | J90: =IFERROR(VLOOKUP($A90,'HPI Partial'!$A$1:$F$347,5,FALSE),"-") -> 19.85 | K90: =IFERROR(VLOOKUP($A90,'HPI Partial'!$A$1:$F$347,6,FALSE),"-") -> 1446611
A91: 2021-02-12 | B91: 18.42 | C91: 18.75 | D91: 18.29 | E91: 18.64 | F91: 311748 | G91: =IFERROR(VLOOKUP($A91,'HPI Partial'!$A$1:$F$347,2,FALSE),"-") -> 18.42 | H91: =IFERROR(VLOOKUP($A91,'HPI Partial'!$A$1:$F$347,3,FALSE),"-") -> 18.75 | I91: =IFERROR(VLOOKUP($A91,'HPI Partial'!$A$1:$F$347,4,FALSE),"-") -> 18.29 | J91: =IFERROR(VLOOKUP($A91,'HPI Partial'!$A$1:$F$347,5,FALSE),"-") -> 18.64 | K91: =IFERROR(VLOOKUP($A91,'HPI Partial'!$A$1:$F$347,6,FALSE),"-") -> 311748
A92: 2021-02-11 | B92: 18.65 | C92: 18.73 | D92: 18.17 | E92: 18.4 | F92: 441305 | G92: =IFERROR(VLOOKUP($A92,'HPI Partial'!$A$1:$F$347,2,FALSE),"-") -> 18.65 | H92: =IFERROR(VLOOKUP($A92,'HPI Partial'!$A$1:$F$347,3,FALSE),"-") -> 18.73 | I92: =IFERROR(VLOOKUP($A92,'HPI Partial'!$A$1:$F$347,4,FALSE),"-") -> 18.17 | J92: =IFERROR(VLOOKUP($A92,'HPI Partial'!$A$1:$F$347,5,FALSE),"-") -> 18.4 | K92: =IFERROR(VLOOKUP($A92,'HPI Partial'!$A$1:$F$347,6,FALSE),"-") -> 441305
A93: 2021-02-10 | B93: 17.95 | C93: 18.79 | D93: 17.66 | E93: 18.65 | F93: 486137 | G93: =IFERROR(VLOOKUP($A93,'HPI Partial'!$A$1:$F$347,2,FALSE),"-") -> 17.95 | H93: =IFERROR(VLOOKUP($A93,'HPI Partial'!$A$1:$F$347,3,FALSE),"-") -> 18.79 | I93: =IFERROR(VLOOKUP($A93,'HPI Partial'!$A$1:$F$347,4,FALSE),"-") -> 17.66 | J93: =IFERROR(VLOOKUP($A93,'HPI Partial'!$A$1:$F$347,5,FALSE),"-") -> 18.65 | K93: =IFERROR(VLOOKUP($A93,'HPI Partial'!$A$1:$F$347,6,FALSE),"-") -> 486137
A94: 2021-02-09 | B94: 18.1 | C94: 18.29 | D94: 17.41 | E94: 17.87 | F94: 540744 | G94: =IFERROR(VLOOKUP($A94,'HPI Partial'!$A$1:$F$347,2,FALSE),"-") -> 18.1 | H94: =IFERROR(VLOOKUP($A94,'HPI Partial'!$A$1:$F$347,3,FALSE),"-") -> 18.29 | I94: =IFERROR(VLOOKUP($A94,'HPI Partial'!$A$1:$F$347,4,FALSE),"-") -> 17.41 | J94: =IFERROR(VLOOKUP($A94,'HPI Partial'!$A$1:$F$347,5,FALSE),"-") -> 17.87 | K94: =IFERROR(VLOOKUP($A94,'HPI Partial'!$A$1:$F$347,6,FALSE),"-") -> 540744
A95: 2021-02-08 | B95: 18.53 | C95: 18.63 | D95: 17.96 | E95: 18.2 | F95: 539607 | G95: =IFERROR(VLOOKUP($A95,'HPI Partial'!$A$1:$F$347,2,FALSE),"-") -> 18.53 | H95: =IFERROR(VLOOKUP($A95,'HPI Partial'!$A$1:$F$347,3,FALSE),"-") -> 18.63 | I95: =IFERROR(VLOOKUP($A95,'HPI Partial'!$A$1:$F$347,4,FALSE),"-") -> 17.96 | J95: =IFERROR(VLOOKUP($A95,'HPI Partial'!$A$1:$F$347,5,FALSE),"-") -> 18.2 | K95: =IFERROR(VLOOKUP($A95,'HPI Partial'!$A$1:$F$347,6,FALSE),"-") -> 539607
A96: 2021-02-05 | B96: 18.39 | C96: 18.64 | D96: 18.16 | E96: 18.29 | F96: 332601 | G96: =IFERROR(VLOOKUP($A96,'HPI Partial'!$A$1:$F$347,2,FALSE),"-") -> 18.39 | H96: =IFERROR(VLOOKUP($A96,'HPI Partial'!$A$1:$F$347,3,FALSE),"-") -> 18.64 | I96: =IFERROR(VLOOKUP($A96,'HPI Partial'!$A$1:$F$347,4,FALSE),"-") -> 18.16 | J96: =IFERROR(VLOOKUP($A96,'HPI Partial'!$A$1:$F$347,5,FALSE),"-") -> 18.29 | K96: =IFERROR(VLOOKUP($A96,'HPI Partial'!$A$1:$F$347,6,FALSE),"-") -> 332601
A97: 2021-02-04 | B97: 18.87 | C97: 18.9 | D97: 17.96 | E97: 18.3 | F97: 690175 | G97: =IFERROR(VLOOKUP($A97,'HPI Partial'!$A$1:$F$347,2,FALSE),"-") -> 18.87 | H97: =IFERROR(VLOOKUP($A97,'HPI Partial'!$A$1:$F$347,3,FALSE),"-") -> 18.9 | I97: =IFERROR(VLOOKUP($A97,'HPI Partial'!$A$1:$F$347,4,FALSE),"-") -> 17.96 | J97: =IFERROR(VLOOKUP($A97,'HPI Partial'!$A$1:$F$347,5,FALSE),"-") -> 18.3 | K97: =IFERROR(VLOOKUP($A97,'HPI Partial'!$A$1:$F$347,6,FALSE),"-") -> 690175
A98: 2021-02-03 | B98: 18.86 | C98: 19.07 | D98: 18.352 | E98: 18.87 | F98: 524687 | G98: =IFERROR(VLOOKUP($A98,'HPI Partial'!$A$1:$F$347,2,FALSE),"-") -> 18.86 | H98: =IFERROR(VLOOKUP($A98,'HPI Partial'!$A$1:$F$347,3,FALSE),"-") -> 19.07 | I98: =IFERROR(VLOOKUP($A98,'HPI Partial'!$A$1:$F$347,4,FALSE),"-") -> 18.352 | J98: =IFERROR(VLOOKUP($A98,'HPI Partial'!$A$1:$F$347,5,FALSE),"-") -> 18.87 | K98: =IFERROR(VLOOKUP($A98,'HPI Partial'!$A$1:$F$347,6,FALSE),"-") -> 524687
A99: 2021-02-02 | B99: 19.88 | C99: 19.9738 | D99: 18.44 | E99: 18.8 | F99: 876324 | G99: =IFERROR(VLOOKUP($A99,'HPI Partial'!$A$1:$F$347,2,FALSE),"-") -> 19.88 | H99: =IFERROR(VLOOKUP($A99,'HPI Partial'!$A$1:$F$347,3,FALSE),"-") -> 19.9738 | I99: =IFERROR(VLOOKUP($A99,'HPI Partial'!$A$1:$F$347,4,FALSE),"-") -> 18.44 | J99: =IFERROR(VLOOKUP($A99,'HPI Partial'!$A$1:$F$347,5,FALSE),"-") -> 18.8 | K99: =IFERROR(VLOOKUP($A99,'HPI Partial'!$A$1:$F$347,6,FALSE),"-") -> 876324
A100: 2021-02-01 | B100: 19.27 | C100: 19.85 | D100: 18.76 | E100: 19.73 | F100: 812137 | G100: =IFERROR(VLOOKUP($A100,'HPI Partial'!$A$1:$F$347,2,FALSE),"-") -> 19.27 | H100: =IFERROR(VLOOKUP($A100,'HPI Partial'!$A$1:$F$347,3,FALSE),"-") -> 19.85 | I100: =IFERROR(VLOOKUP($A100,'HPI Partial'!$A$1:$F$347,4,FALSE),"-") -> 18.76 | J100: =IFERROR(VLOOKUP($A100,'HPI Partial'!$A$1:$F$347,5,FALSE),"-") -> 19.73 | K100: =IFERROR(VLOOKUP($A100,'HPI Partial'!$A$1:$F$347,6,FALSE),"-") -> 812137
A101: 2021-01-29 | B101: 19.17 | C101: 19.74 | D101: 18.75 | E101: 18.9 | F101: 678163 | G101: =IFERROR(VLOOKUP($A101,'HPI Partial'!$A$1:$F$347,2,FALSE),"-") -> 19.17 | H101: =IFERROR(VLOOKUP($A101,'HPI Partial'!$A$1:$F$347,3,FALSE),"-") -> 19.74 | I101: =IFERROR(VLOOKUP($A101,'HPI Partial'!$A$1:$F$347,4,FALSE),"-") -> 18.75 | J101: =IFERROR(VLOOKUP($A101,'HPI Partial'!$A$1:$F$347,5,FALSE),"-") -> 18.9 | K101: =IFERROR(VLOOKUP($A101,'HPI Partial'!$A$1:$F$347,6,FALSE),"-") -> 678163
A102: 2021-01-28 | B102: 19.53 | C102: 19.96 | D102: 19.03 | E102: 19.33 | F102: 1027666 | G102: =IFERROR(VLOOKUP($A102,'HPI Partial'!$A$1:$F$347,2,FALSE),"-") -> 19.53 | H102: =IFERROR(VLOOKUP($A102,'HPI Partial'!$A$1:$F$347,3,FALSE),"-") -> 19.96 | I102: =IFERROR(VLOOKUP($A102,'HPI Partial'!$A$1:$F$347,4,FALSE),"-") -> 19.03 | J102: =IFERROR(VLOOKUP($A102,'HPI Partial'!$A$1:$F$347,5,FALSE),"-") -> 19.33 | K102: =IFERROR(VLOOKUP($A102,'HPI Partial'!$A$1:$F$347,6,FALSE),"-") -> 1027666
A103: 2021-01-27 | B103: 19 | C103: 20.2066 | D103: 18.64 | E103: 19.37 | F103: 3285053 | G103: =IFERROR(VLOOKUP($A103,'HPI Partial'!$A$1:$F$347,2,FALSE),"-") -> 19 | H103: =IFERROR(VLOOKUP($A103,'HPI Partial'!$A$1:$F$347,3,FALSE),"-") -> 20.2066 | I103: =IFERROR(VLOOKUP($A103,'HPI Partial'!$A$1:$F$347,4,FALSE),"-") -> 18.64 | J103: =IFERROR(VLOOKUP($A103,'HPI Partial'!$A$1:$F$347,5,FALSE),"-") -> 19.37 | K103: =IFERROR(VLOOKUP($A103,'HPI Partial'!$A$1:$F$347,6,FALSE),"-") -> 3285053
A104: 2021-01-26 | B104: 19 | C104: 19.07 | D104: 18.1 | E104: 18.81 | F104: 1759102 | G104: =IFERROR(VLOOKUP($A104,'HPI Partial'!$A$1:$F$347,2,FALSE),"-") -> 19 | H104: =IFERROR(VLOOKUP($A104,'HPI Partial'!$A$1:$F$347,3,FALSE),"-") -> 19.07 | I104: =IFERROR(VLOOKUP($A104,'HPI Partial'!$A$1:$F$347,4,FALSE),"-") -> 18.1 | J104: =IFERROR(VLOOKUP($A104,'HPI Partial'!$A$1:$F$347,5,FALSE),"-") -> 18.81 | K104: =IFERROR(VLOOKUP($A104,'HPI Partial'!$A$1:$F$347,6,FALSE),"-") -> 1759102
A105: 2021-01-25 | B105: 18.1 | C105: 19 | D105: 18.1 | E105: 18.73 | F105: 1040079 | G105: =IFERROR(VLOOKUP($A105,'HPI Partial'!$A$1:$F$347,2,FALSE),"-") -> 18.1 | H105: =IFERROR(VLOOKUP($A105,'HPI Partial'!$A$1:$F$347,3,FALSE),"-") -> 19 | I105: =IFERROR(VLOOKUP($A105,'HPI Partial'!$A$1:$F$347,4,FALSE),"-") -> 18.1 | J105: =IFERROR(VLOOKUP($A105,'HPI Partial'!$A$1:$F$347,5,FALSE),"-") -> 18.73 | K105: =IFERROR(VLOOKUP($A105,'HPI Partial'!$A$1:$F$347,6,FALSE),"-") -> 1040079
A106: 2021-01-22 | B106: 18.1 | C106: 18.495 | D106: 17.92 | E106: 18.47 | F106: 673723 | G106: =IFERROR(VLOOKUP($A106,'HPI Partial'!$A$1:$F$347,2,FALSE),"-") -> 18.1 | H106: =IFERROR(VLOOKUP($A106,'HPI Partial'!$A$1:$F$347,3,FALSE),"-") -> 18.495 | I106: =IFERROR(VLOOKUP($A106,'HPI Partial'!$A$1:$F$347,4,FALSE),"-") -> 17.92 | J106: =IFERROR(VLOOKUP($A106,'HPI Partial'!$A$1:$F$347,5,FALSE),"-") -> 18.47 | K106: =IFERROR(VLOOKUP($A106,'HPI Partial'!$A$1:$F$347,6,FALSE),"-") -> 673723
A107: 2021-01-21 | B107: 18.69 | C107: 18.69 | D107: 18.13 | E107: 18.3 | F107: 445484 | G107: =IFERROR(VLOOKUP($A107,'HPI Partial'!$A$1:$F$347,2,FALSE),"-") -> 18.69 | H107: =IFERROR(VLOOKUP($A107,'HPI Partial'!$A$1:$F$347,3,FALSE),"-") -> 18.69 | I107: =IFERROR(VLOOKUP($A107,'HPI Partial'!$A$1:$F$347,4,FALSE),"-") -> 18.13 | J107: =IFERROR(VLOOKUP($A107,'HPI Partial'!$A$1:$F$347,5,FALSE),"-") -> 18.3 | K107: =IFERROR(VLOOKUP($A107,'HPI Partial'!$A$1:$F$347,6,FALSE),"-") -> 445484
A108: 2021-01-20 | B108: 18.65 | C108: 18.94 | D108: 18.44 | E108: 18.62 | F108: 573272 | G108: =IFERROR(VLOOKUP($A108,'HPI Partial'!$A$1:$F$347,2,FALSE),"-") -> 18.65 | H108: =IFERROR(VLOOKUP($A108,'HPI Partial'!$A$1:$F$347,3,FALSE),"-") -> 18.94 | I108: =IFERROR(VLOOKUP($A108,'HPI Partial'!$A$1:$F$347,4,FALSE),"-") -> 18.44 | J108: =IFERROR(VLOOKUP($A108,'HPI Partial'!$A$1:$F$347,5,FALSE),"-") -> 18.62 | K108: =IFERROR(VLOOKUP($A108,'HPI Partial'!$A$1:$F$347,6,FALSE),"-") -> 573272
A109: 2021-01-19 | B109: 18.63 | C109: 19 | D109: 18.37 | E109: 18.56 | F109: 529165 | G109: =IFERROR(VLOOKUP($A109,'HPI Partial'!$A$1:$F$347,2,FALSE),"-") -> 18.63 | H109: =IFERROR(VLOOKUP($A109,'HPI Partial'!$A$1:$F$347,3,FALSE),"-") -> 19 | I109: =IFERROR(VLOOKUP($A109,'HPI Partial'!$A$1:$F$347,4,FALSE),"-") -> 18.37 | J109: =IFERROR(VLOOKUP($A109,'HPI Partial'!$A$1:$F$347,5,FALSE),"-") -> 18.56 | K109: =IFERROR(VLOOKUP($A109,'HPI Partial'!$A$1:$F$347,6,FALSE),"-") -> 529165
A110: 2021-01-15 | B110: 18.65 | C110: 18.83 | D110: 18.21 | E110: 18.34 | F110: 429636 | G110: =IFERROR(VLOOKUP($A110,'HPI Partial'!$A$1:$F$347,2,FALSE),"-") -> 18.65 | H110: =IFERROR(VLOOKUP($A110,'HPI Partial'!$A$1:$F$347,3,FALSE),"-") -> 18.83 | I110: =IFERROR(VLOOKUP($A110,'HPI Partial'!$A$1:$F$347,4,FALSE),"-") -> 18.21 | J110: =IFERROR(VLOOKUP($A110,'HPI Partial'!$A$1:$F$347,5,FALSE),"-") -> 18.34 | K110: =IFERROR(VLOOKUP($A110,'HPI Partial'!$A$1:$F$347,6,FALSE),"-") -> 429636
A111: 2021-01-14 | B111: 18.15 | C111: 19 | D111: 18.03 | E111: 18.93 | F111: 718543 | G111: =IFERROR(VLOOKUP($A111,'HPI Partial'!$A$1:$F$347,2,FALSE),"-") -> 18.15 | H111: =IFERROR(VLOOKUP($A111,'HPI Partial'!$A$1:$F$347,3,FALSE),"-") -> 19 | I111: =IFERROR(VLOOKUP($A111,'HPI Partial'!$A$1:$F$347,4,FALSE),"-") -> 18.03 | J111: =IFERROR(VLOOKUP($A111,'HPI Partial'!$A$1:$F$347,5,FALSE),"-") -> 18.93 | K111: =IFERROR(VLOOKUP($A111,'HPI Partial'!$A$1:$F$347,6,FALSE),"-") -> 718543
A112: 2021-01-13 | B112: 18.21 | C112: 18.465 | D112: 17.61 | E112: 18.14 | F112: 548046 | G112: =IFERROR(VLOOKUP($A112,'HPI Partial'!$A$1:$F$347,2,FALSE),"-") -> 18.21 | H112: =IFERROR(VLOOKUP($A112,'HPI Partial'!$A$1:$F$347,3,FALSE),"-") -> 18.465 | I112: =IFERROR(VLOOKUP($A112,'HPI Partial'!$A$1:$F$347,4,FALSE),"-") -> 17.61 | J112: =IFERROR(VLOOKUP($A112,'HPI Partial'!$A$1:$F$347,5,FALSE),"-") -> 18.14 | K112: =IFERROR(VLOOKUP($A112,'HPI Partial'!$A$1:$F$347,6,FALSE),"-") -> 548046
A113: 2021-01-12 | B113: 18.01 | C113: 18.43 | D113: 17.97 | E113: 18.2 | F113: 966973 | G113: =IFERROR(VLOOKUP($A113,'HPI Partial'!$A$1:$F$347,2,FALSE),"-") -> 18.01 | H113: =IFERROR(VLOOKUP($A113,'HPI Partial'!$A$1:$F$347,3,FALSE),"-") -> 18.43 | I113: =IFERROR(VLOOKUP($A113,'HPI Partial'!$A$1:$F$347,4,FALSE),"-") -> 17.97 | J113: =IFERROR(VLOOKUP($A113,'HPI Partial'!$A$1:$F$347,5,FALSE),"-") -> 18.2 | K113: =IFERROR(VLOOKUP($A113,'HPI Partial'!$A$1:$F$347,6,FALSE),"-") -> 966973
A114: 2021-01-11 | B114: 18.03 | C114: 18.36 | D114: 17.84 | E114: 17.97 | F114: 744050 | G114: =IFERROR(VLOOKUP($A114,'HPI Partial'!$A$1:$F$347,2,FALSE),"-") -> 18.03 | H114: =IFERROR(VLOOKUP($A114,'HPI Partial'!$A$1:$F$347,3,FALSE),"-") -> 18.36 | I114: =IFERROR(VLOOKUP($A114,'HPI Partial'!$A$1:$F$347,4,FALSE),"-") -> 17.84 | J114: =IFERROR(VLOOKUP($A114,'HPI Partial'!$A$1:$F$347,5,FALSE),"-") -> 17.97 | K114: =IFERROR(VLOOKUP($A114,'HPI Partial'!$A$1:$F$347,6,FALSE),"-") -> 744050
A115: 2021-01-08 | B115: 18.18 | C115: 18.33 | D115: 17.85 | E115: 18.28 | F115: 1017692 | G115: =IFERROR(VLOOKUP($A115,'HPI Partial'!$A$1:$F$347,2,FALSE),"-") -> 18.18 | H115: =IFERROR(VLOOKUP($A115,'HPI Partial'!$A$1:$F$347,3,FALSE),"-") -> 18.33 | I115: =IFERROR(VLOOKUP($A115,'HPI Partial'!$A$1:$F$347,4,FALSE),"-") -> 17.85 | J115: =IFERROR(VLOOKUP($A115,'HPI Partial'!$A$1:$F$347,5,FALSE),"-") -> 18.28 | K115: =IFERROR(VLOOKUP($A115,'HPI Partial'!$A$1:$F$347,6,FALSE),"-") -> 1017692
A116: 2021-01-07 | B116: 18.75 | C116: 19.2 | D116: 18.04 | E116: 18.1 | F116: 740237 | G116: =IFERROR(VLOOKUP($A116,'HPI Partial'!$A$1:$F$347,2,FALSE),"-") -> 18.75 | H116: =IFERROR(VLOOKUP($A116,'HPI Partial'!$A$1:$F$347,3,FALSE),"-") -> 19.2 | I116: =IFERROR(VLOOKUP($A116,'HPI Partial'!$A$1:$F$347,4,FALSE),"-") -> 18.04 | J116: =IFERROR(VLOOKUP($A116,'HPI Partial'!$A$1:$F$347,5,FALSE),"-") -> 18.1 | K116: =IFERROR(VLOOKUP($A116,'HPI Partial'!$A$1:$F$347,6,FALSE),"-") -> 740237
A117: 2021-01-06 | B117: 18.56 | C117: 19.05 | D117: 18.4 | E117: 18.55 | F117: 991231 | G117: =IFERROR(VLOOKUP($A117,'HPI Partial'!$A$1:$F$347,2,FALSE),"-") -> 18.56 | H117: =IFERROR(VLOOKUP($A117,'HPI Partial'!$A$1:$F$347,3,FALSE),"-") -> 19.05 | I117: =IFERROR(VLOOKUP($A117,'HPI Partial'!$A$1:$F$347,4,FALSE),"-") -> 18.4 | J117: =IFERROR(VLOOKUP($A117,'HPI Partial'!$A$1:$F$347,5,FALSE),"-") -> 18.55 | K117: =IFERROR(VLOOKUP($A117,'HPI Partial'!$A$1:$F$347,6,FALSE),"-") -> 991231
A118: 2021-01-05 | B118: 17.47 | C118: 18.6 | D118: 17.4201 | E118: 18.17 | F118: 1041835 | G118: =IFERROR(VLOOKUP($A118,'HPI Partial'!$A$1:$F$347,2,FALSE),"-") -> 17.47 | H118: =IFERROR(VLOOKUP($A118,'HPI Partial'!$A$1:$F$347,3,FALSE),"-") -> 18.6 | I118: =IFERROR(VLOOKUP($A118,'HPI Partial'!$A$1:$F$347,4,FALSE),"-") -> 17.4201 | J118: =IFERROR(VLOOKUP($A118,'HPI Partial'!$A$1:$F$347,5,FALSE),"-") -> 18.17 | K118: =IFERROR(VLOOKUP($A118,'HPI Partial'!$A$1:$F$347,6,FALSE),"-") -> 1041835
A119: 2021-01-04 | B119: 18.08 | C119: 18.2099 | D119: 17.11 | E119: 17.6 | F119: 970576 | G119: =IFERROR(VLOOKUP($A119,'HPI Partial'!$A$1:$F$347,2,FALSE),"-") -> 18.08 | H119: =IFERROR(VLOOKUP($A119,'HPI Partial'!$A$1:$F$347,3,FALSE),"-") -> 18.2099 | I119: =IFERROR(VLOOKUP($A119,'HPI Partial'!$A$1:$F$347,4,FALSE),"-") -> 17.11 | J119: =IFERROR(VLOOKUP($A119,'HPI Partial'!$A$1:$F$347,5,FALSE),"-") -> 17.6 | K119: =IFERROR(VLOOKUP($A119,'HPI Partial'!$A$1:$F$347,6,FALSE),"-") -> 970576
A120: 2020-12-31 | B120: 18.67 | C120: 18.67 | D120: 18.02 | E120: 18.02 | F120: 721999 | G120: =IFERROR(VLOOKUP($A120,'HPI Partial'!$A$1:$F$347,2,FALSE),"-") -> 18.67 | H120: =IFERROR(VLOOKUP($A120,'HPI Partial'!$A$1:$F$347,3,FALSE),"-") -> 18.67 | I120: =IFERROR(VLOOKUP($A120,'HPI Partial'!$A$1:$F$347,4,FALSE),"-") -> 18.02 | J120: =IFERROR(VLOOKUP($A120,'HPI Partial'!$A$1:$F$347,5,FALSE),"-") -> 18.02 | K120: =IFERROR(VLOOKUP($A120,'HPI Partial'!$A$1:$F$347,6,FALSE),"-") -> 721999
A121: 2020-12-30 | B121: 18 | C121: 18.87 | D121: 17.95 | E121: 18.45 | F121: 1264790 | G121: =IFERROR(VLOOKUP($A121,'HPI Partial'!$A$1:$F$347,2,FALSE),"-") -> 18 | H121: =IFERROR(VLOOKUP($A121,'HPI Partial'!$A$1:$F$347,3,FALSE),"-") -> 18.87 | I121: =IFERROR(VLOOKUP($A121,'HPI Partial'!$A$1:$F$347,4,FALSE),"-") -> 17.95 | J121: =IFERROR(VLOOKUP($A121,'HPI Partial'!$A$1:$F$347,5,FALSE),"-") -> 18.45 | K121: =IFERROR(VLOOKUP($A121,'HPI Partial'!$A$1:$F$347,6,FALSE),"-") -> 1264790
A122: 2020-12-29 | B122: 18.03 | C122: 18.52 | D122: 17.64 | E122: 17.85 | F122: 2286089 | G122: =IFERROR(VLOOKUP($A122,'HPI Partial'!$A$1:$F$347,2,FALSE),"-") -> 18.03 | H122: =IFERROR(VLOOKUP($A122,'HPI Partial'!$A$1:$F$347,3,FALSE),"-") -> 18.52 | I122: =IFERROR(VLOOKUP($A122,'HPI Partial'!$A$1:$F$347,4,FALSE),"-") -> 17.64 | J122: =IFERROR(VLOOKUP($A122,'HPI Partial'!$A$1:$F$347,5,FALSE),"-") -> 17.85 | K122: =IFERROR(VLOOKUP($A122,'HPI Partial'!$A$1:$F$347,6,FALSE),"-") -> 2286089
A123: 2020-12-28 | B123: 17.2 | C123: 17.88 | D123: 17.07 | E123: 17.7 | F123: 1357484 | G123: =IFERROR(VLOOKUP($A123,'HPI Partial'!$A$1:$F$347,2,FALSE),"-") -> 17.2 | H123: =IFERROR(VLOOKUP($A123,'HPI Partial'!$A$1:$F$347,3,FALSE),"-") -> 17.88 | I123: =IFERROR(VLOOKUP($A123,'HPI Partial'!$A$1:$F$347,4,FALSE),"-") -> 17.07 | J123: =IFERROR(VLOOKUP($A123,'HPI Partial'!$A$1:$F$347,5,FALSE),"-") -> 17.7 | K123: =IFERROR(VLOOKUP($A123,'HPI Partial'!$A$1:$F$347,6,FALSE),"-") -> 1357484
A124: 2020-12-24 | B124: 16.85 | C124: 17.08 | D124: 16.64 | E124: 17.01 | F124: 731111 | G124: =IFERROR(VLOOKUP($A124,'HPI Partial'!$A$1:$F$347,2,FALSE),"-") -> 16.85 | H124: =IFERROR(VLOOKUP($A124,'HPI Partial'!$A$1:$F$347,3,FALSE),"-") -> 17.08 | I124: =IFERROR(VLOOKUP($A124,'HPI Partial'!$A$1:$F$347,4,FALSE),"-") -> 16.64 | J124: =IFERROR(VLOOKUP($A124,'HPI Partial'!$A$1:$F$347,5,FALSE),"-") -> 17.01 | K124: =IFERROR(VLOOKUP($A124,'HPI Partial'!$A$1:$F$347,6,FALSE),"-") -> 731111
A125: 2020-12-23 | B125: 16.29 | C125: 17.11 | D125: 16.16 | E125: 16.92 | F125: 732218 | G125: =IFERROR(VLOOKUP($A125,'HPI Partial'!$A$1:$F$347,2,FALSE),"-") -> 16.29 | H125: =IFERROR(VLOOKUP($A125,'HPI Partial'!$A$1:$F$347,3,FALSE),"-") -> 17.11 | I125: =IFERROR(VLOOKUP($A125,'HPI Partial'!$A$1:$F$347,4,FALSE),"-") -> 16.16 | J125: =IFERROR(VLOOKUP($A125,'HPI Partial'!$A$1:$F$347,5,FALSE),"-") -> 16.92 | K125: =IFERROR(VLOOKUP($A125,'HPI Partial'!$A$1:$F$347,6,FALSE),"-") -> 732218
A126: 2020-12-22 | B126: 15.81 | C126: 16.16 | D126: 15.75 | E126: 16.03 | F126: 858692 | G126: =IFERROR(VLOOKUP($A126,'HPI Partial'!$A$1:$F$347,2,FALSE),"-") -> 15.81 | H126: =IFERROR(VLOOKUP($A126,'HPI Partial'!$A$1:$F$347,3,FALSE),"-") -> 16.16 | I126: =IFERROR(VLOOKUP($A126,'HPI Partial'!$A$1:$F$347,4,FALSE),"-") -> 15.75 | J126: =IFERROR(VLOOKUP($A126,'HPI Partial'!$A$1:$F$347,5,FALSE),"-") -> 16.03 | K126: =IFERROR(VLOOKUP($A126,'HPI Partial'!$A$1:$F$347,6,FALSE),"-") -> 858692
A127: 2020-12-21 | B127: 15.23 | C127: 15.88 | D127: 15.08 | E127: 15.84 | F127: 795052 | G127: =IFERROR(VLOOKUP($A127,'HPI Partial'!$A$1:$F$347,2,FALSE),"-") -> 15.23 | H127: =IFERROR(VLOOKUP($A127,'HPI Partial'!$A$1:$F$347,3,FALSE),"-") -> 15.88 | I127: =IFERROR(VLOOKUP($A127,'HPI Partial'!$A$1:$F$347,4,FALSE),"-") -> 15.08 | J127: =IFERROR(VLOOKUP($A127,'HPI Partial'!$A$1:$F$347,5,FALSE),"-") -> 15.84 | K127: =IFERROR(VLOOKUP($A127,'HPI Partial'!$A$1:$F$347,6,FALSE),"-") -> 795052
A128: 2020-12-18 | B128: 15.43 | C128: 15.83 | D128: 15.26 | E128: 15.73 | F128: 1353977 | G128: =IFERROR(VLOOKUP($A128,'HPI Partial'!$A$1:$F$347,2,FALSE),"-") -> 15.43 | H128: =IFERROR(VLOOKUP($A128,'HPI Partial'!$A$1:$F$347,3,FALSE),"-") -> 15.83 | I128: =IFERROR(VLOOKUP($A128,'HPI Partial'!$A$1:$F$347,4,FALSE),"-") -> 15.26 | J128: =IFERROR(VLOOKUP($A128,'HPI Partial'!$A$1:$F$347,5,FALSE),"-") -> 15.73 | K128: =IFERROR(VLOOKUP($A128,'HPI Partial'!$A$1:$F$347,6,FALSE),"-") -> 1353977
A129: 2020-12-17 | B129: 14.98 | C129: 15.59 | D129: 14.84 | E129: 15.4 | F129: 880511 | G129: =IFERROR(VLOOKUP($A129,'HPI Partial'!$A$1:$F$347,2,FALSE),"-") -> 14.98 | H129: =IFERROR(VLOOKUP($A129,'HPI Partial'!$A$1:$F$347,3,FALSE),"-") -> 15.59 | I129: =IFERROR(VLOOKUP($A129,'HPI Partial'!$A$1:$F$347,4,FALSE),"-") -> 14.84 | J129: =IFERROR(VLOOKUP($A129,'HPI Partial'!$A$1:$F$347,5,FALSE),"-") -> 15.4 | K129: =IFERROR(VLOOKUP($A129,'HPI Partial'!$A$1:$F$347,6,FALSE),"-") -> 880511
A130: 2020-12-16 | B130: 15.31 | C130: 15.43 | D130: 14.92 | E130: 14.94 | F130: 516905 | G130: =IFERROR(VLOOKUP($A130,'HPI Partial'!$A$1:$F$347,2,FALSE),"-") -> 15.31 | H130: =IFERROR(VLOOKUP($A130,'HPI Partial'!$A$1:$F$347,3,FALSE),"-") -> 15.43 | I130: =IFERROR(VLOOKUP($A130,'HPI Partial'!$A$1:$F$347,4,FALSE),"-") -> 14.92 | J130: =IFERROR(VLOOKUP($A130,'HPI Partial'!$A$1:$F$347,5,FALSE),"-") -> 14.94 | K130: =IFERROR(VLOOKUP($A130,'HPI Partial'!$A$1:$F$347,6,FALSE),"-") -> 516905
A131: 2020-12-15 | B131: 14.88 | C131: 15.41 | D131: 14.75 | E131: 15.27 | F131: 579371 | G131: =IFERROR(VLOOKUP($A131,'HPI Partial'!$A$1:$F$347,2,FALSE),"-") -> 14.88 | H131: =IFERROR(VLOOKUP($A131,'HPI Partial'!$A$1:$F$347,3,FALSE),"-") -> 15.41 | I131: =IFERROR(VLOOKUP($A131,'HPI Partial'!$A$1:$F$347,4,FALSE),"-") -> 14.75 | J131: =IFERROR(VLOOKUP($A131,'HPI Partial'!$A$1:$F$347,5,FALSE),"-") -> 15.27 | K131: =IFERROR(VLOOKUP($A131,'HPI Partial'!$A$1:$F$347,6,FALSE),"-") -> 579371
A132: 2020-12-14 | B132: 15.5 | C132: 15.67 | D132: 14.54 | E132: 14.61 | F132: 1057481 | G132: =IFERROR(VLOOKUP($A132,'HPI Partial'!$A$1:$F$347,2,FALSE),"-") -> 15.5 | H132: =IFERROR(VLOOKUP($A132,'HPI Partial'!$A$1:$F$347,3,FALSE),"-") -> 15.67 | I132: =IFERROR(VLOOKUP($A132,'HPI Partial'!$A$1:$F$347,4,FALSE),"-") -> 14.54 | J132: =IFERROR(VLOOKUP($A132,'HPI Partial'!$A$1:$F$347,5,FALSE),"-") -> 14.61 | K132: =IFERROR(VLOOKUP($A132,'HPI Partial'!$A$1:$F$347,6,FALSE),"-") -> 1057481
A133: 2020-12-11 | B133: 15.5 | C133: 15.75 | D133: 15.1368 | E133: 15.35 | F133: 1988776 | G133: =IFERROR(VLOOKUP($A133,'HPI Partial'!$A$1:$F$347,2,FALSE),"-") -> 15.5 | H133: =IFERROR(VLOOKUP($A133,'HPI Partial'!$A$1:$F$347,3,FALSE),"-") -> 15.75 | I133: =IFERROR(VLOOKUP($A133,'HPI Partial'!$A$1:$F$347,4,FALSE),"-") -> 15.1368 | J133: =IFERROR(VLOOKUP($A133,'HPI Partial'!$A$1:$F$347,5,FALSE),"-") -> 15.35 | K133: =IFERROR(VLOOKUP($A133,'HPI Partial'!$A$1:$F$347,6,FALSE),"-") -> 1988776
A134: 2020-12-10 | B134: 15.01 | C134: 15.78 | D134: 14.92 | E134: 15.51 | F134: 835167 | G134: =IFERROR(VLOOKUP($A134,'HPI Partial'!$A$1:$F$347,2,FALSE),"-") -> 15.01 | H134: =IFERROR(VLOOKUP($A134,'HPI Partial'!$A$1:$F$347,3,FALSE),"-") -> 15.78 | I134: =IFERROR(VLOOKUP($A134,'HPI Partial'!$A$1:$F$347,4,FALSE),"-") -> 14.92 | J134: =IFERROR(VLOOKUP($A134,'HPI Partial'!$A$1:$F$347,5,FALSE),"-") -> 15.51 | K134: =IFERROR(VLOOKUP($A134,'HPI Partial'!$A$1:$F$347,6,FALSE),"-") -> 835167
A135: 2020-12-09 | B135: 15.15 | C135: 15.55 | D135: 15.0687 | E135: 15.21 | F135: 817613 | G135: =IFERROR(VLOOKUP($A135,'HPI Partial'!$A$1:$F$347,2,FALSE),"-") -> 15.15 | H135: =IFERROR(VLOOKUP($A135,'HPI Partial'!$A$1:$F$347,3,FALSE),"-") -> 15.55 | I135: =IFERROR(VLOOKUP($A135,'HPI Partial'!$A$1:$F$347,4,FALSE),"-") -> 15.0687 | J135: =IFERROR(VLOOKUP($A135,'HPI Partial'!$A$1:$F$347,5,FALSE),"-") -> 15.21 | K135: =IFERROR(VLOOKUP($A135,'HPI Partial'!$A$1:$F$347,6,FALSE),"-") -> 817613
A136: 2020-12-08 | B136: 14.3 | C136: 15.05 | D136: 14.3 | E136: 14.9 | F136: 716251 | G136: =IFERROR(VLOOKUP($A136,'HPI Partial'!$A$1:$F$347,2,FALSE),"-") -> 14.3 | H136: =IFERROR(VLOOKUP($A136,'HPI Partial'!$A$1:$F$347,3,FALSE),"-") -> 15.05 | I136: =IFERROR(VLOOKUP($A136,'HPI Partial'!$A$1:$F$347,4,FALSE),"-") -> 14.3 | J136: =IFERROR(VLOOKUP($A136,'HPI Partial'!$A$1:$F$347,5,FALSE),"-") -> 14.9 | K136: =IFERROR(VLOOKUP($A136,'HPI Partial'!$A$1:$F$347,6,FALSE),"-") -> 716251
A137: 2020-12-07 | B137: 14.54 | C137: 14.72 | D137: 14.22 | E137: 14.46 | F137: 686328 | G137: =IFERROR(VLOOKUP($A137,'HPI Partial'!$A$1:$F$347,2,FALSE),"-") -> 14.54 | H137: =IFERROR(VLOOKUP($A137,'HPI Partial'!$A$1:$F$347,3,FALSE),"-") -> 14.72 | I137: =IFERROR(VLOOKUP($A137,'HPI Partial'!$A$1:$F$347,4,FALSE),"-") -> 14.22 | J137: =IFERROR(VLOOKUP($A137,'HPI Partial'!$A$1:$F$347,5,FALSE),"-") -> 14.46 | K137: =IFERROR(VLOOKUP($A137,'HPI Partial'!$A$1:$F$347,6,FALSE),"-") -> 686328
A138: 2020-12-04 | B138: 14.52 | C138: 14.835 | D138: 14.21 | E138: 14.7 | F138: 1144514 | G138: =IFERROR(VLOOKUP($A138,'HPI Partial'!$A$1:$F$347,2,FALSE),"-") -> - | H138: =IFERROR(VLOOKUP($A138,'HPI Partial'!$A$1:$F$347,3,FALSE),"-") -> - | I138: =IFERROR(VLOOKUP($A138,'HPI Partial'!$A$1:$F$347,4,FALSE),"-") -> - | J138: =IFERROR(VLOOKUP($A138,'HPI Partial'!$A$1:$F$347,5,FALSE),"-") -> - | K138: =IFERROR(VLOOKUP($A138,'HPI Partial'!$A$1:$F$347,6,FALSE),"-") -> -
A139: 2020-12-03 | B139: 15.5 | C139: 15.68 | D139: 14.11 | E139: 14.17 | F139: 1865570 | G139: =IFERROR(VLOOKUP($A139,'HPI Partial'!$A$1:$F$347,2,FALSE),"-") -> - | H139: =IFERROR(VLOOKUP($A139,'HPI Partial'!$A$1:$F$347,3,FALSE),"-") -> - | I139: =IFERROR(VLOOKUP($A139,'HPI Partial'!$A$1:$F$347,4,FALSE),"-") -> - | J139: =IFERROR(VLOOKUP($A139,'HPI Partial'!$A$1:$F$347,5,FALSE),"-") -> - | K139: =IFERROR(VLOOKUP($A139,'HPI Partial'!$A$1:$F$347,6,FALSE),"-") -> -
A140: 2020-12-02 | B140: 15.01 | C140: 15.46 | D140: 14.9 | E140: 15.41 | F140: 408193 | G140: =IFERROR(VLOOKUP($A140,'HPI Partial'!$A$1:$F$347,2,FALSE),"-") -> - | H140: =IFERROR(VLOOKUP($A140,'HPI Partial'!$A$1:$F$347,3,FALSE),"-") -> - | I140: =IFERROR(VLOOKUP($A140,'HPI Partial'!$A$1:$F$347,4,FALSE),"-") -> - | J140: =IFERROR(VLOOKUP($A140,'HPI Partial'!$A$1:$F$347,5,FALSE),"-") -> - | K140: =IFERROR(VLOOKUP($A140,'HPI Partial'!$A$1:$F$347,6,FALSE),"-") -> -
A141: 2020-12-01 | B141: 14.93 | C141: 15.49 | D141: 14.93 | E141: 15.13 | F141: 362033 | G141: =IFERROR(VLOOKUP($A141,'HPI Partial'!$A$1:$F$347,2,FALSE),"-") -> - | H141: =IFERROR(VLOOKUP($A141,'HPI Partial'!$A$1:$F$347,3,FALSE),"-") -> - | I141: =IFERROR(VLOOKUP($A141,'HPI Partial'!$A$1:$F$347,4,FALSE),"-") -> - | J141: =IFERROR(VLOOKUP($A141,'HPI Partial'!$A$1:$F$347,5,FALSE),"-") -> - | K141: =IFERROR(VLOOKUP($A141,'HPI Partial'!$A$1:$F$347,6,FALSE),"-") -> -
A142: 2020-11-30 | B142: 15.3 | C142: 15.31 | D142: 14.69 | E142: 14.83 | F142: 777854 | G142: =IFERROR(VLOOKUP($A142,'HPI Partial'!$A$1:$F$347,2,FALSE),"-") -> - | H142: =IFERROR(VLOOKUP($A142,'HPI Partial'!$A$1:$F$347,3,FALSE),"-") -> - | I142: =IFERROR(VLOOKUP($A142,'HPI Partial'!$A$1:$F$347,4,FALSE),"-") -> - | J142: =IFERROR(VLOOKUP($A142,'HPI Partial'!$A$1:$F$347,5,FALSE),"-") -> - | K142: =IFERROR(VLOOKUP($A142,'HPI Partial'!$A$1:$F$347,6,FALSE),"-") -> -
A143: 2020-11-27 | B143: 15.25 | C143: 15.755 | D143: 15.18 | E143: 15.48 | F143: 561278 | G143: =IFERROR(VLOOKUP($A143,'HPI Partial'!$A$1:$F$347,2,FALSE),"-") -> - | H143: =IFERROR(VLOOKUP($A143,'HPI Partial'!$A$1:$F$347,3,FALSE),"-") -> - | I143: =IFERROR(VLOOKUP($A143,'HPI Partial'!$A$1:$F$347,4,FALSE),"-") -> - | J143: =IFERROR(VLOOKUP($A143,'HPI Partial'!$A$1:$F$347,5,FALSE),"-") -> - | K143: =IFERROR(VLOOKUP($A143,'HPI Partial'!$A$1:$F$347,6,FALSE),"-") -> -
A144: 2020-11-25 | B144: 15.45 | C144: 15.6 | D144: 15.13 | E144: 15.24 | F144: 445904 | G144: =IFERROR(VLOOKUP($A144,'HPI Partial'!$A$1:$F$347,2,FALSE),"-") -> - | H144: =IFERROR(VLOOKUP($A144,'HPI Partial'!$A$1:$F$347,3,FALSE),"-") -> - | I144: =IFERROR(VLOOKUP($A144,'HPI Partial'!$A$1:$F$347,4,FALSE),"-") -> - | J144: =IFERROR(VLOOKUP($A144,'HPI Partial'!$A$1:$F$347,5,FALSE),"-") -> - | K144: =IFERROR(VLOOKUP($A144,'HPI Partial'!$A$1:$F$347,6,FALSE),"-") -> -
A145: 2020-11-24 | B145: 15.91 | C145: 16.31 | D145: 15.64 | E145: 15.65 | F145: 706927 | G145: =IFERROR(VLOOKUP($A145,'HPI Partial'!$A$1:$F$347,2,FALSE),"-") -> - | H145: =IFERROR(VLOOKUP($A145,'HPI Partial'!$A$1:$F$347,3,FALSE),"-") -> - | I145: =IFERROR(VLOOKUP($A145,'HPI Partial'!$A$1:$F$347,4,FALSE),"-") -> - | J145: =IFERROR(VLOOKUP($A145,'HPI Partial'!$A$1:$F$347,5,FALSE),"-") -> - | K145: =IFERROR(VLOOKUP($A145,'HPI Partial'!$A$1:$F$347,6,FALSE),"-") -> -
A146: 2020-11-23 | B146: 15.41 | C146: 15.92 | D146: 15.36 | E146: 15.49 | F146: 879945 | G146: =IFERROR(VLOOKUP($A146,'HPI Partial'!$A$1:$F$347,2,FALSE),"-") -> - | H146: =IFERROR(VLOOKUP($A146,'HPI Partial'!$A$1:$F$347,3,FALSE),"-") -> - | I146: =IFERROR(VLOOKUP($A146,'HPI Partial'!$A$1:$F$347,4,FALSE),"-") -> - | J146: =IFERROR(VLOOKUP($A146,'HPI Partial'!$A$1:$F$347,5,FALSE),"-") -> - | K146: =IFERROR(VLOOKUP($A146,'HPI Partial'!$A$1:$F$347,6,FALSE),"-") -> -
A147: 2020-11-20 | B147: 15.05 | C147: 15.1493 | D147: 14.92 | E147: 15.09 | F147: 416783 | G147: =IFERROR(VLOOKUP($A147,'HPI Partial'!$A$1:$F$347,2,FALSE),"-") -> - | H147: =IFERROR(VLOOKUP($A147,'HPI Partial'!$A$1:$F$347,3,FALSE),"-") -> - | I147: =IFERROR(VLOOKUP($A147,'HPI Partial'!$A$1:$F$347,4,FALSE),"-") -> - | J147: =IFERROR(VLOOKUP($A147,'HPI Partial'!$A$1:$F$347,5,FALSE),"-") -> - | K147: =IFERROR(VLOOKUP($A147,'HPI Partial'!$A$1:$F$347,6,FALSE),"-") -> -
A148: 2020-11-19 | B148: 15.4 | C148: 15.475 | D148: 15.0211 | E148: 15.1 | F148: 538317 | G148: =IFERROR(VLOOKUP($A148,'HPI Partial'!$A$1:$F$347,2,FALSE),"-") -> - | H148: =IFERROR(VLOOKUP($A148,'HPI Partial'!$A$1:$F$347,3,FALSE),"-") -> - | I148: =IFERROR(VLOOKUP($A148,'HPI Partial'!$A$1:$F$347,4,FALSE),"-") -> - | J148: =IFERROR(VLOOKUP($A148,'HPI Partial'!$A$1:$F$347,5,FALSE),"-") -> - | K148: =IFERROR(VLOOKUP($A148,'HPI Partial'!$A$1:$F$347,6,FALSE),"-") -> -
A149: 2020-11-18 | B149: 15.44 | C149: 15.91 | D149: 15.295 | E149: 15.47 | F149: 683664 | G149: =IFERROR(VLOOKUP($A149,'HPI Partial'!$A$1:$F$347,2,FALSE),"-") -> - | H149: =IFERROR(VLOOKUP($A149,'HPI Partial'!$A$1:$F$347,3,FALSE),"-") -> - | I149: =IFERROR(VLOOKUP($A149,'HPI Partial'!$A$1:$F$347,4,FALSE),"-") -> - | J149: =IFERROR(VLOOKUP($A149,'HPI Partial'!$A$1:$F$347,5,FALSE),"-") -> - | K149: =IFERROR(VLOOKUP($A149,'HPI Partial'!$A$1:$F$347,6,FALSE),"-") -> -
A150: 2020-11-17 | B150: 14.66 | C150: 15.42 | D150: 14.56 | E150: 15.3 | F150: 639852 | G150: =IFERROR(VLOOKUP($A150,'HPI Partial'!$A$1:$F$347,2,FALSE),"-") -> 14.66 | H150: =IFERROR(VLOOKUP($A150,'HPI Partial'!$A$1:$F$347,3,FALSE),"-") -> 15.42 | I150: =IFERROR(VLOOKUP($A150,'HPI Partial'!$A$1:$F$347,4,FALSE),"-") -> 14.56 | J150: =IFERROR(VLOOKUP($A150,'HPI Partial'!$A$1:$F$347,5,FALSE),"-") -> 15.3 | K150: =IFERROR(VLOOKUP($A150,'HPI Partial'!$A$1:$F$347,6,FALSE),"-") -> 639852
A151: 2020-11-16 | B151: 15 | C151: 15.53 | D151: 14.33 | E151: 14.93 | F151: 1259920 | G151: =IFERROR(VLOOKUP($A151,'HPI Partial'!$A$1:$F$347,2,FALSE),"-") -> 15 | H151: =IFERROR(VLOOKUP($A151,'HPI Partial'!$A$1:$F$347,3,FALSE),"-") -> 15.53 | I151: =IFERROR(VLOOKUP($A151,'HPI Partial'!$A$1:$F$347,4,FALSE),"-") -> 14.33 | J151: =IFERROR(VLOOKUP($A151,'HPI Partial'!$A$1:$F$347,5,FALSE),"-") -> 14.93 | K151: =IFERROR(VLOOKUP($A151,'HPI Partial'!$A$1:$F$347,6,FALSE),"-") -> 1259920
A152: 2020-11-13 | B152: 14.15 | C152: 14.525 | D152: 13.9724 | E152: 14.35 | F152: 587225 | G152: =IFERROR(VLOOKUP($A152,'HPI Partial'!$A$1:$F$347,2,FALSE),"-") -> 14.15 | H152: =IFERROR(VLOOKUP($A152,'HPI Partial'!$A$1:$F$347,3,FALSE),"-") -> 14.525 | I152: =IFERROR(VLOOKUP($A152,'HPI Partial'!$A$1:$F$347,4,FALSE),"-") -> 13.9724 | J152: =IFERROR(VLOOKUP($A152,'HPI Partial'!$A$1:$F$347,5,FALSE),"-") -> 14.35 | K152: =IFERROR(VLOOKUP($A152,'HPI Partial'!$A$1:$F$347,6,FALSE),"-") -> 587225
A153: 2020-11-12 | B153: 14.26 | C153: 14.45 | D153: 13.94 | E153: 14.05 | F153: 507899 | G153: =IFERROR(VLOOKUP($A153,'HPI Partial'!$A$1:$F$347,2,FALSE),"-") -> 14.26 | H153: =IFERROR(VLOOKUP($A153,'HPI Partial'!$A$1:$F$347,3,FALSE),"-") -> 14.45 | I153: =IFERROR(VLOOKUP($A153,'HPI Partial'!$A$1:$F$347,4,FALSE),"-") -> 13.94 | J153: =IFERROR(VLOOKUP($A153,'HPI Partial'!$A$1:$F$347,5,FALSE),"-") -> 14.05 | K153: =IFERROR(VLOOKUP($A153,'HPI Partial'!$A$1:$F$347,6,FALSE),"-") -> 507899
A154: 2020-11-11 | B154: 14.07 | C154: 14.53 | D154: 13.93 | E154: 14.52 | F154: 626383 | G154: =IFERROR(VLOOKUP($A154,'HPI Partial'!$A$1:$F$347,2,FALSE),"-") -> 14.07 | H154: =IFERROR(VLOOKUP($A154,'HPI Partial'!$A$1:$F$347,3,FALSE),"-") -> 14.53 | I154: =IFERROR(VLOOKUP($A154,'HPI Partial'!$A$1:$F$347,4,FALSE),"-") -> 13.93 | J154: =IFERROR(VLOOKUP($A154,'HPI Partial'!$A$1:$F$347,5,FALSE),"-") -> 14.52 | K154: =IFERROR(VLOOKUP($A154,'HPI Partial'!$A$1:$F$347,6,FALSE),"-") -> 626383
A155: 2020-11-10 | B155: 14.28 | C155: 14.5 | D155: 13.795 | E155: 14.06 | F155: 1174166 | G155: =IFERROR(VLOOKUP($A155,'HPI Partial'!$A$1:$F$347,2,FALSE),"-") -> 14.28 | H155: =IFERROR(VLOOKUP($A155,'HPI Partial'!$A$1:$F$347,3,FALSE),"-") -> 14.5 | I155: =IFERROR(VLOOKUP($A155,'HPI Partial'!$A$1:$F$347,4,FALSE),"-") -> 13.795 | J155: =IFERROR(VLOOKUP($A155,'HPI Partial'!$A$1:$F$347,5,FALSE),"-") -> 14.06 | K155: =IFERROR(VLOOKUP($A155,'HPI Partial'!$A$1:$F$347,6,FALSE),"-") -> 1174166
A156: 2020-11-09 | B156: 14.99 | C156: 15.14 | D156: 13.55 | E156: 14.02 | F156: 3946991 | G156: =IFERROR(VLOOKUP($A156,'HPI Partial'!$A$1:$F$347,2,FALSE),"-") -> 14.99 | H156: =IFERROR(VLOOKUP($A156,'HPI Partial'!$A$1:$F$347,3,FALSE),"-") -> 15.14 | I156: =IFERROR(VLOOKUP($A156,'HPI Partial'!$A$1:$F$347,4,FALSE),"-") -> 13.55 | J156: =IFERROR(VLOOKUP($A156,'HPI Partial'!$A$1:$F$347,5,FALSE),"-") -> 14.02 | K156: =IFERROR(VLOOKUP($A156,'HPI Partial'!$A$1:$F$347,6,FALSE),"-") -> 3946991
A157: 2020-11-06 | B157: 11.97 | C157: 12.03 | D157: 11.8 | E157: 11.82 | F157: 328800 | G157: =IFERROR(VLOOKUP($A157,'HPI Partial'!$A$1:$F$347,2,FALSE),"-") -> 11.97 | H157: =IFERROR(VLOOKUP($A157,'HPI Partial'!$A$1:$F$347,3,FALSE),"-") -> 12.03 | I157: =IFERROR(VLOOKUP($A157,'HPI Partial'!$A$1:$F$347,4,FALSE),"-") -> 11.8 | J157: =IFERROR(VLOOKUP($A157,'HPI Partial'!$A$1:$F$347,5,FALSE),"-") -> 11.82 | K157: =IFERROR(VLOOKUP($A157,'HPI Partial'!$A$1:$F$347,6,FALSE),"-") -> 328800
A158: 2020-11-05 | B158: 11.5 | C158: 12.05 | D158: 11.27 | E158: 12.02 | F158: 595823 | G158: =IFERROR(VLOOKUP($A158,'HPI Partial'!$A$1:$F$347,2,FALSE),"-") -> 11.5 | H158: =IFERROR(VLOOKUP($A158,'HPI Partial'!$A$1:$F$347,3,FALSE),"-") -> 12.05 | I158: =IFERROR(VLOOKUP($A158,'HPI Partial'!$A$1:$F$347,4,FALSE),"-") -> 11.27 | J158: =IFERROR(VLOOKUP($A158,'HPI Partial'!$A$1:$F$347,5,FALSE),"-") -> 12.02 | K158: =IFERROR(VLOOKUP($A158,'HPI Partial'!$A$1:$F$347,6,FALSE),"-") -> 595823
A159: 2020-11-04 | B159: 11.46 | C159: 11.59 | D159: 11.24 | E159: 11.41 | F159: 632029 | G159: =IFERROR(VLOOKUP($A159,'HPI Partial'!$A$1:$F$347,2,FALSE),"-") -> 11.46 | H159: =IFERROR(VLOOKUP($A159,'HPI Partial'!$A$1:$F$347,3,FALSE),"-") -> 11.59 | I159: =IFERROR(VLOOKUP($A159,'HPI Partial'!$A$1:$F$347,4,FALSE),"-") -> 11.24 | J159: =IFERROR(VLOOKUP($A159,'HPI Partial'!$A$1:$F$347,5,FALSE),"-") -> 11.41 | K159: =IFERROR(VLOOKUP($A159,'HPI Partial'!$A$1:$F$347,6,FALSE),"-") -> 632029
A160: 2020-11-03 | B160: 11.26 | C160: 11.72 | D160: 11.24 | E160: 11.65 | F160: 547537 | G160: =IFERROR(VLOOKUP($A160,'HPI Partial'!$A$1:$F$347,2,FALSE),"-") -> 11.26 | H160: =IFERROR(VLOOKUP($A160,'HPI Partial'!$A$1:$F$347,3,FALSE),"-") -> 11.72 | I160: =IFERROR(VLOOKUP($A160,'HPI Partial'!$A$1:$F$347,4,FALSE),"-") -> 11.24 | J160: =IFERROR(VLOOKUP($A160,'HPI Partial'!$A$1:$F$347,5,FALSE),"-") -> 11.65 | K160: =IFERROR(VLOOKUP($A160,'HPI Partial'!$A$1:$F$347,6,FALSE),"-") -> 547537
A161: 2020-11-02 | B161: 11.63 | C161: 11.75 | D161: 10.81 | E161: 11.15 | F161: 753002 | G161: =IFERROR(VLOOKUP($A161,'HPI Partial'!$A$1:$F$347,2,FALSE),"-") -> 11.63 | H161: =IFERROR(VLOOKUP($A161,'HPI Partial'!$A$1:$F$347,3,FALSE),"-") -> 11.75 | I161: =IFERROR(VLOOKUP($A161,'HPI Partial'!$A$1:$F$347,4,FALSE),"-") -> 10.81 | J161: =IFERROR(VLOOKUP($A161,'HPI Partial'!$A$1:$F$347,5,FALSE),"-") -> 11.15 | K161: =IFERROR(VLOOKUP($A161,'HPI Partial'!$A$1:$F$347,6,FALSE),"-") -> 753002
A162: 2020-10-30 | B162: 11.44 | C162: 11.59 | D162: 11.112 | E162: 11.53 | F162: 739970 | G162: =IFERROR(VLOOKUP($A162,'HPI Partial'!$A$1:$F$347,2,FALSE),"-") -> 11.44 | H162: =IFERROR(VLOOKUP($A162,'HPI Partial'!$A$1:$F$347,3,FALSE),"-") -> 11.59 | I162: =IFERROR(VLOOKUP($A162,'HPI Partial'!$A$1:$F$347,4,FALSE),"-") -> 11.112 | J162: =IFERROR(VLOOKUP($A162,'HPI Partial'!$A$1:$F$347,5,FALSE),"-") -> 11.53 | K162: =IFERROR(VLOOKUP($A162,'HPI Partial'!$A$1:$F$347,6,FALSE),"-") -> 739970
A163: 2020-10-29 | B163: 11.19 | C163: 11.53 | D163: 10.76 | E163: 11.49 | F163: 1618853 | G163: =IFERROR(VLOOKUP($A163,'HPI Partial'!$A$1:$F$347,2,FALSE),"-") -> 11.19 | H163: =IFERROR(VLOOKUP($A163,'HPI Partial'!$A$1:$F$347,3,FALSE),"-") -> 11.53 | I163: =IFERROR(VLOOKUP($A163,'HPI Partial'!$A$1:$F$347,4,FALSE),"-") -> 10.76 | J163: =IFERROR(VLOOKUP($A163,'HPI Partial'!$A$1:$F$347,5,FALSE),"-") -> 11.49 | K163: =IFERROR(VLOOKUP($A163,'HPI Partial'!$A$1:$F$347,6,FALSE),"-") -> 1618853
A164: 2020-10-28 | B164: 11.36 | C164: 12 | D164: 11.34 | E164: 11.79 | F164: 1143441 | G164: =IFERROR(VLOOKUP($A164,'HPI Partial'!$A$1:$F$347,2,FALSE),"-") -> 11.36 | H164: =IFERROR(VLOOKUP($A164,'HPI Partial'!$A$1:$F$347,3,FALSE),"-") -> 12 | I164: =IFERROR(VLOOKUP($A164,'HPI Partial'!$A$1:$F$347,4,FALSE),"-") -> 11.34 | J164: =IFERROR(VLOOKUP($A164,'HPI Partial'!$A$1:$F$347,5,FALSE),"-") -> 11.79 | K164: =IFERROR(VLOOKUP($A164,'HPI Partial'!$A$1:$F$347,6,FALSE),"-") -> 1143441
A165: 2020-10-27 | B165: 11.53 | C165: 11.75 | D165: 11.465 | E165: 11.71 | F165: 932367 | G165: =IFERROR(VLOOKUP($A165,'HPI Partial'!$A$1:$F$347,2,FALSE),"-") -> 11.53 | H165: =IFERROR(VLOOKUP($A165,'HPI Partial'!$A$1:$F$347,3,FALSE),"-") -> 11.75 | I165: =IFERROR(VLOOKUP($A165,'HPI Partial'!$A$1:$F$347,4,FALSE),"-") -> 11.465 | J165: =IFERROR(VLOOKUP($A165,'HPI Partial'!$A$1:$F$347,5,FALSE),"-") -> 11.71 | K165: =IFERROR(VLOOKUP($A165,'HPI Partial'!$A$1:$F$347,6,FALSE),"-") -> 932367
A166: 2020-10-26 | B166: 11.42 | C166: 11.65 | D166: 11.19 | E166: 11.56 | F166: 504538 | G166: =IFERROR(VLOOKUP($A166,'HPI Partial'!$A$1:$F$347,2,FALSE),"-") -> 11.42 | H166: =IFERROR(VLOOKUP($A166,'HPI Partial'!$A$1:$F$347,3,FALSE),"-") -> 11.65 | I166: =IFERROR(VLOOKUP($A166,'HPI Partial'!$A$1:$F$347,4,FALSE),"-") -> 11.19 | J166: =IFERROR(VLOOKUP($A166,'HPI Partial'!$A$1:$F$347,5,FALSE),"-") -> 11.56 | K166: =IFERROR(VLOOKUP($A166,'HPI Partial'!$A$1:$F$347,6,FALSE),"-") -> 504538
A167: 2020-10-23 | B167: 11.75 | C167: 11.75 | D167: 11.37 | E167: 11.56 | F167: 321664 | G167: =IFERROR(VLOOKUP($A167,'HPI Partial'!$A$1:$F$347,2,FALSE),"-") -> 11.75 | H167: =IFERROR(VLOOKUP($A167,'HPI Partial'!$A$1:$F$347,3,FALSE),"-") -> 11.75 | I167: =IFERROR(VLOOKUP($A167,'HPI Partial'!$A$1:$F$347,4,FALSE),"-") -> 11.37 | J167: =IFERROR(VLOOKUP($A167,'HPI Partial'!$A$1:$F$347,5,FALSE),"-") -> 11.56 | K167: =IFERROR(VLOOKUP($A167,'HPI Partial'!$A$1:$F$347,6,FALSE),"-") -> 321664
A168: 2020-10-22 | B168: 11.39 | C168: 11.72 | D168: 11.25 | E168: 11.67 | F168: 505867 | G168: =IFERROR(VLOOKUP($A168,'HPI Partial'!$A$1:$F$347,2,FALSE),"-") -> 11.39 | H168: =IFERROR(VLOOKUP($A168,'HPI Partial'!$A$1:$F$347,3,FALSE),"-") -> 11.72 | I168: =IFERROR(VLOOKUP($A168,'HPI Partial'!$A$1:$F$347,4,FALSE),"-") -> 11.25 | J168: =IFERROR(VLOOKUP($A168,'HPI Partial'!$A$1:$F$347,5,FALSE),"-") -> 11.67 | K168: =IFERROR(VLOOKUP($A168,'HPI Partial'!$A$1:$F$347,6,FALSE),"-") -> 505867
A169: 2020-10-21 | B169: 11.2 | C169: 11.48 | D169: 11.07 | E169: 11.36 | F169: 283242 | G169: =IFERROR(VLOOKUP($A169,'HPI Partial'!$A$1:$F$347,2,FALSE),"-") -> 11.2 | H169: =IFERROR(VLOOKUP($A169,'HPI Partial'!$A$1:$F$347,3,FALSE),"-") -> 11.48 | I169: =IFERROR(VLOOKUP($A169,'HPI Partial'!$A$1:$F$347,4,FALSE),"-") -> 11.07 | J169: =IFERROR(VLOOKUP($A169,'HPI Partial'!$A$1:$F$347,5,FALSE),"-") -> 11.36 | K169: =IFERROR(VLOOKUP($A169,'HPI Partial'!$A$1:$F$347,6,FALSE),"-") -> 283242
A170: 2020-10-20 | B170: 11.2 | C170: 11.3262 | D170: 10.91 | E170: 11.21 | F170: 438876 | G170: =IFERROR(VLOOKUP($A170,'HPI Partial'!$A$1:$F$347,2,FALSE),"-") -> - | H170: =IFERROR(VLOOKUP($A170,'HPI Partial'!$A$1:$F$347,3,FALSE),"-") -> - | I170: =IFERROR(VLOOKUP($A170,'HPI Partial'!$A$1:$F$347,4,FALSE),"-") -> - | J170: =IFERROR(VLOOKUP($A170,'HPI Partial'!$A$1:$F$347,5,FALSE),"-") -> - | K170: =IFERROR(VLOOKUP($A170,'HPI Partial'!$A$1:$F$347,6,FALSE),"-") -> -
A171: 2020-10-19 | B171: 11.37 | C171: 11.77 | D171: 11.14 | E171: 11.2 | F171: 820667 | G171: =IFERROR(VLOOKUP($A171,'HPI Partial'!$A$1:$F$347,2,FALSE),"-") -> - | H171: =IFERROR(VLOOKUP($A171,'HPI Partial'!$A$1:$F$347,3,FALSE),"-") -> - | I171: =IFERROR(VLOOKUP($A171,'HPI Partial'!$A$1:$F$347,4,FALSE),"-") -> - | J171: =IFERROR(VLOOKUP($A171,'HPI Partial'!$A$1:$F$347,5,FALSE),"-") -> - | K171: =IFERROR(VLOOKUP($A171,'HPI Partial'!$A$1:$F$347,6,FALSE),"-") -> -
A172: 2020-10-16 | B172: 11.21 | C172: 11.4756 | D172: 11.13 | E172: 11.2 | F172: 500188 | G172: =IFERROR(VLOOKUP($A172,'HPI Partial'!$A$1:$F$347,2,FALSE),"-") -> - | H172: =IFERROR(VLOOKUP($A172,'HPI Partial'!$A$1:$F$347,3,FALSE),"-") -> - | I172: =IFERROR(VLOOKUP($A172,'HPI Partial'!$A$1:$F$347,4,FALSE),"-") -> - | J172: =IFERROR(VLOOKUP($A172,'HPI Partial'!$A$1:$F$347,5,FALSE),"-") -> - | K172: =IFERROR(VLOOKUP($A172,'HPI Partial'!$A$1:$F$347,6,FALSE),"-") -> -
A173: 2020-10-15 | B173: 11.05 | C173: 11.275 | D173: 10.8383 | E173: 11.23 | F173: 716096 | G173: =IFERROR(VLOOKUP($A173,'HPI Partial'!$A$1:$F$347,2,FALSE),"-") -> - | H173: =IFERROR(VLOOKUP($A173,'HPI Partial'!$A$1:$F$347,3,FALSE),"-") -> - | I173: =IFERROR(VLOOKUP($A173,'HPI Partial'!$A$1:$F$347,4,FALSE),"-") -> - | J173: =IFERROR(VLOOKUP($A173,'HPI Partial'!$A$1:$F$347,5,FALSE),"-") -> - | K173: =IFERROR(VLOOKUP($A173,'HPI Partial'!$A$1:$F$347,6,FALSE),"-") -> -
A174: 2020-10-14 | B174: 11.05 | C174: 11.125 | D174: 10.65 | E174: 11.06 | F174: 1024959 | G174: =IFERROR(VLOOKUP($A174,'HPI Partial'!$A$1:$F$347,2,FALSE),"-") -> - | H174: =IFERROR(VLOOKUP($A174,'HPI Partial'!$A$1:$F$347,3,FALSE),"-") -> - | I174: =IFERROR(VLOOKUP($A174,'HPI Partial'!$A$1:$F$347,4,FALSE),"-") -> - | J174: =IFERROR(VLOOKUP($A174,'HPI Partial'!$A$1:$F$347,5,FALSE),"-") -> - | K174: =IFERROR(VLOOKUP($A174,'HPI Partial'!$A$1:$F$347,6,FALSE),"-") -> -
A175: 2020-10-13 | B175: 11.85 | C175: 11.85 | D175: 11.2 | E175: 11.24 | F175: 616881 | G175: =IFERROR(VLOOKUP($A175,'HPI Partial'!$A$1:$F$347,2,FALSE),"-") -> - | H175: =IFERROR(VLOOKUP($A175,'HPI Partial'!$A$1:$F$347,3,FALSE),"-") -> - | I175: =IFERROR(VLOOKUP($A175,'HPI Partial'!$A$1:$F$347,4,FALSE),"-") -> - | J175: =IFERROR(VLOOKUP($A175,'HPI Partial'!$A$1:$F$347,5,FALSE),"-") -> - | K175: =IFERROR(VLOOKUP($A175,'HPI Partial'!$A$1:$F$347,6,FALSE),"-") -> -
A176: 2020-10-12 | B176: 11.37 | C176: 11.94 | D176: 11.2 | E176: 11.89 | F176: 638934 | G176: =IFERROR(VLOOKUP($A176,'HPI Partial'!$A$1:$F$347,2,FALSE),"-") -> - | H176: =IFERROR(VLOOKUP($A176,'HPI Partial'!$A$1:$F$347,3,FALSE),"-") -> - | I176: =IFERROR(VLOOKUP($A176,'HPI Partial'!$A$1:$F$347,4,FALSE),"-") -> - | J176: =IFERROR(VLOOKUP($A176,'HPI Partial'!$A$1:$F$347,5,FALSE),"-") -> - | K176: =IFERROR(VLOOKUP($A176,'HPI Partial'!$A$1:$F$347,6,FALSE),"-") -> -
A177: 2020-10-09 | B177: 11.85 | C177: 12.11 | D177: 11.52 | E177: 11.62 | F177: 412833 | G177: =IFERROR(VLOOKUP($A177,'HPI Partial'!$A$1:$F$347,2,FALSE),"-") -> - | H177: =IFERROR(VLOOKUP($A177,'HPI Partial'!$A$1:$F$347,3,FALSE),"-") -> - | I177: =IFERROR(VLOOKUP($A177,'HPI Partial'!$A$1:$F$347,4,FALSE),"-") -> - | J177: =IFERROR(VLOOKUP($A177,'HPI Partial'!$A$1:$F$347,5,FALSE),"-") -> - | K177: =IFERROR(VLOOKUP($A177,'HPI Partial'!$A$1:$F$347,6,FALSE),"-") -> -
A178: 2020-10-08 | B178: 11.5 | C178: 11.64 | D178: 11.27 | E178: 11.62 | F178: 430942 | G178: =IFERROR(VLOOKUP($A178,'HPI Partial'!$A$1:$F$347,2,FALSE),"-") -> - | H178: =IFERROR(VLOOKUP($A178,'HPI Partial'!$A$1:$F$347,3,FALSE),"-") -> - | I178: =IFERROR(VLOOKUP($A178,'HPI Partial'!$A$1:$F$347,4,FALSE),"-") -> - | J178: =IFERROR(VLOOKUP($A178,'HPI Partial'!$A$1:$F$347,5,FALSE),"-") -> - | K178: =IFERROR(VLOOKUP($A178,'HPI Partial'!$A$1:$F$347,6,FALSE),"-") -> -
A179: 2020-10-07 | B179: 11.58 | C179: 11.7 | D179: 11.11 | E179: 11.37 | F179: 671831 | G179: =IFERROR(VLOOKUP($A179,'HPI Partial'!$A$1:$F$347,2,FALSE),"-") -> - | H179: =IFERROR(VLOOKUP($A179,'HPI Partial'!$A$1:$F$347,3,FALSE),"-") -> - | I179: =IFERROR(VLOOKUP($A179,'HPI Partial'!$A$1:$F$347,4,FALSE),"-") -> - | J179: =IFERROR(VLOOKUP($A179,'HPI Partial'!$A$1:$F$347,5,FALSE),"-") -> - | K179: =IFERROR(VLOOKUP($A179,'HPI Partial'!$A$1:$F$347,6,FALSE),"-") -> -
A180: 2020-10-06 | B180: 11.17 | C180: 11.91 | D180: 11.16 | E180: 11.43 | F180: 865449 | G180: =IFERROR(VLOOKUP($A180,'HPI Partial'!$A$1:$F$347,2,FALSE),"-") -> - | H180: =IFERROR(VLOOKUP($A180,'HPI Partial'!$A$1:$F$347,3,FALSE),"-") -> - | I180: =IFERROR(VLOOKUP($A180,'HPI Partial'!$A$1:$F$347,4,FALSE),"-") -> - | J180: =IFERROR(VLOOKUP($A180,'HPI Partial'!$A$1:$F$347,5,FALSE),"-") -> - | K180: =IFERROR(VLOOKUP($A180,'HPI Partial'!$A$1:$F$347,6,FALSE),"-") -> -
A181: 2020-10-05 | B181: 11.27 | C181: 11.305 | D181: 10.5 | E181: 11.06 | F181: 1208823 | G181: =IFERROR(VLOOKUP($A181,'HPI Partial'!$A$1:$F$347,2,FALSE),"-") -> - | H181: =IFERROR(VLOOKUP($A181,'HPI Partial'!$A$1:$F$347,3,FALSE),"-") -> - | I181: =IFERROR(VLOOKUP($A181,'HPI Partial'!$A$1:$F$347,4,FALSE),"-") -> - | J181: =IFERROR(VLOOKUP($A181,'HPI Partial'!$A$1:$F$347,5,FALSE),"-") -> - | K181: =IFERROR(VLOOKUP($A181,'HPI Partial'!$A$1:$F$347,6,FALSE),"-") -> -
A182: 2020-10-02 | B182: 11.3 | C182: 11.48 | D182: 11.08 | E182: 11.27 | F182: 628690 | G182: =IFERROR(VLOOKUP($A182,'HPI Partial'!$A$1:$F$347,2,FALSE),"-") -> - | H182: =IFERROR(VLOOKUP($A182,'HPI Partial'!$A$1:$F$347,3,FALSE),"-") -> - | I182: =IFERROR(VLOOKUP($A182,'HPI Partial'!$A$1:$F$347,4,FALSE),"-") -> - | J182: =IFERROR(VLOOKUP($A182,'HPI Partial'!$A$1:$F$347,5,FALSE),"-") -> - | K182: =IFERROR(VLOOKUP($A182,'HPI Partial'!$A$1:$F$347,6,FALSE),"-") -> -
A183: 2020-10-01 | B183: 12.2 | C183: 12.2 | D183: 11.58 | E183: 11.61 | F183: 876683 | G183: =IFERROR(VLOOKUP($A183,'HPI Partial'!$A$1:$F$347,2,FALSE),"-") -> - | H183: =IFERROR(VLOOKUP($A183,'HPI Partial'!$A$1:$F$347,3,FALSE),"-") -> - | I183: =IFERROR(VLOOKUP($A183,'HPI Partial'!$A$1:$F$347,4,FALSE),"-") -> - | J183: =IFERROR(VLOOKUP($A183,'HPI Partial'!$A$1:$F$347,5,FALSE),"-") -> - | K183: =IFERROR(VLOOKUP($A183,'HPI Partial'!$A$1:$F$347,6,FALSE),"-") -> -
A184: 2020-09-30 | B184: 11.96 | C184: 12.26 | D184: 11.9326 | E184: 11.96 | F184: 530125 | G184: =IFERROR(VLOOKUP($A184,'HPI Partial'!$A$1:$F$347,2,FALSE),"-") -> - | H184: =IFERROR(VLOOKUP($A184,'HPI Partial'!$A$1:$F$347,3,FALSE),"-") -> - | I184: =IFERROR(VLOOKUP($A184,'HPI Partial'!$A$1:$F$347,4,FALSE),"-") -> - | J184: =IFERROR(VLOOKUP($A184,'HPI Partial'!$A$1:$F$347,5,FALSE),"-") -> - | K184: =IFERROR(VLOOKUP($A184,'HPI Partial'!$A$1:$F$347,6,FALSE),"-") -> -
A185: 2020-09-29 | B185: 12.13 | C185: 12.15 | D185: 11.84 | E185: 11.95 | F185: 503766 | G185: =IFERROR(VLOOKUP($A185,'HPI Partial'!$A$1:$F$347,2,FALSE),"-") -> - | H185: =IFERROR(VLOOKUP($A185,'HPI Partial'!$A$1:$F$347,3,FALSE),"-") -> - | I185: =IFERROR(VLOOKUP($A185,'HPI Partial'!$A$1:$F$347,4,FALSE),"-") -> - | J185: =IFERROR(VLOOKUP($A185,'HPI Partial'!$A$1:$F$347,5,FALSE),"-") -> - | K185: =IFERROR(VLOOKUP($A185,'HPI Partial'!$A$1:$F$347,6,FALSE),"-") -> -
A186: 2020-09-28 | B186: 12.42 | C186: 12.53 | D186: 12.07 | E186: 12.16 | F186: 461094 | G186: =IFERROR(VLOOKUP($A186,'HPI Partial'!$A$1:$F$347,2,FALSE),"-") -> - | H186: =IFERROR(VLOOKUP($A186,'HPI Partial'!$A$1:$F$347,3,FALSE),"-") -> - | I186: =IFERROR(VLOOKUP($A186,'HPI Partial'!$A$1:$F$347,4,FALSE),"-") -> - | J186: =IFERROR(VLOOKUP($A186,'HPI Partial'!$A$1:$F$347,5,FALSE),"-") -> - | K186: =IFERROR(VLOOKUP($A186,'HPI Partial'!$A$1:$F$347,6,FALSE),"-") -> -
A187: 2020-09-25 | B187: 11.81 | C187: 12.23 | D187: 11.71 | E187: 12.23 | F187: 656946 | G187: =IFERROR(VLOOKUP($A187,'HPI Partial'!$A$1:$F$347,2,FALSE),"-") -> - | H187: =IFERROR(VLOOKUP($A187,'HPI Partial'!$A$1:$F$347,3,FALSE),"-") -> - | I187: =IFERROR(VLOOKUP($A187,'HPI Partial'!$A$1:$F$347,4,FALSE),"-") -> - | J187: =IFERROR(VLOOKUP($A187,'HPI Partial'!$A$1:$F$347,5,FALSE),"-") -> - | K187: =IFERROR(VLOOKUP($A187,'HPI Partial'!$A$1:$F$347,6,FALSE),"-") -> -
A188: 2020-09-24 | B188: 12 | C188: 12.11 | D188: 11.59 | E188: 11.8 | F188: 584676 | G188: =IFERROR(VLOOKUP($A188,'HPI Partial'!$A$1:$F$347,2,FALSE),"-") -> - | H188: =IFERROR(VLOOKUP($A188,'HPI Partial'!$A$1:$F$347,3,FALSE),"-") -> - | I188: =IFERROR(VLOOKUP($A188,'HPI Partial'!$A$1:$F$347,4,FALSE),"-") -> - | J188: =IFERROR(VLOOKUP($A188,'HPI Partial'!$A$1:$F$347,5,FALSE),"-") -> - | K188: =IFERROR(VLOOKUP($A188,'HPI Partial'!$A$1:$F$347,6,FALSE),"-") -> -
A189: 2020-09-23 | B189: 13.05 | C189: 13.23 | D189: 12.025 | E189: 12.05 | F189: 1169088 | G189: =IFERROR(VLOOKUP($A189,'HPI Partial'!$A$1:$F$347,2,FALSE),"-") -> - | H189: =IFERROR(VLOOKUP($A189,'HPI Partial'!$A$1:$F$347,3,FALSE),"-") -> - | I189: =IFERROR(VLOOKUP($A189,'HPI Partial'!$A$1:$F$347,4,FALSE),"-") -> - | J189: =IFERROR(VLOOKUP($A189,'HPI Partial'!$A$1:$F$347,5,FALSE),"-") -> - | K189: =IFERROR(VLOOKUP($A189,'HPI Partial'!$A$1:$F$347,6,FALSE),"-") -> -
A190: 2020-09-22 | B190: 12.78 | C190: 13.68 | D190: 12.62 | E190: 13.15 | F190: 2987819 | G190: =IFERROR(VLOOKUP($A190,'HPI Partial'!$A$1:$F$347,2,FALSE),"-") -> - | H190: =IFERROR(VLOOKUP($A190,'HPI Partial'!$A$1:$F$347,3,FALSE),"-") -> - | I190: =IFERROR(VLOOKUP($A190,'HPI Partial'!$A$1:$F$347,4,FALSE),"-") -> - | J190: =IFERROR(VLOOKUP($A190,'HPI Partial'!$A$1:$F$347,5,FALSE),"-") -> - | K190: =IFERROR(VLOOKUP($A190,'HPI Partial'!$A$1:$F$347,6,FALSE),"-") -> -
A191: 2020-09-21 | B191: 13.14 | C191: 13.24 | D191: 12.5474 | E191: 12.73 | F191: 751374 | G191: =IFERROR(VLOOKUP($A191,'HPI Partial'!$A$1:$F$347,2,FALSE),"-") -> - | H191: =IFERROR(VLOOKUP($A191,'HPI Partial'!$A$1:$F$347,3,FALSE),"-") -> - | I191: =IFERROR(VLOOKUP($A191,'HPI Partial'!$A$1:$F$347,4,FALSE),"-") -> - | J191: =IFERROR(VLOOKUP($A191,'HPI Partial'!$A$1:$F$347,5,FALSE),"-") -> - | K191: =IFERROR(VLOOKUP($A191,'HPI Partial'!$A$1:$F$347,6,FALSE),"-") -> -
A192: 2020-09-18 | B192: 13.31 | C192: 13.58 | D192: 13.16 | E192: 13.41 | F192: 582294 | G192: =IFERROR(VLOOKUP($A192,'HPI Partial'!$A$1:$F$347,2,FALSE),"-") -> - | H192: =IFERROR(VLOOKUP($A192,'HPI Partial'!$A$1:$F$347,3,FALSE),"-") -> - | I192: =IFERROR(VLOOKUP($A192,'HPI Partial'!$A$1:$F$347,4,FALSE),"-") -> - | J192: =IFERROR(VLOOKUP($A192,'HPI Partial'!$A$1:$F$347,5,FALSE),"-") -> - | K192: =IFERROR(VLOOKUP($A192,'HPI Partial'!$A$1:$F$347,6,FALSE),"-") -> -
A193: 2020-09-17 | B193: 13.59 | C193: 13.73 | D193: 13.29 | E193: 13.33 | F193: 849482 | G193: =IFERROR(VLOOKUP($A193,'HPI Partial'!$A$1:$F$347,2,FALSE),"-") -> - | H193: =IFERROR(VLOOKUP($A193,'HPI Partial'!$A$1:$F$347,3,FALSE),"-") -> - | I193: =IFERROR(VLOOKUP($A193,'HPI Partial'!$A$1:$F$347,4,FALSE),"-") -> - | J193: =IFERROR(VLOOKUP($A193,'HPI Partial'!$A$1:$F$347,5,FALSE),"-") -> - | K193: =IFERROR(VLOOKUP($A193,'HPI Partial'!$A$1:$F$347,6,FALSE),"-") -> -
A194: 2020-09-16 | B194: 13.68 | C194: 14.02 | D194: 13.45 | E194: 13.61 | F194: 967687 | G194: =IFERROR(VLOOKUP($A194,'HPI Partial'!$A$1:$F$347,2,FALSE),"-") -> - | H194: =IFERROR(VLOOKUP($A194,'HPI Partial'!$A$1:$F$347,3,FALSE),"-") -> - | I194: =IFERROR(VLOOKUP($A194,'HPI Partial'!$A$1:$F$347,4,FALSE),"-") -> - | J194: =IFERROR(VLOOKUP($A194,'HPI Partial'!$A$1:$F$347,5,FALSE),"-") -> - | K194: =IFERROR(VLOOKUP($A194,'HPI Partial'!$A$1:$F$347,6,FALSE),"-") -> -
A195: 2020-09-15 | B195: 13.33 | C195: 14.25 | D195: 13.23 | E195: 13.59 | F195: 984661 | G195: =IFERROR(VLOOKUP($A195,'HPI Partial'!$A$1:$F$347,2,FALSE),"-") -> - | H195: =IFERROR(VLOOKUP($A195,'HPI Partial'!$A$1:$F$347,3,FALSE),"-") -> - | I195: =IFERROR(VLOOKUP($A195,'HPI Partial'!$A$1:$F$347,4,FALSE),"-") -> - | J195: =IFERROR(VLOOKUP($A195,'HPI Partial'!$A$1:$F$347,5,FALSE),"-") -> - | K195: =IFERROR(VLOOKUP($A195,'HPI Partial'!$A$1:$F$347,6,FALSE),"-") -> -
A196: 2020-09-14 | B196: 13.56 | C196: 13.905 | D196: 13.29 | E196: 13.32 | F196: 997645 | G196: =IFERROR(VLOOKUP($A196,'HPI Partial'!$A$1:$F$347,2,FALSE),"-") -> - | H196: =IFERROR(VLOOKUP($A196,'HPI Partial'!$A$1:$F$347,3,FALSE),"-") -> - | I196: =IFERROR(VLOOKUP($A196,'HPI Partial'!$A$1:$F$347,4,FALSE),"-") -> - | J196: =IFERROR(VLOOKUP($A196,'HPI Partial'!$A$1:$F$347,5,FALSE),"-") -> - | K196: =IFERROR(VLOOKUP($A196,'HPI Partial'!$A$1:$F$347,6,FALSE),"-") -> -
A197: 2020-09-11 | B197: 14.4 | C197: 14.4 | D197: 13.2 | E197: 13.46 | F197: 1245238 | G197: =IFERROR(VLOOKUP($A197,'HPI Partial'!$A$1:$F$347,2,FALSE),"-") -> - | H197: =IFERROR(VLOOKUP($A197,'HPI Partial'!$A$1:$F$347,3,FALSE),"-") -> - | I197: =IFERROR(VLOOKUP($A197,'HPI Partial'!$A$1:$F$347,4,FALSE),"-") -> - | J197: =IFERROR(VLOOKUP($A197,'HPI Partial'!$A$1:$F$347,5,FALSE),"-") -> - | K197: =IFERROR(VLOOKUP($A197,'HPI Partial'!$A$1:$F$347,6,FALSE),"-") -> -
A198: 2020-09-10 | B198: 14.97 | C198: 15.24 | D198: 14.2 | E198: 14.31 | F198: 702399 | G198: =IFERROR(VLOOKUP($A198,'HPI Partial'!$A$1:$F$347,2,FALSE),"-") -> - | H198: =IFERROR(VLOOKUP($A198,'HPI Partial'!$A$1:$F$347,3,FALSE),"-") -> - | I198: =IFERROR(VLOOKUP($A198,'HPI Partial'!$A$1:$F$347,4,FALSE),"-") -> - | J198: =IFERROR(VLOOKUP($A198,'HPI Partial'!$A$1:$F$347,5,FALSE),"-") -> - | K198: =IFERROR(VLOOKUP($A198,'HPI Partial'!$A$1:$F$347,6,FALSE),"-") -> -
A199: 2020-09-09 | B199: 15.3 | C199: 15.3 | D199: 13.945 | E199: 14.91 | F199: 1206639 | G199: =IFERROR(VLOOKUP($A199,'HPI Partial'!$A$1:$F$347,2,FALSE),"-") -> - | H199: =IFERROR(VLOOKUP($A199,'HPI Partial'!$A$1:$F$347,3,FALSE),"-") -> - | I199: =IFERROR(VLOOKUP($A199,'HPI Partial'!$A$1:$F$347,4,FALSE),"-") -> - | J199: =IFERROR(VLOOKUP($A199,'HPI Partial'!$A$1:$F$347,5,FALSE),"-") -> - | K199: =IFERROR(VLOOKUP($A199,'HPI Partial'!$A$1:$F$347,6,FALSE),"-") -> -
A200: 2020-09-08 | B200: 15.85 | C200: 15.86 | D200: 15.05 | E200: 15.21 | F200: 938458 | G200: =IFERROR(VLOOKUP($A200,'HPI Partial'!$A$1:$F$347,2,FALSE),"-") -> - | H200: =IFERROR(VLOOKUP($A200,'HPI Partial'!$A$1:$F$347,3,FALSE),"-") -> - | I200: =IFERROR(VLOOKUP($A200,'HPI Partial'!$A$1:$F$347,4,FALSE),"-") -> - | J200: =IFERROR(VLOOKUP($A200,'HPI Partial'!$A$1:$F$347,5,FALSE),"-") -> - | K200: =IFERROR(VLOOKUP($A200,'HPI Partial'!$A$1:$F$347,6,FALSE),"-") -> -
... 808 more rows

Sheet HPI Partial
A1: Date | B1: Open | C1: High | D1: Low | E1: Close | F1: Volume
A2: 2021-06-22 | B2: 21.31 | C2: 21.44 | D2: 20.98 | E2: 21.39 | F2: 299881
A3: 2021-06-21 | B3: 21.72 | C3: 21.72 | D3: 21.04 | E3: 21.53 | F3: 398548
A4: 2021-06-18 | B4: 21.6 | C4: 21.87 | D4: 21.37 | E4: 21.59 | F4: 612501
A5: 2021-06-17 | B5: 21.88 | C5: 21.98 | D5: 21.65 | E5: 21.85 | F5: 375341
A6: 2021-06-16 | B6: 21.71 | C6: 21.96 | D6: 21.33 | E6: 21.94 | F6: 572213
A7: 2021-06-15 | B7: 22.38 | C7: 22.469 | D7: 21.82 | E7: 21.83 | F7: 316919
A8: 2021-06-14 | B8: 22.79 | C8: 23.09 | D8: 22.2 | E8: 22.33 | F8: 472910
A9: 2021-06-11 | B9: 22.59 | C9: 22.79 | D9: 22.42 | E9: 22.74 | F9: 370353
A10: 2021-06-10 | B10: 23.28 | C10: 23.35 | D10: 22.49 | E10: 22.55 | F10: 874514
A11: 2021-06-09 | B11: 23.51 | C11: 23.54 | D11: 23.03 | E11: 23.23 | F11: 659936
A12: 2021-06-08 | B12: 22.15 | C12: 23.375 | D12: 21.81 | E12: 23.23 | F12: 1592533
A13: 2021-06-07 | B13: 21.63 | C13: 22.11 | D13: 21.48 | E13: 22.04 | F13: 985675
A14: 2021-06-04 | B14: 22.03 | C14: 22.39 | D14: 21.42 | E14: 21.43 | F14: 660975
A15: 2021-06-03 | B15: 21.85 | C15: 22.31 | D15: 21.14 | E15: 21.93 | F15: 1631897
A16: 2021-06-02 | B16: 21 | C16: 22.32 | D16: 20.64 | E16: 21.99 | F16: 1630813
A17: 2021-06-01 | B17: 21.63 | C17: 22.405 | D17: 21.54 | E17: 22.27 | F17: 809740
A18: 2021-05-28 | B18: 22.82 | C18: 23.57 | D18: 21.525 | E18: 21.61 | F18: 1180971
A19: 2021-05-27 | B19: 21.62 | C19: 22.705 | D19: 21.51 | E19: 22.59 | F19: 1615618
A20: 2021-05-26 | B20: 21.75 | C20: 22.12 | D20: 21.545 | E20: 21.6 | F20: 734397
A21: 2021-05-25 | B21: 21.95 | C21: 22.23 | D21: 21.55 | E21: 21.61 | F21: 601958
A22: 2021-05-24 | B22: 21.75 | C22: 22.04 | D22: 21.4 | E22: 21.79 | F22: 479138
A23: 2021-05-21 | B23: 21.4 | C23: 21.5701 | D23: 21.16 | E23: 21.38 | F23: 534789
A24: 2021-05-20 | B24: 20.82 | C24: 21.26 | D24: 20.57 | E24: 21.21 | F24: 703371
A25: 2021-05-19 | B25: 20.17 | C25: 20.82 | D25: 19.96 | E25: 20.8 | F25: 843101
A26: 2021-05-18 | B26: 20.84 | C26: 21.05 | D26: 20.57 | E26: 20.57 | F26: 709025
A27: 2021-05-17 | B27: 20.81 | C27: 20.955 | D27: 20.52 | E27: 20.87 | F27: 413453
A28: 2021-05-14 | B28: 20.61 | C28: 20.74 | D28: 20.235 | E28: 20.61 | F28: 1073757
A29: 2021-05-13 | B29: 19.72 | C29: 20.74 | D29: 19.65 | E29: 20.46 | F29: 796605
A30: 2021-05-12 | B30: 20.37 | C30: 20.61 | D30: 19.58 | E30: 19.65 | F30: 850060
A31: 2021-05-11 | B31: 20.39 | C31: 21.03 | D31: 20.35 | E31: 20.57 | F31: 413008
A32: 2021-05-10 | B32: 21.05 | C32: 21.33 | D32: 20.89 | E32: 20.92 | F32: 408440
A33: 2021-05-07 | B33: 20.25 | C33: 21.13 | D33: 20.15 | E33: 20.92 | F33: 630308
A34: 2021-05-06 | B34: 20.76 | C34: 20.76 | D34: 20.08 | E34: 20.21 | F34: 560763
A35: 2021-05-05 | B35: 21.33 | C35: 21.33 | D35: 20.62 | E35: 20.68 | F35: 507176
A36: 2021-05-04 | B36: 21.08 | C36: 21.2 | D36: 20.56 | E36: 21.18 | F36: 606152
A37: 2021-05-03 | B37: 20.97 | C37: 21.53 | D37: 20.89 | E37: 21.33 | F37: 734072
A38: 2021-04-30 | B38: 21.14 | C38: 21.175 | D38: 20.5534 | E38: 20.62 | F38: 927372
A39: 2021-04-29 | B39: 21.63 | C39: 22.27 | D39: 20.53 | E39: 21.28 | F39: 1081809
A40: 2021-04-28 | B40: 21.74 | C40: 22.41 | D40: 21.7 | E40: 22.18 | F40: 683381
A41: 2021-04-27 | B41: 22.6 | C41: 22.6 | D41: 21.92 | E41: 21.97 | F41: 453373
A42: 2021-04-26 | B42: 21.94 | C42: 22.58 | D42: 21.94 | E42: 22.43 | F42: 654659
A43: 2021-04-23 | B43: 21.88 | C43: 22.19 | D43: 21.72 | E43: 21.95 | F43: 863131
A44: 2021-04-22 | B44: 21.26 | C44: 21.77 | D44: 20.98 | E44: 21.36 | F44: 392671
A45: 2021-04-21 | B45: 20.49 | C45: 21.17 | D45: 20.39 | E45: 21.15 | F45: 791696
A46: 2021-04-20 | B46: 21.72 | C46: 21.72 | D46: 20.37 | E46: 20.74 | F46: 643515
A47: 2021-04-19 | B47: 21.09 | C47: 21.79 | D47: 20.89 | E47: 21.75 | F47: 1520924
A48: 2021-04-16 | B48: 21.21 | C48: 21.47 | D48: 20.84 | E48: 21.16 | F48: 1401645
A49: 2021-04-15 | B49: 21.36 | C49: 21.63 | D49: 21.06 | E49: 21.09 | F49: 554682
A50: 2021-04-14 | B50: 20.96 | C50: 21.6 | D50: 20.8124 | E50: 21.04 | F50: 571696
A51: 2021-04-13 | B51: 21.03 | C51: 21.245 | D51: 20.65 | E51: 20.93 | F51: 569426
A52: 2021-04-12 | B52: 21.56 | C52: 21.75 | D52: 21.08 | E52: 21.28 | F52: 556134
A53: 2021-04-09 | B53: 21.74 | C53: 22.02 | D53: 21.53 | E53: 21.61 | F53: 373650
A54: 2021-04-08 | B54: 21.92 | C54: 22.005 | D54: 21.37 | E54: 22 | F54: 605630
A55: 2021-04-07 | B55: 21.99 | C55: 22.19 | D55: 21.56 | E55: 21.88 | F55: 407553
A56: 2021-04-06 | B56: 21.86 | C56: 22.34 | D56: 21.67 | E56: 22.03 | F56: 1065273
A57: 2021-04-05 | B57: 21.5 | C57: 22.13 | D57: 21.15 | E57: 21.91 | F57: 1843433
A58: 2021-04-01 | B58: 20.44 | C58: 21.1 | D58: 20.31 | E58: 20.97 | F58: 854055
A59: 2021-03-31 | B59: 20.17 | C59: 20.7 | D59: 20.05 | E59: 20.1 | F59: 831715
A60: 2021-03-30 | B60: 20 | C60: 20.24 | D60: 19.76 | E60: 20.18 | F60: 552821
A61: 2021-03-29 | B61: 19.78 | C61: 20.19 | D61: 19.4 | E61: 19.86 | F61: 713194
A62: 2021-03-26 | B62: 20.53 | C62: 20.62 | D62: 19.18 | E62: 19.77 | F62: 1161614
A63: 2021-03-25 | B63: 19.53 | C63: 20.43 | D63: 19.51 | E63: 20.39 | F63: 864517
A64: 2021-03-24 | B64: 20.46 | C64: 20.92 | D64: 19.87 | E64: 19.89 | F64: 1693899
A65: 2021-03-23 | B65: 20.63 | C65: 20.94 | D65: 20 | E65: 20.18 | F65: 988180
A66: 2021-03-22 | B66: 21.15 | C66: 21.35 | D66: 20.72 | E66: 21.04 | F66: 837724
A67: 2021-03-19 | B67: 21.31 | C67: 21.5 | D67: 20.7 | E67: 21.33 | F67: 1469251
A68: 2021-03-18 | B68: 21.03 | C68: 21.93 | D68: 20.84 | E68: 21.22 | F68: 1637545
A69: 2021-03-17 | B69: 21.42 | C69: 22.21 | D69: 21.14 | E69: 21.24 | F69: 3850034
A70: 2021-03-16 | B70: 21.2 | C70: 21.971 | D70: 20.24 | E70: 21.3 | F70: 5077435
A71: 2021-03-15 | B71: 23.45 | C71: 23.72 | D71: 22.97 | E71: 23.46 | F71: 1097457
A72: 2021-03-12 | B72: 23.21 | C72: 23.62 | D72: 22.91 | E72: 23.45 | F72: 928045
A73: 2021-03-11 | B73: 23 | C73: 23.43 | D73: 22.48 | E73: 23.38 | F73: 1187558
A74: 2021-03-10 | B74: 23.35 | C74: 23.79 | D74: 22.44 | E74: 22.81 | F74: 1367334
A75: 2021-03-09 | B75: 23.81 | C75: 24.07 | D75: 22.94 | E75: 23.16 | F75: 1380342
A76: 2021-03-08 | B76: 24.52 | C76: 24.6 | D76: 22.67 | E76: 23.39 | F76: 1724647
A77: 2021-03-05 | B77: 22.5 | C77: 25.05 | D77: 21.75 | E77: 24.59 | F77: 4085476
A78: 2021-03-04 | B78: 21.52 | C78: 21.7272 | D78: 20.27 | E78: 20.71 | F78: 666274
A79: 2021-03-03 | B79: 21.51 | C79: 22.05 | D79: 21.51 | E79: 21.67 | F79: 704396
A80: 2021-03-02 | B80: 21.47 | C80: 22.015 | D80: 21.09 | E80: 21.46 | F80: 468023
A81: 2021-03-01 | B81: 21.09 | C81: 21.46 | D81: 20.87 | E81: 21.44 | F81: 478143
A82: 2021-02-26 | B82: 20.65 | C82: 21.18 | D82: 20.31 | E82: 20.67 | F82: 590307
A83: 2021-02-25 | B83: 20.89 | C83: 21.28 | D83: 20.4 | E83: 20.53 | F83: 864155
A84: 2021-02-24 | B84: 20.55 | C84: 20.9416 | D84: 20.06 | E84: 20.84 | F84: 744177
A85: 2021-02-23 | B85: 20.64 | C85: 20.99 | D85: 20.0355 | E85: 20.51 | F85: 707707
A86: 2021-02-22 | B86: 19.5 | C86: 20.62 | D86: 19.425 | E86: 20.6 | F86: 1485803
A87: 2021-02-19 | B87: 20.17 | C87: 20.17 | D87: 19.47 | E87: 19.51 | F87: 365018
A88: 2021-02-18 | B88: 19.96 | C88: 20.52 | D88: 19.89 | E88: 19.98 | F88: 531925
A89: 2021-02-17 | B89: 20.01 | C89: 20.4 | D89: 19.99 | E89: 20.25 | F89: 918656
A90: 2021-02-16 | B90: 20 | C90: 20.47 | D90: 19.44 | E90: 19.85 | F90: 1446611
A91: 2021-02-12 | B91: 18.42 | C91: 18.75 | D91: 18.29 | E91: 18.64 | F91: 311748
A92: 2021-02-11 | B92: 18.65 | C92: 18.73 | D92: 18.17 | E92: 18.4 | F92: 441305
A93: 2021-02-10 | B93: 17.95 | C93: 18.79 | D93: 17.66 | E93: 18.65 | F93: 486137
A94: 2021-02-09 | B94: 18.1 | C94: 18.29 | D94: 17.41 | E94: 17.87 | F94: 540744
A95: 2021-02-08 | B95: 18.53 | C95: 18.63 | D95: 17.96 | E95: 18.2 | F95: 539607
A96: 2021-02-05 | B96: 18.39 | C96: 18.64 | D96: 18.16 | E96: 18.29 | F96: 332601
A97: 2021-02-04 | B97: 18.87 | C97: 18.9 | D97: 17.96 | E97: 18.3 | F97: 690175
A98: 2021-02-03 | B98: 18.86 | C98: 19.07 | D98: 18.352 | E98: 18.87 | F98: 524687
A99: 2021-02-02 | B99: 19.88 | C99: 19.9738 | D99: 18.44 | E99: 18.8 | F99: 876324
A100: 2021-02-01 | B100: 19.27 | C100: 19.85 | D100: 18.76 | E100: 19.73 | F100: 812137
A101: 2021-01-29 | B101: 19.17 | C101: 19.74 | D101: 18.75 | E101: 18.9 | F101: 678163
A102: 2021-01-28 | B102: 19.53 | C102: 19.96 | D102: 19.03 | E102: 19.33 | F102: 1027666
A103: 2021-01-27 | B103: 19 | C103: 20.2066 | D103: 18.64 | E103: 19.37 | F103: 3285053
A104: 2021-01-26 | B104: 19 | C104: 19.07 | D104: 18.1 | E104: 18.81 | F104: 1759102
A105: 2021-01-25 | B105: 18.1 | C105: 19 | D105: 18.1 | E105: 18.73 | F105: 1040079
A106: 2021-01-22 | B106: 18.1 | C106: 18.495 | D106: 17.92 | E106: 18.47 | F106: 673723
A107: 2021-01-21 | B107: 18.69 | C107: 18.69 | D107: 18.13 | E107: 18.3 | F107: 445484
A108: 2021-01-20 | B108: 18.65 | C108: 18.94 | D108: 18.44 | E108: 18.62 | F108: 573272
A109: 2021-01-19 | B109: 18.63 | C109: 19 | D109: 18.37 | E109: 18.56 | F109: 529165
A110: 2021-01-15 | B110: 18.65 | C110: 18.83 | D110: 18.21 | E110: 18.34 | F110: 429636
A111: 2021-01-14 | B111: 18.15 | C111: 19 | D111: 18.03 | E111: 18.93 | F111: 718543
A112: 2021-01-13 | B112: 18.21 | C112: 18.465 | D112: 17.61 | E112: 18.14 | F112: 548046
A113: 2021-01-12 | B113: 18.01 | C113: 18.43 | D113: 17.97 | E113: 18.2 | F113: 966973
A114: 2021-01-11 | B114: 18.03 | C114: 18.36 | D114: 17.84 | E114: 17.97 | F114: 744050
A115: 2021-01-08 | B115: 18.18 | C115: 18.33 | D115: 17.85 | E115: 18.28 | F115: 1017692
A116: 2021-01-07 | B116: 18.75 | C116: 19.2 | D116: 18.04 | E116: 18.1 | F116: 740237
A117: 2021-01-06 | B117: 18.56 | C117: 19.05 | D117: 18.4 | E117: 18.55 | F117: 991231
A118: 2021-01-05 | B118: 17.47 | C118: 18.6 | D118: 17.4201 | E118: 18.17 | F118: 1041835
A119: 2021-01-04 | B119: 18.08 | C119: 18.2099 | D119: 17.11 | E119: 17.6 | F119: 970576
A120: 2020-12-31 | B120: 18.67 | C120: 18.67 | D120: 18.02 | E120: 18.02 | F120: 721999
A121: 2020-12-30 | B121: 18 | C121: 18.87 | D121: 17.95 | E121: 18.45 | F121: 1264790
A122: 2020-12-29 | B122: 18.03 | C122: 18.52 | D122: 17.64 | E122: 17.85 | F122: 2286089
A123: 2020-12-28 | B123: 17.2 | C123: 17.88 | D123: 17.07 | E123: 17.7 | F123: 1357484
A124: 2020-12-24 | B124: 16.85 | C124: 17.08 | D124: 16.64 | E124: 17.01 | F124: 731111
A125: 2020-12-23 | B125: 16.29 | C125: 17.11 | D125: 16.16 | E125: 16.92 | F125: 732218
A126: 2020-12-22 | B126: 15.81 | C126: 16.16 | D126: 15.75 | E126: 16.03 | F126: 858692
A127: 2020-12-21 | B127: 15.23 | C127: 15.88 | D127: 15.08 | E127: 15.84 | F127: 795052
A128: 2020-12-18 | B128: 15.43 | C128: 15.83 | D128: 15.26 | E128: 15.73 | F128: 1353977
A129: 2020-12-17 | B129: 14.98 | C129: 15.59 | D129: 14.84 | E129: 15.4 | F129: 880511
A130: 2020-12-16 | B130: 15.31 | C130: 15.43 | D130: 14.92 | E130: 14.94 | F130: 516905
A131: 2020-12-15 | B131: 14.88 | C131: 15.41 | D131: 14.75 | E131: 15.27 | F131: 579371
A132: 2020-12-14 | B132: 15.5 | C132: 15.67 | D132: 14.54 | E132: 14.61 | F132: 1057481
A133: 2020-12-11 | B133: 15.5 | C133: 15.75 | D133: 15.1368 | E133: 15.35 | F133: 1988776
A134: 2020-12-10 | B134: 15.01 | C134: 15.78 | D134: 14.92 | E134: 15.51 | F134: 835167
A135: 2020-12-09 | B135: 15.15 | C135: 15.55 | D135: 15.0687 | E135: 15.21 | F135: 817613
A136: 2020-12-08 | B136: 14.3 | C136: 15.05 | D136: 14.3 | E136: 14.9 | F136: 716251
A137: 2020-12-07 | B137: 14.54 | C137: 14.72 | D137: 14.22 | E137: 14.46 | F137: 686328
A138: 2020-11-17 | B138: 14.66 | C138: 15.42 | D138: 14.56 | E138: 15.3 | F138: 639852
A139: 2020-11-16 | B139: 15 | C139: 15.53 | D139: 14.33 | E139: 14.93 | F139: 1259920
A140: 2020-11-13 | B140: 14.15 | C140: 14.525 | D140: 13.9724 | E140: 14.35 | F140: 587225
A141: 2020-11-12 | B141: 14.26 | C141: 14.45 | D141: 13.94 | E141: 14.05 | F141: 507899
A142: 2020-11-11 | B142: 14.07 | C142: 14.53 | D142: 13.93 | E142: 14.52 | F142: 626383
A143: 2020-11-10 | B143: 14.28 | C143: 14.5 | D143: 13.795 | E143: 14.06 | F143: 1174166
A144: 2020-11-09 | B144: 14.99 | C144: 15.14 | D144: 13.55 | E144: 14.02 | F144: 3946991
A145: 2020-11-06 | B145: 11.97 | C145: 12.03 | D145: 11.8 | E145: 11.82 | F145: 328800
A146: 2020-11-05 | B146: 11.5 | C146: 12.05 | D146: 11.27 | E146: 12.02 | F146: 595823
A147: 2020-11-04 | B147: 11.46 | C147: 11.59 | D147: 11.24 | E147: 11.41 | F147: 632029
A148: 2020-11-03 | B148: 11.26 | C148: 11.72 | D148: 11.24 | E148: 11.65 | F148: 547537
A149: 2020-11-02 | B149: 11.63 | C149: 11.75 | D149: 10.81 | E149: 11.15 | F149: 753002
A150: 2020-10-30 | B150: 11.44 | C150: 11.59 | D150: 11.112 | E150: 11.53 | F150: 739970
A151: 2020-10-29 | B151: 11.19 | C151: 11.53 | D151: 10.76 | E151: 11.49 | F151: 1618853
A152: 2020-10-28 | B152: 11.36 | C152: 12 | D152: 11.34 | E152: 11.79 | F152: 1143441
A153: 2020-10-27 | B153: 11.53 | C153: 11.75 | D153: 11.465 | E153: 11.71 | F153: 932367
A154: 2020-10-26 | B154: 11.42 | C154: 11.65 | D154: 11.19 | E154: 11.56 | F154: 504538
A155: 2020-10-23 | B155: 11.75 | C155: 11.75 | D155: 11.37 | E155: 11.56 | F155: 321664
A156: 2020-10-22 | B156: 11.39 | C156: 11.72 | D156: 11.25 | E156: 11.67 | F156: 505867
A157: 2020-10-21 | B157: 11.2 | C157: 11.48 | D157: 11.07 | E157: 11.36 | F157: 283242
A158: 2018-05-21 | B158: 23.05 | C158: 23.15 | D158: 22.55 | E158: 22.95 | F158: 716658
A159: 2018-05-18 | B159: 23.9 | C159: 23.9 | D159: 22.85 | E159: 22.85 | F159: 667451
A160: 2018-05-17 | B160: 24.3 | C160: 24.3 | D160: 23.675 | E160: 23.85 | F160: 343757
A161: 2018-05-16 | B161: 23.9 | C161: 24.375 | D161: 23.8 | E161: 24.2 | F161: 371058
A162: 2018-05-15 | B162: 23.5 | C162: 24.1 | D162: 23.4 | E162: 23.85 | F162: 474177
A163: 2018-05-14 | B163: 23.8 | C163: 23.95 | D163: 23.5 | E163: 23.6 | F163: 394516
A164: 2018-05-11 | B164: 23.8 | C164: 24.05 | D164: 23.4 | E164: 23.75 | F164: 743421
A165: 2018-05-10 | B165: 23.25 | C165: 24.025 | D165: 23.2 | E165: 23.8 | F165: 424654
A166: 2018-05-09 | B166: 23.55 | C166: 23.6 | D166: 23 | E166: 23.25 | F166: 616828
A167: 2018-05-08 | B167: 23.55 | C167: 23.925 | D167: 23.525 | E167: 23.6 | F167: 702431
A168: 2018-05-07 | B168: 22.95 | C168: 23.8 | D168: 22.95 | E168: 23.75 | F168: 652141
A169: 2018-05-04 | B169: 22.6 | C169: 23.15 | D169: 22.55 | E169: 22.75 | F169: 592618
A170: 2018-05-03 | B170: 22.7 | C170: 23 | D170: 22.6 | E170: 22.8 | F170: 755528
A171: 2018-05-02 | B171: 21.95 | C171: 22.85 | D171: 21.5 | E171: 22.6 | F171: 1221994
A172: 2018-05-01 | B172: 24 | C172: 24 | D172: 21.25 | E172: 21.6 | F172: 1503848
A173: 2018-04-30 | B173: 23.1 | C173: 23.65 | D173: 22.85 | E173: 23.2 | F173: 1393938
A174: 2018-04-27 | B174: 23.9 | C174: 24.05 | D174: 22.85 | E174: 23.1 | F174: 864059
A175: 2018-04-26 | B175: 23.3 | C175: 23.3 | D175: 22.775 | E175: 23.2 | F175: 805416
A176: 2018-04-25 | B176: 22.95 | C176: 23.625 | D176: 22.7 | E176: 23.6 | F176: 746242
A177: 2018-04-24 | B177: 23.05 | C177: 23.1872 | D177: 22.65 | E177: 22.95 | F177: 305442
A178: 2018-04-23 | B178: 22.55 | C178: 23.2 | D178: 22.55 | E178: 22.85 | F178: 303679
A179: 2018-04-20 | B179: 22.3 | C179: 22.75 | D179: 22.15 | E179: 22.6 | F179: 279819
A180: 2018-04-19 | B180: 22.6 | C180: 23.2 | D180: 21.9197 | E180: 22.3 | F180: 627888
A181: 2018-04-18 | B181: 22.1 | C181: 22.55 | D181: 22.05 | E181: 22.5 | F181: 365184
A182: 2018-04-17 | B182: 22.5 | C182: 22.75 | D182: 21.975 | E182: 22.2 | F182: 498743
A183: 2018-04-16 | B183: 22.05 | C183: 22.65 | D183: 21.8 | E183: 22.3 | F183: 521024
A184: 2018-04-13 | B184: 21.8 | C184: 22 | D184: 21.65 | E184: 21.9 | F184: 408116
A185: 2018-04-12 | B185: 21.7 | C185: 21.7 | D185: 21.3 | E185: 21.6 | F185: 325664
A186: 2018-04-11 | B186: 21.4 | C186: 21.9 | D186: 21.4 | E186: 21.7 | F186: 570758
A187: 2018-04-10 | B187: 21.65 | C187: 21.75 | D187: 21 | E187: 21.5 | F187: 784815
A188: 2018-04-09 | B188: 22.15 | C188: 22.15 | D188: 21.25 | E188: 21.4 | F188: 555524
A189: 2018-04-06 | B189: 21.95 | C189: 22.5 | D189: 21.8 | E189: 22.1 | F189: 697196
A190: 2018-04-05 | B190: 21.65 | C190: 22.1 | D190: 21.55 | E190: 21.9 | F190: 611687
A191: 2018-04-04 | B191: 20.9 | C191: 21.6 | D191: 20.6 | E191: 21.6 | F191: 815114
A192: 2018-04-03 | B192: 20.05 | C192: 21.6 | D192: 20 | E192: 21.3 | F192: 1430244
A193: 2018-04-02 | B193: 19.05 | C193: 20 | D193: 19.05 | E193: 19.75 | F193: 913871
A194: 2018-03-29 | B194: 19.7 | C194: 19.9 | D194: 19.025 | E194: 19.2 | F194: 1302665
A195: 2018-03-28 | B195: 19.75 | C195: 20 | D195: 19.3 | E195: 19.55 | F195: 571037
A196: 2018-03-27 | B196: 19.7 | C196: 20.5 | D196: 19.65 | E196: 19.75 | F196: 890468
A197: 2018-03-26 | B197: 19.4 | C197: 19.6 | D197: 19.15 | E197: 19.45 | F197: 483082
A198: 2018-03-23 | B198: 19.3 | C198: 19.5 | D198: 19 | E198: 19 | F198: 1207587
A199: 2018-03-22 | B199: 19.75 | C199: 19.9 | D199: 19.15 | E199: 19.25 | F199: 988028
A200: 2018-03-21 | B200: 20 | C200: 20.4 | D200: 19.85 | E200: 19.9 | F200: 375007
... 147 more rows

Sheet PV1
A3: Discount Rate | B3: 0.03
A5: Year | B5: Cash Flow | C5: Present Value | D5: Formula
A6: 1 | B6: 100 | C6: =B6/(1+$B$3)^A6 -> 97.08737864 | D6: =getformula(C6) -> <-- =B6/(1+$B$3)^A6
A7: 2 | B7: 100 | C7: =B7/(1+$B$3)^A7 -> 94.25959091 | D7: =getformula(C7) -> <-- =B7/(1+$B$3)^A7
A8: 3 | B8: 100 | C8: 91.51416594 | D8: =getformula(C8) -> <-- =B8/(1+$B$3)^A8
A9: 4 | B9: 100 | C9: 88.84870479 | D9: =getformula(C9) -> <-- =B9/(1+$B$3)^A9
A10: 5 | B10: 100 | C10: 86.26087844 | D10: =getformula(C10) -> <-- =B10/(1+$B$3)^A10
A12: NPV | C12: =SUM(C6:C10) -> 457.9707187 | D12: =getformula(C12) -> <-- =SUM(C6:C10)
A13: NPV(Excel Function) | C13: =NPV(B3,B6:B10) -> 457.9707187 | D13: =getformula(C13) -> <-- =NPV(B3,B6:B10)
A14: PV | C14: =PV(B3,5,-100) -> 457.9707187 | D14: =getformula(C14) -> <-- =PV(B3,5,-100)

Sheet PV2
A3: Discount Rate | B3: 0.03
A5: Year | B5: Cash Flow | C5: Present Value | D5: Formula
A6: 0 | B6: -250 | C6: =B6/(1+$B$3)^A6 -> -250 | D6: =getformula(C6) -> <-- =B6/(1+$B$3)^A6
A7: 1 | B7: 100 | C7: =B7/(1+$B$3)^A7 -> 97.08737864 | D7: =getformula(C7) -> <-- =B7/(1+$B$3)^A7
A8: 2 | B8: 200 | C8: =B8/(1+$B$3)^A8 -> 188.5191818 | D8: =getformula(C8) -> <-- =B8/(1+$B$3)^A8
A9: 3 | B9: 300 | C9: 274.5424978 | D9: =getformula(C9) -> <-- =B9/(1+$B$3)^A9
A10: 4 | B10: 400 | C10: 355.3948192 | D10: =getformula(C10) -> <-- =B10/(1+$B$3)^A10
A11: 5 | B11: 500 | C11: 431.3043922 | D11: =getformula(C11) -> <-- =B11/(1+$B$3)^A11
A13: NPV | C13: =SUM(C6:C11) -> 1096.84827 | D13: =getformula(C13) -> <-- =SUM(C6:C11)
A14: NPV(Excel Function) | C14: =B6+NPV(B3,B7:B11) -> 1096.84827 | D14: =getformula(C14) -> <-- =B6+NPV(B3,B7:B11)
